OrganisationNameLabel,OrganisationURI,EffectiveDate,Directorate/ServiceWhereExpenditureIncurred,ServiceCategoryLabel,ServiceCategoryURI,Supplier,SupplierRegisteredCompany Number,PaymentDate,TransactionNumber,NetAmount,IrrecoverableVAT,PurposeOfSpend,ProcurementClassification:ProclassLabel,ProcrementClassification:ProClassCode
South Lakeland District Council,http://opendatacommunities.org/id/district-council/south-lakeland,31/10/2015,Printing Section,Central Services,http://opendatacommunities.org/def/concept/finance/sercop/objective/102,ADECCO UK LIMITED,593232,07/10/2015,51677,460.98,0,10 Weeks @ 37 hours per week for,261400,HR Temporary & Agency Staff
South Lakeland District Council,http://opendatacommunities.org/id/district-council/south-lakeland,31/10/2015,Social Enterprise Admin,Highways & Transport Services,http://opendatacommunities.org/def/concept/finance/sercop/objective/107,METRIC GROUP LIMITED,2560839,07/10/2015,51723,"4,645.00",0,Supply and install 1 x Elite LS Pay and,359999,Street & Traffic Not Elsewhere Classifie
South Lakeland District Council,http://opendatacommunities.org/id/district-council/south-lakeland,31/10/2015,Business Support Community Services,Internal Trading Accounts,,K S INTERNATIONAL LTD,2703321,14/10/2015,51858,305,0,Spring,381500,Vehicle Mgt Parts
South Lakeland District Council,http://opendatacommunities.org/id/district-council/south-lakeland,31/10/2015,Business Support Community Services,Internal Trading Accounts,,K S INTERNATIONAL LTD,2703321,14/10/2015,51869,160,0,Spring,381500,Vehicle Mgt Parts
South Lakeland District Council,http://opendatacommunities.org/id/district-council/south-lakeland,31/10/2015,Printing Section,Central Services,http://opendatacommunities.org/def/concept/finance/sercop/objective/102,ADECCO UK LIMITED,593232,07/10/2015,51890,469.85,0,10 Weeks @ 37 hours per week for ,261400,HR Temporary & Agency Staff
South Lakeland District Council,http://opendatacommunities.org/id/district-council/south-lakeland,31/10/2015,Legal Services,Internal Trading Accounts,,PENNINGTONS (KENDAL) LIMITED,434649,05/10/2015,52035,"2,000.00",0,Annual charge from April 2015 to March,182013,Environment Waste Mgt Waste Collection
South Lakeland District Council,http://opendatacommunities.org/id/district-council/south-lakeland,31/10/2015,Printing Section,Central Services,http://opendatacommunities.org/def/concept/finance/sercop/objective/102,ADECCO UK LIMITED,593232,19/10/2015,52129,481.67,0,10 Weeks @ 37 hours per week for ,261400,HR Temporary & Agency Staff
South Lakeland District Council,http://opendatacommunities.org/id/district-council/south-lakeland,31/10/2015,Business Support Community Services,Internal Trading Accounts,,JOHNSTON SWEEPERS LTD,199841,05/10/2015,52173,165.08,0,Switches,181600,Environment Street Cleansing
South Lakeland District Council,http://opendatacommunities.org/id/district-council/south-lakeland,31/10/2015,Legal Services,External Trading Accounts,,NEWSQUEST MEDIA GROUP LTD,3102566,12/10/2015,52257,190,0,(1) Advert - public notices -,191000,Facilities Advertising
South Lakeland District Council,http://opendatacommunities.org/id/district-council/south-lakeland,31/10/2015,Legal Services,Central Services,http://opendatacommunities.org/def/concept/finance/sercop/objective/102,GATES TRAVEL SERVICE,,05/10/2015,52294,179.4,0,Rail &'Oyster' fare from Ox'holme to,261600,HR Travel & Subsistence
South Lakeland District Council,http://opendatacommunities.org/id/district-council/south-lakeland,31/10/2015,Business Support Community Services,Internal Trading Accounts,,BRIAN ARMISTEAD LTD T/A SINKFALL RECYCLI,4133280,05/10/2015,52348,"1,680.40",0,Green waste tipping - 2015/16,391110,Construction Buildings Construction
South Lakeland District Council,http://opendatacommunities.org/id/district-council/south-lakeland,31/10/2015,Business Support Community Services,Internal Trading Accounts,,CUMBRIA WASTE RECYCLING LTD,3162439,14/10/2015,52357,"1,034.56",0,Skip emptying at Ecclerigg & Ulverston,182012,Environment Waste Management Recycling
South Lakeland District Council,http://opendatacommunities.org/id/district-council/south-lakeland,31/10/2015,Business Support Community Services,Internal Trading Accounts,,CUMBRIA WASTE RECYCLING LTD,3162439,14/10/2015,52358,216,0,Skip emptying at Ecclerigg & Ulverston,182012,Environment Waste Management Recycling
South Lakeland District Council,http://opendatacommunities.org/id/district-council/south-lakeland,31/10/2015,Development Implementation,Cultural Environmental Regulatory & Planning Services,http://opendatacommunities.org/def/concept/finance/sercop/objective/104,IBI Group (UK) Ltd (t/a IBI Group),2443374,26/10/2015,52419,"1,600.00",0,Kendal Public Realm Framework - 2,150000,Consultancy
South Lakeland District Council,http://opendatacommunities.org/id/district-council/south-lakeland,31/10/2015,Business Support Community Services,Internal Trading Accounts,,TAYLOR ENGINEERING & FABRICATIONS LTD,4989359,14/10/2015,52454,94.55,0,Bushes,391200,Construction Engineering
South Lakeland District Council,http://opendatacommunities.org/id/district-council/south-lakeland,31/10/2015,Policy & Partnerships,Cultural Environmental Regulatory & Planning Services,http://opendatacommunities.org/def/concept/finance/sercop/objective/104,Kendal Mountain Festival CIC,6597071,12/10/2015,52513,"3,500.00",0,Arts and Events Funding - 2015-17 - year,291400,Arts & Leisure Services Sport & Fitness
South Lakeland District Council,http://opendatacommunities.org/id/district-council/south-lakeland,31/10/2015,Policy & Partnerships,Cultural Environmental Regulatory & Planning Services,http://opendatacommunities.org/def/concept/finance/sercop/objective/104,Kendal Mountain Festival CIC,6597071,12/10/2015,52513,"3,500.00",0,Arts and Events Funding - 2015-17 - year,291400,Arts & Leisure Services Sport & Fitness
South Lakeland District Council,http://opendatacommunities.org/id/district-council/south-lakeland,31/10/2015,Coronation Hall,Cultural Environmental Regulatory & Planning Services,http://opendatacommunities.org/def/concept/finance/sercop/objective/104,YPO,,07/10/2015,52557,136.33,0,Taski Sprint - hard surface cleaner 5,152000,Consultancy Procurement
South Lakeland District Council,http://opendatacommunities.org/id/district-council/south-lakeland,31/10/2015,Policy & Partnerships,Central Services,http://opendatacommunities.org/def/concept/finance/sercop/objective/102,CHARTERED MANAGEMENT INSTITUTE,RC000778,28/09/2015,52578,164,0,Chartered Management Institute,202100,Financial Services Subscriptions
South Lakeland District Council,http://opendatacommunities.org/id/district-council/south-lakeland,31/10/2015,Policy & Partnerships,Central Services,http://opendatacommunities.org/def/concept/finance/sercop/objective/102,CHARTERED MANAGEMENT INSTITUTE,RC000778,28/09/2015,52579,164,0,Chartered Management Institue,202100,Financial Services Subscriptions
South Lakeland District Council,http://opendatacommunities.org/id/district-council/south-lakeland,31/10/2015,Social Enterprise Admin,Cultural Environmental Regulatory & Planning Services,http://opendatacommunities.org/def/concept/finance/sercop/objective/104,TECHNIJET LTD,2776601,07/10/2015,52584,"2,480.00",0,1 x Interpump 200/15 Industrial cold,139999,Cleaning & Janitorial Not Elsewhere Clas
South Lakeland District Council,http://opendatacommunities.org/id/district-council/south-lakeland,31/10/2015,Business Support Community Services,Internal Trading Accounts,,H WICKS (LINDAL) LTD,754590,14/10/2015,52616,"1,853.64",0,"Gate fees, handling & baling of",182012,Environment Waste Management Recycling
South Lakeland District Council,http://opendatacommunities.org/id/district-council/south-lakeland,31/10/2015,Coronation Hall,Cultural Environmental Regulatory & Planning Services,http://opendatacommunities.org/def/concept/finance/sercop/objective/104,SETON,4065947,19/10/2015,52619,21.68,0,FAO Lily as per your quotation 24185057,221000,Health & Safety� Products
South Lakeland District Council,http://opendatacommunities.org/id/district-council/south-lakeland,31/10/2015,Printing Section,Central Services,http://opendatacommunities.org/def/concept/finance/sercop/objective/102,STANDING STONE DRAWING OFFICE SUPPLIES,5128817,07/10/2015,52622,190.46,0,Large Roll of A0 Plotter paper 90gsm,341100,Stationery Sundries
South Lakeland District Council,http://opendatacommunities.org/id/district-council/south-lakeland,31/10/2015,Development Implementation,Cultural Environmental Regulatory & Planning Services,http://opendatacommunities.org/def/concept/finance/sercop/objective/104,THE PLAIN CREATIVE AGENCY LTD,6867950,12/10/2015,52624,560,0,Visual Design work/branding for The,191000,Facilities Advertising
South Lakeland District Council,http://opendatacommunities.org/id/district-council/south-lakeland,31/10/2015,Business Support Community Services,Central Services,http://opendatacommunities.org/def/concept/finance/sercop/objective/102,CRAEMER UK LTD,2574815,07/10/2015,52628,"11,934.00",0,"240L Plastic Wheeld Bin, Fully Compliant",182012,Environment Waste Management Recycling
South Lakeland District Council,http://opendatacommunities.org/id/district-council/south-lakeland,31/10/2015,Business Support Community Services,Internal Trading Accounts,,COMPASS COMPONENTS,,07/10/2015,52633,197.38,0,Consumables 01/04/15 - 31/03/16,101400,Building General Materials
South Lakeland District Council,http://opendatacommunities.org/id/district-council/south-lakeland,31/10/2015,Business Support Community Services,Internal Trading Accounts,,DENNIS EAGLE LTD,3794455,05/10/2015,52668,175.14,0,Dowel,381300,Vehicle Mgt Industrial
South Lakeland District Council,http://opendatacommunities.org/id/district-council/south-lakeland,31/10/2015,Business Support Community Services,Housing Services,http://opendatacommunities.org/def/concept/finance/sercop/objective/108,BUNZL CLEANING & HYGIENE SUPPLIES,2902454,05/10/2015,52688,26.57,0,Washing Up Liquid (5 Litre),131011,Cleaning & Janitorial Cleaning Materials
South Lakeland District Council,http://opendatacommunities.org/id/district-council/south-lakeland,31/10/2015,Business Support Community Services,Internal Trading Accounts,,TRAPEZE,,14/10/2015,52717,"2,970.48",0,Fleetmaster support 01/11/15 - 31/10/16,271600,ICT Software Customised & Bespoke
South Lakeland District Council,http://opendatacommunities.org/id/district-council/south-lakeland,31/10/2015,Social Enterprise Admin,Highways & Transport Services,http://opendatacommunities.org/def/concept/finance/sercop/objective/107,METRIC GROUP LIMITED,2560839,07/10/2015,52718,850,0,Supply and install 1 x Elite LS Pay and,359999,Street & Traffic Not Elsewhere Classifie
South Lakeland District Council,http://opendatacommunities.org/id/district-council/south-lakeland,31/10/2015,Coronation Hall,Cultural Environmental Regulatory & Planning Services,http://opendatacommunities.org/def/concept/finance/sercop/objective/104,Alistair Bromhead,7028451,14/10/2015,52720,350,0,To deliver an Evac+300h evacuation chair,261500,HR Training & Conferences
South Lakeland District Council,http://opendatacommunities.org/id/district-council/south-lakeland,31/10/2015,Printing Section,Central Services,http://opendatacommunities.org/def/concept/finance/sercop/objective/102,ROSEFOX PAPER LIMITED,1655083,05/10/2015,52721,306.88,0,170gsm Recycled paper for Collection,341000,Stationery Paper
South Lakeland District Council,http://opendatacommunities.org/id/district-council/south-lakeland,31/10/2015,Printing Section,Central Services,http://opendatacommunities.org/def/concept/finance/sercop/objective/102,ROSEFOX PAPER LIMITED,1655083,07/10/2015,52722,139.76,0,Mat 170gsm A3,341000,Stationery Paper
South Lakeland District Council,http://opendatacommunities.org/id/district-council/south-lakeland,31/10/2015,Printing Section,Central Services,http://opendatacommunities.org/def/concept/finance/sercop/objective/102,ROSEFOX PAPER LIMITED,1655083,21/10/2015,52723,193.41,0,Mat 170gsm A3,341000,Stationery Paper
South Lakeland District Council,http://opendatacommunities.org/id/district-council/south-lakeland,31/10/2015,Social Enterprise Admin,Cultural Environmental Regulatory & Planning Services,http://opendatacommunities.org/def/concept/finance/sercop/objective/104,AMENITY TREE CARE LTD,4141279,05/10/2015,52728,620,0,"Kent Street, Kendal, Crown reduce two",241600,Horticultural Trees & Shrubs
South Lakeland District Council,http://opendatacommunities.org/id/district-council/south-lakeland,31/10/2015,Development Implementation,Central Services,http://opendatacommunities.org/def/concept/finance/sercop/objective/102,ANTHONY COLLINS SOLICITORS,OC313432,05/10/2015,52729,"4,535.00",0,Legal Advice,281300,Legal Services Legal Opinion
South Lakeland District Council,http://opendatacommunities.org/id/district-council/south-lakeland,31/10/2015,Business Support Community Services,Housing Services,http://opendatacommunities.org/def/concept/finance/sercop/objective/108,James Andrews Recruitment Solutions,6834852,19/10/2015,52732,906.25,0,Payment for- Housing,261400,HR Temporary & Agency Staff
South Lakeland District Council,http://opendatacommunities.org/id/district-council/south-lakeland,31/10/2015,Development Implementation,Cultural Environmental Regulatory & Planning Services,http://opendatacommunities.org/def/concept/finance/sercop/objective/104,HBN Restaurants Ltd,4184849,01/10/2015,52741,550,0,Participation in the Kendal Courtesy,201700,Financial Services Grants
South Lakeland District Council,http://opendatacommunities.org/id/district-council/south-lakeland,31/10/2015,Environment and Housing,Housing,http://opendatacommunities.org/def/concept/finance/sercop/objective/108,C W COX & SONS (KENDAL) LTD,3498844,05/10/2015,52742,"4,123.92",0,"Hayclose Road, Kendal,",101000,Building Bathrooms
South Lakeland District Council,http://opendatacommunities.org/id/district-council/south-lakeland,31/10/2015,Business Support Community Services,Cultural Environmental Regulatory & Planning Services,http://opendatacommunities.org/def/concept/finance/sercop/objective/104,MILNTHORPE KENNELS & CATTERY,8932302,05/10/2015,52744,440.81,0,Vets fees 2015-16,181500,Environment Animal Services
South Lakeland District Council,http://opendatacommunities.org/id/district-council/south-lakeland,31/10/2015,Social Enterprise Admin,Cultural Environmental Regulatory & Planning Services,http://opendatacommunities.org/def/concept/finance/sercop/objective/104,THE PERFORMING RIGHTS SOCIETY,,07/10/2015,52745,"1,881.27",0,Performing rights fee for period ending,202100,Financial Services Subscriptions
South Lakeland District Council,http://opendatacommunities.org/id/district-council/south-lakeland,31/10/2015,Business Support Community Services,Internal Trading Accounts,,LAKELAND TRUCKS LTD,2464423,05/10/2015,52746,572.62,0,Repair AdBlue fault,381400,Vehicle Mgt Maintenance
South Lakeland District Council,http://opendatacommunities.org/id/district-council/south-lakeland,31/10/2015,Business Support Community Services,Internal Trading Accounts,,QPS PLASTIC LTD,,05/10/2015,52747,102.75,0,Curtains,109999,Building Not Elsewhere Classified
South Lakeland District Council,http://opendatacommunities.org/id/district-council/south-lakeland,31/10/2015,Business Support Community Services,Internal Trading Accounts,,Preston Trade Parts Specialists,,05/10/2015,52748,94.07,0,Lamps,381400,Vehicle Mgt Maintenance
South Lakeland District Council,http://opendatacommunities.org/id/district-council/south-lakeland,31/10/2015,Electoral Services,Central Services,http://opendatacommunities.org/def/concept/finance/sercop/objective/102,THOMSON REUTERS (PROFESSIONAL) UK LTD,1679046,05/10/2015,52749,185,0,Schofields Election Law Issue 25,202100,Financial Services Subscriptions
South Lakeland District Council,http://opendatacommunities.org/id/district-council/south-lakeland,31/10/2015,Business Support Community Services,Internal Trading Accounts,,INNOVATIVE SAFETY SYSTEMS LTD,6875015,05/10/2015,52750,352.58,0,Camera,192200,Facilities Security
South Lakeland District Council,http://opendatacommunities.org/id/district-council/south-lakeland,31/10/2015,Business Support Community Services,Internal Trading Accounts,,BRIAN ARMISTEAD LTD T/A SINKFALL RECYCLI,4133280,05/10/2015,52751,"1,248.80",0,Green waste tipping - 2015/16,391110,Construction Buildings Construction
South Lakeland District Council,http://opendatacommunities.org/id/district-council/south-lakeland,31/10/2015,Business Support Community Services,Internal Trading Accounts,,BERENDSEN UK LTD,228604,05/10/2015,52752,180.38,0,Workwear hire 29/03/15 - 28/03/16,161000,Domestic Goods Commercial
South Lakeland District Council,http://opendatacommunities.org/id/district-council/south-lakeland,31/10/2015,Development Implementation,SLDC as Agent,,SCK WEB WORKS LTD,6994365,05/10/2015,52753,115,0,Design work on Japan Forum Website,271515,ICT Website Development
South Lakeland District Council,http://opendatacommunities.org/id/district-council/south-lakeland,31/10/2015,Development Implementation,Cultural Environmental Regulatory & Planning Services,http://opendatacommunities.org/def/concept/finance/sercop/objective/104,SLJ Media,5329473,05/10/2015,52754,192,0,Print of 1000 x brochures for Kendal,191600,Facilities Printing
South Lakeland District Council,http://opendatacommunities.org/id/district-council/south-lakeland,31/10/2015,Development Implementation,Central Services,http://opendatacommunities.org/def/concept/finance/sercop/objective/102,Gatenby Sanderson Ltd - Interim Leadersh,,05/10/2015,52755,"4,096.00",0,6th Interim Asset Manager ,261413,HR- Temporary Staff- Professional
South Lakeland District Council,http://opendatacommunities.org/id/district-council/south-lakeland,31/10/2015,Development Implementation,Cultural Environmental Regulatory & Planning Services,http://opendatacommunities.org/def/concept/finance/sercop/objective/104,Ten Alps Publishing,5495554,21/10/2015,52756,"1,500.00",0,Advert in Global Trader (1 1/2 pages),191000,Facilities Advertising
South Lakeland District Council,http://opendatacommunities.org/id/district-council/south-lakeland,31/10/2015,Social Enterprise Admin,Cultural Environmental Regulatory & Planning Services,http://opendatacommunities.org/def/concept/finance/sercop/objective/104,NORTHGATE VEHICLE HIRE LTD,1434157,05/10/2015,52757,28.8,0,Driver - Transport for,381600,Vehicle Mgt Leasing
South Lakeland District Council,http://opendatacommunities.org/id/district-council/south-lakeland,31/10/2015,Environment and Housing,SLDC as Agent,,TWO CASTLES HOUSING ASSOCIATION LIMITED,IP17663R,05/10/2015,52759,"6,655.77",0,Cumbria Choice Co-Ordinator Costs 15-16,250000,Housing
South Lakeland District Council,http://opendatacommunities.org/id/district-council/south-lakeland,31/10/2015,Environment and Housing,SLDC as Agent,,TWO CASTLES HOUSING ASSOCIATION LIMITED,IP17663R,05/10/2015,52760,"5,960.76",0,Cumbria Choice Co-Ordinator Costs 15-16,250000,Housing
South Lakeland District Council,http://opendatacommunities.org/id/district-council/south-lakeland,31/10/2015,ICT Group,Highways & Transport Services,http://opendatacommunities.org/def/concept/finance/sercop/objective/107,Insight Direct (Uk) Ltd,2579852,05/10/2015,52761,326.67,0,Insight #: 0001399072 Iiyama ProLite,271200,ICT Hardware
South Lakeland District Council,http://opendatacommunities.org/id/district-council/south-lakeland,31/10/2015,Development Implementation,Cultural Environmental Regulatory & Planning Services,http://opendatacommunities.org/def/concept/finance/sercop/objective/104,ORMROD SIGNS LTD,4533430,12/10/2015,52762,170,0,Removal of Wifi Banner and replace with,102400,Building Signage
South Lakeland District Council,http://opendatacommunities.org/id/district-council/south-lakeland,31/10/2015,Business Support Community Services,Internal Trading Accounts,,BRIAN ARMISTEAD LTD T/A SINKFALL RECYCLI,4133280,07/10/2015,52763,"1,192.00",0,Green waste tipping - 2015/16,391110,Construction Buildings Construction
South Lakeland District Council,http://opendatacommunities.org/id/district-council/south-lakeland,31/10/2015,Human Resources,Central Services,http://opendatacommunities.org/def/concept/finance/sercop/objective/102,IOSH SERVICES LTD,1816826,19/10/2015,52764,150,0,MS4.0 PACK/204120 Training Provider,221100,Health & Safety� Maintenance
South Lakeland District Council,http://opendatacommunities.org/id/district-council/south-lakeland,31/10/2015,Social Enterprise Admin,Central Services,http://opendatacommunities.org/def/concept/finance/sercop/objective/102,SIGNS NOW,,05/10/2015,52768,"2,172.72",0,88 300x400mm aluminium composite play,102400,Building Signage
South Lakeland District Council,http://opendatacommunities.org/id/district-council/south-lakeland,31/10/2015,Business Support Community Services,Cultural Environmental Regulatory & Planning Services,http://opendatacommunities.org/def/concept/finance/sercop/objective/104,MILNTHORPE KENNELS & CATTERY,8932302,05/10/2015,52770,"2,541.67",0,Stray Dog Service 2015-16,181500,Environment Animal Services
South Lakeland District Council,http://opendatacommunities.org/id/district-council/south-lakeland,31/10/2015,Democratic Services,SLDC as Agent,,CASTLERIGG CONSULTING,6747285,05/10/2015,52771,"8,200.00",0,Support to the Transformation Challenge,159999,Consultancy Not Elsewhere Classified
South Lakeland District Council,http://opendatacommunities.org/id/district-council/south-lakeland,31/10/2015,Revenues and Benefits,SLDC as Agent,,ROYAL MAIL GROUP PLC,,05/10/2015,52772,"3,669.54",0,2015-2016 Postal Charges a/c 0198123013,301200,Mail Services� Postage
South Lakeland District Council,http://opendatacommunities.org/id/district-council/south-lakeland,31/10/2015,Revenues and Benefits,SLDC as Agent,,ROYAL MAIL GROUP PLC,,05/10/2015,52773,"1,411.17",0,2015-2016 Postal Charges a/c 0198123013,301200,Mail Services� Postage
South Lakeland District Council,http://opendatacommunities.org/id/district-council/south-lakeland,31/10/2015,Revenues and Benefits,Central Services,http://opendatacommunities.org/def/concept/finance/sercop/objective/102,ROYAL MAIL GROUP PLC,,05/10/2015,52774,33.43,0,2015-2016 Postal Charges a/c 0055114000,301200,Mail Services� Postage
South Lakeland District Council,http://opendatacommunities.org/id/district-council/south-lakeland,31/10/2015,Revenues and Benefits,SLDC as Agent,,ROYAL MAIL GROUP PLC,,05/10/2015,52775,"1,391.86",0,2015-2016 Postal Charges a/c 0198123013,301200,Mail Services� Postage
South Lakeland District Council,http://opendatacommunities.org/id/district-council/south-lakeland,31/10/2015,Social Enterprise Admin,Highways & Transport Services,http://opendatacommunities.org/def/concept/finance/sercop/objective/107,CURRENCY TECH LTD,4376601,07/10/2015,52776,670,0,Maintenance contract for CTL-301B and,151200,Consultancy Efficiency
South Lakeland District Council,http://opendatacommunities.org/id/district-council/south-lakeland,31/10/2015,Business Support Community Services,Internal Trading Accounts,,TRAVIS PERKINS TRADING CO LTD,733503,28/10/2015,52779,265.12,0,Board,152200,Consultancy Technical & Feasibility
South Lakeland District Council,http://opendatacommunities.org/id/district-council/south-lakeland,31/10/2015,ICT Group,Cultural Environmental Regulatory & Planning Services,http://opendatacommunities.org/def/concept/finance/sercop/objective/104,Insight Direct (Uk) Ltd,2579852,07/10/2015,52780,699.6,0,Insight #: 0003475222,271200,ICT Hardware
South Lakeland District Council,http://opendatacommunities.org/id/district-council/south-lakeland,31/10/2015,Coronation Hall,Cultural Environmental Regulatory & Planning Services,http://opendatacommunities.org/def/concept/finance/sercop/objective/104,ALEXANDRA PLC,,07/10/2015,52781,16.99,0,"Trousers WL500 - 32"" waist, black, short",141300,Clothing Uniforms
South Lakeland District Council,http://opendatacommunities.org/id/district-council/south-lakeland,31/10/2015,ICT Group,Central Services,http://opendatacommunities.org/def/concept/finance/sercop/objective/102,MLL Telecom Ltd,2657917,28/10/2015,52782,"5,350.25",0,"New MPLS install cost, South Lakeland",271700,ICT Telecommunications Fixed
South Lakeland District Council,http://opendatacommunities.org/id/district-council/south-lakeland,31/10/2015,Social Enterprise Admin,Cultural Environmental Regulatory & Planning Services,http://opendatacommunities.org/def/concept/finance/sercop/objective/104,CAPITA SYMONDS LTD,3173410,07/10/2015,52785,"4,253.20",0,ARBORICULTURE SERVICES,390000,Construction
South Lakeland District Council,http://opendatacommunities.org/id/district-council/south-lakeland,31/10/2015,Coronation Hall,Cultural Environmental Regulatory & Planning Services,http://opendatacommunities.org/def/concept/finance/sercop/objective/104,Ulverston Amateur Operatic Society,,07/10/2015,52786,55,0,Stewards for A Night at the Movies on 18,291300,Arts & Leisure Services Performing Arts
South Lakeland District Council,http://opendatacommunities.org/id/district-council/south-lakeland,31/10/2015,Coronation Hall,External Trading Accounts,,SHORROCK TRICHEM,4179799,07/10/2015,52787,388.04,0,Toilet rolls - mini jumbo 2 ply 12 pack,131312,Cleaning & Janitorial Washroom Sanitat
South Lakeland District Council,http://opendatacommunities.org/id/district-council/south-lakeland,31/10/2015,Coronation Hall,Cultural Environmental Regulatory & Planning Services,http://opendatacommunities.org/def/concept/finance/sercop/objective/104,SHORROCK TRICHEM,4179799,07/10/2015,52787,63.03,0,Toilet rolls - mini jumbo 2 ply 12 pack,131312,Cleaning & Janitorial Washroom Sanitat
South Lakeland District Council,http://opendatacommunities.org/id/district-council/south-lakeland,31/10/2015,Business Support Community Services,Internal Trading Accounts,,AUTOMOTIVE GLAZING SOLUTIONS,5922870,28/10/2015,52789,100,0,Repair windscreen,381400,Vehicle Mgt Maintenance
South Lakeland District Council,http://opendatacommunities.org/id/district-council/south-lakeland,31/10/2015,Social Enterprise Admin,Cultural Environmental Regulatory & Planning Services,http://opendatacommunities.org/def/concept/finance/sercop/objective/104,RICKERBY LTD,4985069,07/10/2015,52790,21.86,0,Ball hitch adapter plate V50BM12 JAW,381000,Vehicle Mgt Commercial
South Lakeland District Council,http://opendatacommunities.org/id/district-council/south-lakeland,31/10/2015,Social Enterprise Admin,Central Services,http://opendatacommunities.org/def/concept/finance/sercop/objective/102,ADECCO UK LIMITED,593232,07/10/2015,52791,446.21,0,TO SUPPLY 3 MONTH,261400,HR Temporary & Agency Staff
South Lakeland District Council,http://opendatacommunities.org/id/district-council/south-lakeland,31/10/2015,Human Resources,Central Services,http://opendatacommunities.org/def/concept/finance/sercop/objective/102,Omniplex Ltd,,07/10/2015,52792,120,0,support contract,261500,HR Training & Conferences
South Lakeland District Council,http://opendatacommunities.org/id/district-council/south-lakeland,31/10/2015,Legal Services,Central Services,http://opendatacommunities.org/def/concept/finance/sercop/objective/102,NO 5 CHAMBERS,2727465,07/10/2015,52797,"1,200.00",0,FAO JCB,281300,Legal Services Legal Opinion
South Lakeland District Council,http://opendatacommunities.org/id/district-council/south-lakeland,31/10/2015,Social Enterprise Admin,Cultural Environmental Regulatory & Planning Services,http://opendatacommunities.org/def/concept/finance/sercop/objective/104,CUMBRIA COUNTY COUNCIL,,28/10/2015,52801,805.4,0,Footpath closure PROW 536066 between,908000,Public Bodies Council support services
South Lakeland District Council,http://opendatacommunities.org/id/district-council/south-lakeland,31/10/2015,Social Enterprise Admin,Cultural Environmental Regulatory & Planning Services,http://opendatacommunities.org/def/concept/finance/sercop/objective/104,B & J METALS (SKIP HIRE) LTD,4634318,07/10/2015,52802,420,0,Grounds waste disposal - Sandylands Road,182011,Environment Waste Management Consumables
South Lakeland District Council,http://opendatacommunities.org/id/district-council/south-lakeland,31/10/2015,Social Enterprise Admin,Cultural Environmental Regulatory & Planning Services,http://opendatacommunities.org/def/concept/finance/sercop/objective/104,B & J METALS (SKIP HIRE) LTD,4634318,07/10/2015,52802,"2,700.00",0,Grounds waste disposal - Sandylands Road,182011,Environment Waste Management Consumables
South Lakeland District Council,http://opendatacommunities.org/id/district-council/south-lakeland,31/10/2015,Coronation Hall,External Trading Accounts,,Morson International,,21/10/2015,52803,119.28,0,Ulverston Market Hall cleaner to y/e 31,261300,HR Recruitment & Assessment
South Lakeland District Council,http://opendatacommunities.org/id/district-council/south-lakeland,31/10/2015,Social Enterprise Admin,Cultural Environmental Regulatory & Planning Services,http://opendatacommunities.org/def/concept/finance/sercop/objective/104,Cleartrack (EvL) Ltd,3881690,12/10/2015,52804,"6,491.66",0,"Fell four marked trees. Sycamore, Lime,",199999,Facilities Not Elsewhere Classified
South Lakeland District Council,http://opendatacommunities.org/id/district-council/south-lakeland,31/10/2015,Social Enterprise Admin,Cultural Environmental Regulatory & Planning Services,http://opendatacommunities.org/def/concept/finance/sercop/objective/104,Cleartrack (EvL) Ltd,3881690,07/10/2015,52805,"2,332.50",0,"Land adjacent to 100 Greenside, Kendal,",199999,Facilities Not Elsewhere Classified
South Lakeland District Council,http://opendatacommunities.org/id/district-council/south-lakeland,31/10/2015,Social Enterprise Admin,Cultural Environmental Regulatory & Planning Services,http://opendatacommunities.org/def/concept/finance/sercop/objective/104,ROYAL TOWN PLANNING INSTITUTE,,19/10/2015,52806,95,0,ENFOCEMENT COURSE,908999,Public Bodies Not Elsewhere Classified
South Lakeland District Council,http://opendatacommunities.org/id/district-council/south-lakeland,31/10/2015,Human Resources,Central Services,http://opendatacommunities.org/def/concept/finance/sercop/objective/102,HEATH CONSULTANCY,,07/10/2015,52807,"1,142.12",0,Assessments,150000,Consultancy
South Lakeland District Council,http://opendatacommunities.org/id/district-council/south-lakeland,31/10/2015,Human Resources,Central Services,http://opendatacommunities.org/def/concept/finance/sercop/objective/102,The White Paper Conference Company Ltd,3714517,07/10/2015,52808,507,0,training course ,261500,HR Training & Conferences
South Lakeland District Council,http://opendatacommunities.org/id/district-council/south-lakeland,31/10/2015,ICT Group,Central Services,http://opendatacommunities.org/def/concept/finance/sercop/objective/102,BRITISH TELECOMMUNICATIONS PLC (DD),,23/10/2015,52809,"-3,359.25",0,"BT OneBill VP6833370, various services,",279999,ICT Not Elsewhere Classified
South Lakeland District Council,http://opendatacommunities.org/id/district-council/south-lakeland,31/10/2015,Electoral Services,Central Services,http://opendatacommunities.org/def/concept/finance/sercop/objective/102,NEWSQUEST MEDIA GROUP LTD,3102566,07/10/2015,52810,49,0,Advert in Westmorland Gazette 24,191000,Facilities Advertising
South Lakeland District Council,http://opendatacommunities.org/id/district-council/south-lakeland,31/10/2015,Electoral Services,Central Services,http://opendatacommunities.org/def/concept/finance/sercop/objective/102,NEWSQUEST MEDIA GROUP LTD,3102566,07/10/2015,52811,265,0,Advert in Westmorland Gazette 24,191000,Facilities Advertising
South Lakeland District Council,http://opendatacommunities.org/id/district-council/south-lakeland,31/10/2015,Business Support Community Services,Internal Trading Accounts,,FST CONSUMABLES LTD,1342012,14/10/2015,52812,392.4,0,Consumables 01/04/15 - 31/03/16,101600,Building Hand Tools
South Lakeland District Council,http://opendatacommunities.org/id/district-council/south-lakeland,31/10/2015,Kendal Town Hall,Cultural Environmental Regulatory & Planning Services,http://opendatacommunities.org/def/concept/finance/sercop/objective/104,HYGIENE CLEANING SUPPLIES LTD,4753934,07/10/2015,52813,58.8,0,5 boxes of JP07 mini jumbo toilet roll,131011,Cleaning & Janitorial Cleaning Materials
South Lakeland District Council,http://opendatacommunities.org/id/district-council/south-lakeland,31/10/2015,Kendal Town Hall,External Trading Accounts,,HYGIENE CLEANING SUPPLIES LTD,4753934,12/10/2015,52814,73.34,0,5 boxes of JP07 mini jumbo toilet roll,131011,Cleaning & Janitorial Cleaning Materials
South Lakeland District Council,http://opendatacommunities.org/id/district-council/south-lakeland,31/10/2015,Social Enterprise Admin,Highways & Transport Services,http://opendatacommunities.org/def/concept/finance/sercop/objective/107,NORTHGATE VEHICLE HIRE LTD,1434157,07/10/2015,52815,372,0,To continue van hire for 30 days as,381600,Vehicle Mgt Leasing
South Lakeland District Council,http://opendatacommunities.org/id/district-council/south-lakeland,31/10/2015,Social Enterprise Admin,Highways & Transport Services,http://opendatacommunities.org/def/concept/finance/sercop/objective/107,NORTHGATE VEHICLE HIRE LTD,1434157,07/10/2015,52816,372,0,To continue van hire for 30 days as,381600,Vehicle Mgt Leasing
South Lakeland District Council,http://opendatacommunities.org/id/district-council/south-lakeland,31/10/2015,Human Resources,Central Services,http://opendatacommunities.org/def/concept/finance/sercop/objective/102,REDACTIVE MEDIA SALES LTD,3220190,07/10/2015,52817,700,0,Job advert for Senior Policy Planner,261300,HR Recruitment & Assessment
South Lakeland District Council,http://opendatacommunities.org/id/district-council/south-lakeland,31/10/2015,Social Enterprise Admin,Highways & Transport Services,http://opendatacommunities.org/def/concept/finance/sercop/objective/107,BEMROSE BOOTH PARAGON LTD,4891375,19/10/2015,52818,378.75,0,"25,000 Auro self-adhesive pay and",191600,Facilities Printing
South Lakeland District Council,http://opendatacommunities.org/id/district-council/south-lakeland,31/10/2015,Democratic Services,Central Services,http://opendatacommunities.org/def/concept/finance/sercop/objective/102,INSTITUTE OF LICENSING (EVENTS) LTD,5710898,07/10/2015,52820,"1,000.00",0,Taxi Member Traiing - 2 March 2015,202100,Financial Services Subscriptions
South Lakeland District Council,http://opendatacommunities.org/id/district-council/south-lakeland,31/10/2015,Development Implementation,Central Services,http://opendatacommunities.org/def/concept/finance/sercop/objective/102,ADECCO UK LIMITED,593232,12/10/2015,52822,418.2,0,Economic Development Project Officer -,261400,HR Temporary & Agency Staff
South Lakeland District Council,http://opendatacommunities.org/id/district-council/south-lakeland,31/10/2015,Social Enterprise Admin,Cultural Environmental Regulatory & Planning Services,http://opendatacommunities.org/def/concept/finance/sercop/objective/104,ALLSTAR BUSINESS SOLUTIONS LTD (NCR),2631112,01/10/2015,52823,38.36,0,parks fuel,381600,Vehicle Mgt Leasing
South Lakeland District Council,http://opendatacommunities.org/id/district-council/south-lakeland,31/10/2015,Business Support Community Services,Internal Trading Accounts,,VOLVO GROUP UK LTD,2190944,07/10/2015,52824,24.86,0,Filter,381000,Vehicle Mgt Commercial
South Lakeland District Council,http://opendatacommunities.org/id/district-council/south-lakeland,31/10/2015,Business Support Community Services,Environment Regulatory,,Great Green Systems Ltd,6632263,07/10/2015,52825,844.8,0,Replaces order 24352.,381206,Vehicle Mgt Heavy Construction Equip Pur
South Lakeland District Council,http://opendatacommunities.org/id/district-council/south-lakeland,31/10/2015,Business Support Community Services,Internal Trading Accounts,,M G D LTD,,07/10/2015,52826,35,0,MOTs 01/04/15 - 31/03/16,381400,Vehicle Mgt Maintenance
South Lakeland District Council,http://opendatacommunities.org/id/district-council/south-lakeland,31/10/2015,Business Support Community Services,Internal Trading Accounts,,Masterstaff Limited,2777593,07/10/2015,52827,81,0,Agency staff - September 2015,261300,HR Recruitment & Assessment
South Lakeland District Council,http://opendatacommunities.org/id/district-council/south-lakeland,31/10/2015,Business Support Community Services,Internal Trading Accounts,,BOC GASES,337663,07/10/2015,52828,79.08,0,Gas,371100,Utilities Gas
South Lakeland District Council,http://opendatacommunities.org/id/district-council/south-lakeland,31/10/2015,Business Support Community Services,Internal Trading Accounts,,FAUN ZOELLER (UK) LTD,751804,07/10/2015,52829,102.74,0,Coil,381400,Vehicle Mgt Maintenance
South Lakeland District Council,http://opendatacommunities.org/id/district-council/south-lakeland,31/10/2015,Development Implementation,Cultural Environmental Regulatory & Planning Services,http://opendatacommunities.org/def/concept/finance/sercop/objective/104,PS BUSINESS MATTERS,8147185,12/10/2015,52832,"2,000.00",0,Kendal Futures Programme Support,151900,Consultancy Management
South Lakeland District Council,http://opendatacommunities.org/id/district-council/south-lakeland,31/10/2015,Social Enterprise Admin,Central Services,http://opendatacommunities.org/def/concept/finance/sercop/objective/102,ADECCO UK LIMITED,593232,07/10/2015,52833,446.21,0,TO SUPPLY 3 MONTH,261400,HR Temporary & Agency Staff
South Lakeland District Council,http://opendatacommunities.org/id/district-council/south-lakeland,31/10/2015,Development Implementation,Central Services,http://opendatacommunities.org/def/concept/finance/sercop/objective/102,ADECCO UK LIMITED,593232,12/10/2015,52834,617.74,0,Economic Project Officer - ,261400,HR Temporary & Agency Staff
South Lakeland District Council,http://opendatacommunities.org/id/district-council/south-lakeland,31/10/2015,Development Implementation,Central Services,http://opendatacommunities.org/def/concept/finance/sercop/objective/102,ADECCO UK LIMITED,593232,12/10/2015,52835,221.4,0,Economic Development Project Officer -,261400,HR Temporary & Agency Staff
South Lakeland District Council,http://opendatacommunities.org/id/district-council/south-lakeland,31/10/2015,Printing Section,Central Services,http://opendatacommunities.org/def/concept/finance/sercop/objective/102,ADECCO UK LIMITED,593232,12/10/2015,52836,289.59,0,10 Weeks @ 37 hours per week ,261400,HR Temporary & Agency Staff
South Lakeland District Council,http://opendatacommunities.org/id/district-council/south-lakeland,31/10/2015,Environment and Housing,Housing Services,http://opendatacommunities.org/def/concept/finance/sercop/objective/108,National Landlords Association,4601987,07/10/2015,52838,130,0,Membership payment for NLA 4/11/15 to,159999,Consultancy Not Elsewhere Classified
South Lakeland District Council,http://opendatacommunities.org/id/district-council/south-lakeland,31/10/2015,Business Support Community Services,Internal Trading Accounts,,BPI RECYCLED PRODUCTS,350729,14/10/2015,52840,"5,259.41",0,Black liners - 455x785x990 50/F 400/PK,182013,Environment Waste Mgt Waste Collection
South Lakeland District Council,http://opendatacommunities.org/id/district-council/south-lakeland,31/10/2015,Social Enterprise Admin,Cultural Environmental Regulatory & Planning Services,http://opendatacommunities.org/def/concept/finance/sercop/objective/104,NEWSQUEST MEDIA GROUP LTD,3102566,07/10/2015,52841,167,0,PUBLIC NOTICES FOR PLANNING 1 APRIL - 31,191000,Facilities Advertising
South Lakeland District Council,http://opendatacommunities.org/id/district-council/south-lakeland,31/10/2015,Development Strategy,Cultural Environmental Regulatory & Planning Services,http://opendatacommunities.org/def/concept/finance/sercop/objective/104,Hallgarth Community Centre Mgmt Committe,,12/10/2015,52842,25,0,Hire of Hallgarth Community Hall for,202100,Financial Services Subscriptions
South Lakeland District Council,http://opendatacommunities.org/id/district-council/south-lakeland,31/10/2015,Coronation Hall,Cultural Environmental Regulatory & Planning Services,http://opendatacommunities.org/def/concept/finance/sercop/objective/104,ST JOHN AMBULANCE CUMBRIA,,07/10/2015,52843,52.8,0,For the attention of KR,311600,Healthcare Services
South Lakeland District Council,http://opendatacommunities.org/id/district-council/south-lakeland,31/10/2015,Legal Services,Internal Trading Accounts,,PENNINGTONS (KENDAL) LIMITED,434649,12/10/2015,52844,"2,500.00",0,Annual charge from April 2015 to March,182013,Environment Waste Mgt Waste Collection
South Lakeland District Council,http://opendatacommunities.org/id/district-council/south-lakeland,31/10/2015,ICT Group,Central Services,http://opendatacommunities.org/def/concept/finance/sercop/objective/102,MLL Telecom Ltd,2657917,19/10/2015,52845,"1,273.25",0,"New MPLS install cost, South Lakeland",271700,ICT Telecommunications Fixed
South Lakeland District Council,http://opendatacommunities.org/id/district-council/south-lakeland,31/10/2015,Coronation Hall,Cultural Environmental Regulatory & Planning Services,http://opendatacommunities.org/def/concept/finance/sercop/objective/104,SETON,4065947,19/10/2015,52846,58.77,0,FAO Lily as per your quotation 24185057,221000,Health & Safety� Products
South Lakeland District Council,http://opendatacommunities.org/id/district-council/south-lakeland,31/10/2015,Environment and Housing,Housing Services,http://opendatacommunities.org/def/concept/finance/sercop/objective/108,CHARTERED INSTITUTE OF HOUSING,,07/10/2015,52847,"2,300.00",0,Level 5 Professional Diploma in Housing,202100,Financial Services Subscriptions
South Lakeland District Council,http://opendatacommunities.org/id/district-council/south-lakeland,31/10/2015,ICT Group,Central Services,http://opendatacommunities.org/def/concept/finance/sercop/objective/102,Insight Direct (Uk) Ltd,2579852,21/10/2015,52848,"25,200.00",0,Managed Backup and DR Contract - 3yr,271200,ICT Hardware
South Lakeland District Council,http://opendatacommunities.org/id/district-council/south-lakeland,31/10/2015,ICT Group,Central Services,http://opendatacommunities.org/def/concept/finance/sercop/objective/102,Insight Direct (Uk) Ltd,2579852,07/10/2015,52849,29.38,0,2 x Kingston DDR3 - 4 GB - SO-DIMM,271200,ICT Hardware
South Lakeland District Council,http://opendatacommunities.org/id/district-council/south-lakeland,31/10/2015,ICT Group,Central Services,http://opendatacommunities.org/def/concept/finance/sercop/objective/102,Insight Direct (Uk) Ltd,2579852,07/10/2015,52850,106.07,0,Iiyama ProLite B2280HS-1 - LED monitor -,271200,ICT Hardware
South Lakeland District Council,http://opendatacommunities.org/id/district-council/south-lakeland,31/10/2015,Social Enterprise Admin,Highways & Transport Services,http://opendatacommunities.org/def/concept/finance/sercop/objective/107,CPC,,07/10/2015,52851,51.33,0,"Wenger swiss gear 68374001 Gigabyte 15""",271200,ICT Hardware
South Lakeland District Council,http://opendatacommunities.org/id/district-council/south-lakeland,31/10/2015,Development Management,Cultural Environmental Regulatory & Planning Services,http://opendatacommunities.org/def/concept/finance/sercop/objective/104,BLEASDALE WAND LTD,4982503,07/10/2015,52852,315,0,Checking of Structural work under Part a,391200,Construction Engineering
South Lakeland District Council,http://opendatacommunities.org/id/district-council/south-lakeland,31/10/2015,Environment and Housing,Housing,http://opendatacommunities.org/def/concept/finance/sercop/objective/108,ENVIRONMENT & HOUSING GRANTS,,07/10/2015,52853,"5,955.84",0,"Lyth, LA8 8DL",201700,Financial Services Grants
South Lakeland District Council,http://opendatacommunities.org/id/district-council/south-lakeland,31/10/2015,Environment and Housing,Housing,http://opendatacommunities.org/def/concept/finance/sercop/objective/108,ENVIRONMENT & HOUSING GRANTS,,07/10/2015,52854,"57,600.00",0,"Beck Nook, Staveley,",201700,Financial Services Grants
South Lakeland District Council,http://opendatacommunities.org/id/district-council/south-lakeland,31/10/2015,Financial Services,Central Services,http://opendatacommunities.org/def/concept/finance/sercop/objective/102,KING & SHAXSON LTD,869780,07/10/2015,52856,151.74,0,Custodian Fees 15/16,209999,Financial Services Not Elsewhere Classif
South Lakeland District Council,http://opendatacommunities.org/id/district-council/south-lakeland,31/10/2015,Revenues and Benefits,Central Services,http://opendatacommunities.org/def/concept/finance/sercop/objective/102,JACOBS,,07/10/2015,52857,310,0,2015-2016 Vat only,152200,Consultancy Technical & Feasibility
South Lakeland District Council,http://opendatacommunities.org/id/district-council/south-lakeland,31/10/2015,Social Enterprise Admin,Highways & Transport Services,http://opendatacommunities.org/def/concept/finance/sercop/objective/107,METRIC GROUP LIMITED,2560839,12/10/2015,52863,693,0,Web hosting and web tariff editor for 66,359999,Street & Traffic Not Elsewhere Classifie
South Lakeland District Council,http://opendatacommunities.org/id/district-council/south-lakeland,31/10/2015,Business Support Community Services,Internal Trading Accounts,,A & W COMMERCIALS LTD,2630625,14/10/2015,52864,255.08,0,Hose,381400,Vehicle Mgt Maintenance
South Lakeland District Council,http://opendatacommunities.org/id/district-council/south-lakeland,31/10/2015,Business Support Community Services,Internal Trading Accounts,,BRIAN ARMISTEAD LTD T/A SINKFALL RECYCLI,4133280,14/10/2015,52865,"1,294.80",0,Green waste tipping - 2015/16,391110,Construction Buildings Construction
South Lakeland District Council,http://opendatacommunities.org/id/district-council/south-lakeland,31/10/2015,Business Support Community Services,Housing Services,http://opendatacommunities.org/def/concept/finance/sercop/objective/108,Landlord,,07/10/2015,52867,800,0,Monthly rent ,250000,Housing
South Lakeland District Council,http://opendatacommunities.org/id/district-council/south-lakeland,31/10/2015,Business Support Community Services,Housing Services,http://opendatacommunities.org/def/concept/finance/sercop/objective/108,Landlord,,07/10/2015,52868,520,0,Monthly rent ,202000,Financial Services Rents
South Lakeland District Council,http://opendatacommunities.org/id/district-council/south-lakeland,31/10/2015,Business Support Community Services,Housing Services,http://opendatacommunities.org/def/concept/finance/sercop/objective/108,Landlord,,07/10/2015,52869,500,0,Monthly rent ,202000,Financial Services Rents
South Lakeland District Council,http://opendatacommunities.org/id/district-council/south-lakeland,31/10/2015,Business Support Community Services,Housing Services,http://opendatacommunities.org/def/concept/finance/sercop/objective/108,James Andrews Recruitment Solutions,6834852,12/10/2015,52870,937.5,0,Payment for - Housing,261400,HR Temporary & Agency Staff
South Lakeland District Council,http://opendatacommunities.org/id/district-council/south-lakeland,31/10/2015,Development Implementation,Cultural Environmental Regulatory & Planning Services,http://opendatacommunities.org/def/concept/finance/sercop/objective/104,Made You Look!,,12/10/2015,52871,530,0,Visual Display Training.  Mini Taster,291000,Arts & Leisure Services Events
South Lakeland District Council,http://opendatacommunities.org/id/district-council/south-lakeland,31/10/2015,Business Support Community Services,Housing Services,http://opendatacommunities.org/def/concept/finance/sercop/objective/108,Mint Homes,8345036,07/10/2015,52873,365,0,"Work carried out at 3 Fellside Court,",202000,Financial Services Rents
South Lakeland District Council,http://opendatacommunities.org/id/district-council/south-lakeland,31/10/2015,Development Implementation,Planning and Development,,NPS NORTH WEST LTD,6614601,12/10/2015,52874,"21,875.00",0,"Waterhead Improvement Fees (1,2 & 3",391110,Construction Buildings Construction
South Lakeland District Council,http://opendatacommunities.org/id/district-council/south-lakeland,31/10/2015,Social Enterprise Admin,Transport,http://opendatacommunities.org/def/concept/finance/sercop/objective/107,NPS NORTH WEST LTD,6614601,12/10/2015,52875,"2,500.00",0,To provide an estimate for the,391110,Construction Buildings Construction
South Lakeland District Council,http://opendatacommunities.org/id/district-council/south-lakeland,31/10/2015,Development Implementation,Central Services,http://opendatacommunities.org/def/concept/finance/sercop/objective/102,NPS NORTH WEST LTD,6614601,12/10/2015,52876,"4,496.00",0,Age Concern NPS fit out Project,391110,Construction Buildings Construction
South Lakeland District Council,http://opendatacommunities.org/id/district-council/south-lakeland,31/10/2015,Development Implementation,Central Services,http://opendatacommunities.org/def/concept/finance/sercop/objective/102,NPS NORTH WEST LTD,6614601,12/10/2015,52877,625,0,UTC Office Refurb Site Investigations &,391110,Construction Buildings Construction
South Lakeland District Council,http://opendatacommunities.org/id/district-council/south-lakeland,31/10/2015,Social Enterprise Admin,Culture and Related Serv,http://opendatacommunities.org/def/concept/finance/sercop/objective/104,NPS NORTH WEST LTD,6614601,12/10/2015,52878,"10,864.00",0,Structural Engineer including site visit,391110,Construction Buildings Construction
South Lakeland District Council,http://opendatacommunities.org/id/district-council/south-lakeland,31/10/2015,Development Implementation,Cultural Environmental Regulatory & Planning Services,http://opendatacommunities.org/def/concept/finance/sercop/objective/104,NPS NORTH WEST LTD,6614601,07/10/2015,52879,500,0,Work to Terminate CCTV Power Points,391110,Construction Buildings Construction
South Lakeland District Council,http://opendatacommunities.org/id/district-council/south-lakeland,31/10/2015,Development Implementation,Central Services,http://opendatacommunities.org/def/concept/finance/sercop/objective/102,NPS NORTH WEST LTD,6614601,12/10/2015,52880,"38,333.33",0,Professional Property Services for,391110,Construction Buildings Construction
South Lakeland District Council,http://opendatacommunities.org/id/district-council/south-lakeland,31/10/2015,Policy & Partnerships,Cultural Environmental Regulatory & Planning Services,http://opendatacommunities.org/def/concept/finance/sercop/objective/104,PENNINGTON PARISH COUNCIL,,28/10/2015,52882,250,0,VC Event - Food for the Guests - Event,908000,Public Bodies Council support services
South Lakeland District Council,http://opendatacommunities.org/id/district-council/south-lakeland,31/10/2015,Social Enterprise Admin,Cultural Environmental Regulatory & Planning Services,http://opendatacommunities.org/def/concept/finance/sercop/objective/104,TECHNIJET LTD,2776601,12/10/2015,52886,128.56,0,Service report for19750 for the HDS745,139999,Cleaning & Janitorial Not Elsewhere Clas
South Lakeland District Council,http://opendatacommunities.org/id/district-council/south-lakeland,31/10/2015,Social Enterprise Admin,Cultural Environmental Regulatory & Planning Services,http://opendatacommunities.org/def/concept/finance/sercop/objective/104,TECHNIJET LTD,2776601,12/10/2015,52887,93.63,0,Service report for19750 for the HDS745,139999,Cleaning & Janitorial Not Elsewhere Clas
South Lakeland District Council,http://opendatacommunities.org/id/district-council/south-lakeland,31/10/2015,Development Implementation,Central Services,http://opendatacommunities.org/def/concept/finance/sercop/objective/102,NPS NORTH WEST LTD,6614601,12/10/2015,52889,"3,881.81",0,UTC Office Refurb Site Investigations &,391110,Construction Buildings Construction
South Lakeland District Council,http://opendatacommunities.org/id/district-council/south-lakeland,31/10/2015,Business Support Community Services,Cultural Environmental Regulatory & Planning Services,http://opendatacommunities.org/def/concept/finance/sercop/objective/104,Lakes Arts Festivals Ltd,8320981,12/10/2015,52890,"5,000.00",0,Funding contribution towards Lakes,291000,Arts & Leisure Services Events
South Lakeland District Council,http://opendatacommunities.org/id/district-council/south-lakeland,31/10/2015,Development Implementation,Cultural Environmental Regulatory & Planning Services,http://opendatacommunities.org/def/concept/finance/sercop/objective/104,Smatt's Duo Cafe,,12/10/2015,52891,55,0,Catering for Business Hub Event,111200,Catering Food & Beverages
South Lakeland District Council,http://opendatacommunities.org/id/district-council/south-lakeland,31/10/2015,Revenues and Benefits,Central Services,http://opendatacommunities.org/def/concept/finance/sercop/objective/102,BADENOCH & CLARK,1356186,12/10/2015,52892,533.4,0,DC May 2015,261300,HR Recruitment & Assessment
South Lakeland District Council,http://opendatacommunities.org/id/district-council/south-lakeland,31/10/2015,Social Enterprise Admin,SLDC as Agent,,PAY BY PHONE (PAYPOINT),,21/10/2015,52893,176.23,0,Pay-by-phone charges from 1 April 2015,351400,Street & Traffic Traffic Control
South Lakeland District Council,http://opendatacommunities.org/id/district-council/south-lakeland,31/10/2015,Lake Wardens,Cultural Environmental Regulatory & Planning Services,http://opendatacommunities.org/def/concept/finance/sercop/objective/104,VODAFONE LTD (PAGING),,12/10/2015,52894,146.61,0,Annual Rental of Lake Wardens Emergency,271800,ICT Telecommunications Mobile
South Lakeland District Council,http://opendatacommunities.org/id/district-council/south-lakeland,31/10/2015,Social Enterprise Admin,Cultural Environmental Regulatory & Planning Services,http://opendatacommunities.org/def/concept/finance/sercop/objective/104,NEWSQUEST MEDIA GROUP LTD,3102566,12/10/2015,52895,131,0,PUBLIC NOTICES FOR PLANNING 1 APRIL - 31,191000,Facilities Advertising
South Lakeland District Council,http://opendatacommunities.org/id/district-council/south-lakeland,31/10/2015,ICT Group,Central Services,http://opendatacommunities.org/def/concept/finance/sercop/objective/102,Insight Direct (Uk) Ltd,2579852,12/10/2015,52896,129.4,0,2 x Kingston DDR3 - 4 GB - SO-DIMM,271200,ICT Hardware
South Lakeland District Council,http://opendatacommunities.org/id/district-council/south-lakeland,31/10/2015,Business Support Community Services,Housing Services,http://opendatacommunities.org/def/concept/finance/sercop/objective/108,KENDAL SECURITY CENTRE LTD,3179893,12/10/2015,52897,85,0,Replacement lock for the parking post at,192212,Facilities Security Equipment
South Lakeland District Council,http://opendatacommunities.org/id/district-council/south-lakeland,31/10/2015,Social Enterprise Admin,Highways & Transport Services,http://opendatacommunities.org/def/concept/finance/sercop/objective/107,Masterstaff Limited,2777593,12/10/2015,52898,455.1,0,Cover for cleaner in Westmorland SC car,261300,HR Recruitment & Assessment
South Lakeland District Council,http://opendatacommunities.org/id/district-council/south-lakeland,31/10/2015,Human Resources,Central Services,http://opendatacommunities.org/def/concept/finance/sercop/objective/102,FLORENCE MADDEN,,12/10/2015,52901,"3,354.80",0,"Effective communicating using NLP 22nd,",999999,Unclassifiable
South Lakeland District Council,http://opendatacommunities.org/id/district-council/south-lakeland,31/10/2015,Development Implementation,Cultural Environmental Regulatory & Planning Services,http://opendatacommunities.org/def/concept/finance/sercop/objective/104,THE PLAIN CREATIVE AGENCY LTD,6867950,21/10/2015,52902,70,0,Expo Web Banner,191000,Facilities Advertising
South Lakeland District Council,http://opendatacommunities.org/id/district-council/south-lakeland,31/10/2015,Development Implementation,SLDC as Agent,,J-TOURISM INC.,,29/10/2015,52903,"4,800.00",0,Japan Forum Representation Fees Oct 15 -,191800,Facilities Public Relations & Image
South Lakeland District Council,http://opendatacommunities.org/id/district-council/south-lakeland,31/10/2015,Business Support Community Services,Cultural Environmental Regulatory & Planning Services,http://opendatacommunities.org/def/concept/finance/sercop/objective/104,INTELLIGENT DATA SYSTEMS (UK) LTD,5148878,12/10/2015,52904,46,0,IDS Checks for Taxi Drivers,271510,ICT Application Service Provision
South Lakeland District Council,http://opendatacommunities.org/id/district-council/south-lakeland,31/10/2015,Social Enterprise Admin,Cultural Environmental Regulatory & Planning Services,http://opendatacommunities.org/def/concept/finance/sercop/objective/104,T Sumner Smith Ltd,4092213,12/10/2015,52905,"9,950.00",0,The Assessment of Grounds Maintenance,391500,Works- Consultancy
South Lakeland District Council,http://opendatacommunities.org/id/district-council/south-lakeland,31/10/2015,Development Implementation,Central Services,http://opendatacommunities.org/def/concept/finance/sercop/objective/102,NPS NORTH WEST LTD,6614601,12/10/2015,52906,"38,333.33",0,Professional Property Services for,391110,Construction Buildings Construction
South Lakeland District Council,http://opendatacommunities.org/id/district-council/south-lakeland,31/10/2015,Democratic Services,Central Services,http://opendatacommunities.org/def/concept/finance/sercop/objective/102,NORTH WEST EMPLOYERS,,12/10/2015,52907,526.93,0,Effective Surgeries and Managing,261500,HR Training & Conferences
South Lakeland District Council,http://opendatacommunities.org/id/district-council/south-lakeland,31/10/2015,Development Implementation,SLDC as Agent,,DHE ASSOCIATES,,12/10/2015,52908,"2,000.00",0,Admin Work for Japan Forum 1st October,202100,Financial Services Subscriptions
South Lakeland District Council,http://opendatacommunities.org/id/district-council/south-lakeland,31/10/2015,Development Implementation,Cultural Environmental Regulatory & Planning Services,http://opendatacommunities.org/def/concept/finance/sercop/objective/104,Glowlife Projects,,12/10/2015,52909,"2,000.00",0,Project Implementation Support for 124,152050,Consultancy Property
South Lakeland District Council,http://opendatacommunities.org/id/district-council/south-lakeland,31/10/2015,Development Implementation,Cultural Environmental Regulatory & Planning Services,http://opendatacommunities.org/def/concept/finance/sercop/objective/104,Searchvista Ltd,7841287,12/10/2015,52910,500,0,SLDC SECO & Google PPC Work,999999,Unclassifiable
South Lakeland District Council,http://opendatacommunities.org/id/district-council/south-lakeland,31/10/2015,Democratic Services,Central Services,http://opendatacommunities.org/def/concept/finance/sercop/objective/102,Data TV Ltd,8587584,12/10/2015,52913,"4,250.00",0,Media training for Cabinet Members 25,261500,HR Training & Conferences
South Lakeland District Council,http://opendatacommunities.org/id/district-council/south-lakeland,31/10/2015,Business Support Community Services,Internal Trading Accounts,,Hydrodec (UK) Ltd T/A OSS Group,8652156,12/10/2015,52914,110,0,Drum exchange,182015,Environment Waste Mgt Waste Disposal
South Lakeland District Council,http://opendatacommunities.org/id/district-council/south-lakeland,31/10/2015,Revenues and Benefits,,,Ulverston BID Company Ltd,9761005,12/10/2015,52915,"3,253.07",0,Collection Figures for September 2015.,201700,Financial Services Grants
South Lakeland District Council,http://opendatacommunities.org/id/district-council/south-lakeland,31/10/2015,Human Resources,Central Services,http://opendatacommunities.org/def/concept/finance/sercop/objective/102,MIDLAND SOFTWARE LTD,1852206,19/10/2015,52916,489.01,0,Consultancy,271600,ICT Software Customised & Bespoke
South Lakeland District Council,http://opendatacommunities.org/id/district-council/south-lakeland,31/10/2015,Human Resources,Central Services,http://opendatacommunities.org/def/concept/finance/sercop/objective/102,MIDLAND SOFTWARE LTD,1852206,19/10/2015,52917,-411.59,0,Consultancy,271600,ICT Software Customised & Bespoke
South Lakeland District Council,http://opendatacommunities.org/id/district-council/south-lakeland,31/10/2015,Environment and Housing,Housing,http://opendatacommunities.org/def/concept/finance/sercop/objective/108,ENVIRONMENT & HOUSING GRANTS,,12/10/2015,52919,"6,800.14",0,"Valley Drive, Kendal, LA9 7SJ",201700,Financial Services Grants
South Lakeland District Council,http://opendatacommunities.org/id/district-council/south-lakeland,31/10/2015,Environment and Housing,Housing,http://opendatacommunities.org/def/concept/finance/sercop/objective/108,DOLPHIN MOBILITY YORKS & CUMBRIA,,12/10/2015,52920,"1,500.00",0,"Almond Road,",321311,Social Care Supplies Equipment
South Lakeland District Council,http://opendatacommunities.org/id/district-council/south-lakeland,31/10/2015,Environment and Housing,Housing,http://opendatacommunities.org/def/concept/finance/sercop/objective/108,ENVIRONMENT & HOUSING GRANTS,,12/10/2015,52921,"15,000.00",0,"Highgate, Kendal. LA9",201700,Financial Services Grants
South Lakeland District Council,http://opendatacommunities.org/id/district-council/south-lakeland,31/10/2015,Environment and Housing,Housing Services,http://opendatacommunities.org/def/concept/finance/sercop/objective/108,GROWING CONCERNS LANDSCAPING,,12/10/2015,52922,"1,350.80",0,Payments for Handy Person Scheme,391200,Construction Engineering
South Lakeland District Council,http://opendatacommunities.org/id/district-council/south-lakeland,31/10/2015,Social Enterprise Admin,Cultural Environmental Regulatory & Planning Services,http://opendatacommunities.org/def/concept/finance/sercop/objective/104,THE SIGN MAN,5748839,21/10/2015,52930,75,0,A3 sign as discussed with TN,102400,Building Signage
South Lakeland District Council,http://opendatacommunities.org/id/district-council/south-lakeland,31/10/2015,Kendal Town Hall,Cultural Environmental Regulatory & Planning Services,http://opendatacommunities.org/def/concept/finance/sercop/objective/104,BILL MOORE LIFTING TACKLE LTD,1482196,19/10/2015,52931,75.58,0,"1 x 10 ton break, length 4 m",181812,Environment Technical Equip Testing
South Lakeland District Council,http://opendatacommunities.org/id/district-council/south-lakeland,31/10/2015,Social Enterprise Admin,Culture and Related Serv,http://opendatacommunities.org/def/concept/finance/sercop/objective/104,Eamonn Byrne Landscape Architecture,,21/10/2015,52932,350,0,Friends of Noble Rest meeting and,391300,Construction Open Spaces
South Lakeland District Council,http://opendatacommunities.org/id/district-council/south-lakeland,31/10/2015,Business Support Community Services,Housing Services,http://opendatacommunities.org/def/concept/finance/sercop/objective/108,Vigilant Security Services UK Ltd,5914271,14/10/2015,52934,"2,960.08",0,Monthly payment for the security Guard,192213,Facilities Security Manned Guarding
South Lakeland District Council,http://opendatacommunities.org/id/district-council/south-lakeland,31/10/2015,Business Support Community Services,Housing Services,http://opendatacommunities.org/def/concept/finance/sercop/objective/108,Market Street Medical Practice,,14/10/2015,52936,25,0,Medical report for MR,311600,Healthcare Services
South Lakeland District Council,http://opendatacommunities.org/id/district-council/south-lakeland,31/10/2015,Social Enterprise Admin,Cultural Environmental Regulatory & Planning Services,http://opendatacommunities.org/def/concept/finance/sercop/objective/104,FURNESS NEWSPAPERS LTD,1155841,14/10/2015,52937,103.6,0,PUBLIC NOTICES FOR PLANNING 1 APRIL 2015,191000,Facilities Advertising
South Lakeland District Council,http://opendatacommunities.org/id/district-council/south-lakeland,31/10/2015,Business Support Community Services,Central Services,http://opendatacommunities.org/def/concept/finance/sercop/objective/102,North Country Leisure,3683103,14/10/2015,52938,250,0,Pool Plant Operators Course,291400,Arts & Leisure Services Sport & Fitness
South Lakeland District Council,http://opendatacommunities.org/id/district-council/south-lakeland,31/10/2015,Environment and Housing,Housing Services,http://opendatacommunities.org/def/concept/finance/sercop/objective/108,CUMBRIA RURAL HOUSING TRUST,2920997,21/10/2015,52939,621.82,0,CLT/self-build support 2015-16,250000,Housing
South Lakeland District Council,http://opendatacommunities.org/id/district-council/south-lakeland,31/10/2015,Lake Wardens,Cultural Environmental Regulatory & Planning Services,http://opendatacommunities.org/def/concept/finance/sercop/objective/104,ENVIROFIRST LTD,5999123,28/10/2015,52940,73.6,0,Rental & Emptying of Re-Cycling Bins at,182012,Environment Waste Management Recycling
South Lakeland District Council,http://opendatacommunities.org/id/district-council/south-lakeland,31/10/2015,Social Enterprise Admin,Central Services,http://opendatacommunities.org/def/concept/finance/sercop/objective/102,ENVIROFIRST LTD,5999123,28/10/2015,52941,198.48,0,Lowther street wheelie bin mixed,182012,Environment Waste Management Recycling
South Lakeland District Council,http://opendatacommunities.org/id/district-council/south-lakeland,31/10/2015,Policy & Partnerships,Cultural Environmental Regulatory & Planning Services,http://opendatacommunities.org/def/concept/finance/sercop/objective/104,The Coniston Institute,,14/10/2015,52943,"6,500.00",0,LIPS funding 2015 - Coniston Institute,192110,Facilities Room Hire
South Lakeland District Council,http://opendatacommunities.org/id/district-council/south-lakeland,31/10/2015,Social Enterprise Admin,Highways & Transport Services,http://opendatacommunities.org/def/concept/finance/sercop/objective/107,Essential Fleet Services Ltd,3337954,14/10/2015,52944,179.5,0,Replace fuel system on NA61LFE - 3rd,152200,Consultancy Technical & Feasibility
South Lakeland District Council,http://opendatacommunities.org/id/district-council/south-lakeland,31/10/2015,Policy & Partnerships,SLDC as Agent,,CUMBRIA CONSTABULARY,,14/10/2015,52945,141.67,0,Lock it or Lose it campaign materials,350100,Street & Traffic Closed-Circuit TV
South Lakeland District Council,http://opendatacommunities.org/id/district-council/south-lakeland,31/10/2015,Kendal Town Hall,Cultural Environmental Regulatory & Planning Services,http://opendatacommunities.org/def/concept/finance/sercop/objective/104,KENTDALE FIRST AID TRAINING,,21/10/2015,52946,250,0,5 x Medical gases training for Lake,261500,HR Training & Conferences
South Lakeland District Council,http://opendatacommunities.org/id/district-council/south-lakeland,31/10/2015,Development Management,Cultural Environmental Regulatory & Planning Services,http://opendatacommunities.org/def/concept/finance/sercop/objective/104,BURGESS ROUGHTON,3082939,14/10/2015,52947,845,0,Work undertaken re Dangerous Structure,391114,Construction Buildings Surveys
South Lakeland District Council,http://opendatacommunities.org/id/district-council/south-lakeland,31/10/2015,Development Implementation,Cultural Environmental Regulatory & Planning Services,http://opendatacommunities.org/def/concept/finance/sercop/objective/104,Regional Network Solutions Ltd,,14/10/2015,52948,"14,300.00",0,South Lakeland Wifi Project Phase 1,152200,Consultancy Technical & Feasibility
South Lakeland District Council,http://opendatacommunities.org/id/district-council/south-lakeland,31/10/2015,Coronation Hall,Cultural Environmental Regulatory & Planning Services,http://opendatacommunities.org/def/concept/finance/sercop/objective/104,Visualize UK Ltd,6311860,14/10/2015,52949,260,0,Video advertising at Ulverston Leisure,191000,Facilities Advertising
South Lakeland District Council,http://opendatacommunities.org/id/district-council/south-lakeland,31/10/2015,ICT Group,Central Services,http://opendatacommunities.org/def/concept/finance/sercop/objective/102,IT PROFESSIONAL SERVICES (ITPS),,19/10/2015,52950,835.63,0,VMware vCenter Server 6 standard for,279999,ICT Not Elsewhere Classified
South Lakeland District Council,http://opendatacommunities.org/id/district-council/south-lakeland,31/10/2015,Financial Services,Central Services,http://opendatacommunities.org/def/concept/finance/sercop/objective/102,CUMBRIA LGPS,,19/10/2015,52951,"73,818.66",0,Qtr Contributions re past pensions April,908999,Public Bodies Not Elsewhere Classified
South Lakeland District Council,http://opendatacommunities.org/id/district-council/south-lakeland,31/10/2015,Policy & Partnerships,Cultural Environmental Regulatory & Planning Services,http://opendatacommunities.org/def/concept/finance/sercop/objective/104,Hallgarth Community Centre Mgmt Committe,,14/10/2015,52952,425,0,Cllr Member Grant to Hallgarth,202100,Financial Services Subscriptions
South Lakeland District Council,http://opendatacommunities.org/id/district-council/south-lakeland,31/10/2015,Financial Services,Central Services,http://opendatacommunities.org/def/concept/finance/sercop/objective/102,CUMBRIA COUNTY COUNCIL,,14/10/2015,52953,"15,300.00",0,Internal Audit Service 15/16,908000,Public Bodies Council support services
South Lakeland District Council,http://opendatacommunities.org/id/district-council/south-lakeland,31/10/2015,Social Enterprise Admin,Highways & Transport Services,http://opendatacommunities.org/def/concept/finance/sercop/objective/107,G4S SECURE SOLUTIONS (UK) LTD,1046019,21/10/2015,52955,874.84,0,Patrol Services for South Lakeland House,192213,Facilities Security Manned Guarding
South Lakeland District Council,http://opendatacommunities.org/id/district-council/south-lakeland,31/10/2015,Development Management,Cultural Environmental Regulatory & Planning Services,http://opendatacommunities.org/def/concept/finance/sercop/objective/104,SALFORD CITY COUNCIL,,21/10/2015,52956,87.44,0,Checking work under the Building,908000,Public Bodies Council support services
South Lakeland District Council,http://opendatacommunities.org/id/district-council/south-lakeland,31/10/2015,Business Support Community Services,Internal Trading Accounts,,ARCO LIMITED,133804,19/10/2015,52957,5.79,0,PPE 2015/16,141100,Clothing Protective
South Lakeland District Council,http://opendatacommunities.org/id/district-council/south-lakeland,31/10/2015,Democratic Services,Central Services,http://opendatacommunities.org/def/concept/finance/sercop/objective/102,Langdale Village Hall,,14/10/2015,52958,125,0,Hire of Langdale Village Hall on 16,192110,Facilities Room Hire
South Lakeland District Council,http://opendatacommunities.org/id/district-council/south-lakeland,31/10/2015,Human Resources,Central Services,http://opendatacommunities.org/def/concept/finance/sercop/objective/102,THE QUAKER TAPESTRY KENDAL LTD,,19/10/2015,52959,180.5,0,Room Hire 29th September,291400,Arts & Leisure Services Sport & Fitness
South Lakeland District Council,http://opendatacommunities.org/id/district-council/south-lakeland,31/10/2015,Human Resources,Central Services,http://opendatacommunities.org/def/concept/finance/sercop/objective/102,ANITA OGILVIE,,14/10/2015,52960,330,0,Theraputic sessions,269999,HR Not Elsewhere Classified
South Lakeland District Council,http://opendatacommunities.org/id/district-council/south-lakeland,31/10/2015,Kendal Town Hall,Cultural Environmental Regulatory & Planning Services,http://opendatacommunities.org/def/concept/finance/sercop/objective/104,W MCCLURE LTD,685360,14/10/2015,52961,73.25,0,10 boxes of foxes favourites,111200,Catering Food & Beverages
South Lakeland District Council,http://opendatacommunities.org/id/district-council/south-lakeland,31/10/2015,Development Strategy,Cultural Environmental Regulatory & Planning Services,http://opendatacommunities.org/def/concept/finance/sercop/objective/104,RTPI SUBSCRIPTIONS,,14/10/2015,52962,77.34,0,2015 Subscription: Chartered Member for,391100,Construction Buildings
South Lakeland District Council,http://opendatacommunities.org/id/district-council/south-lakeland,31/10/2015,Social Enterprise Admin,Highways & Transport Services,http://opendatacommunities.org/def/concept/finance/sercop/objective/107,CREDIT CALL LTD (NCR),,01/10/2015,52963,855.64,0,Credit Call Commission  2015/16,209999,Financial Services Not Elsewhere Classif
South Lakeland District Council,http://opendatacommunities.org/id/district-council/south-lakeland,31/10/2015,Social Enterprise Admin,Highways & Transport Services,http://opendatacommunities.org/def/concept/finance/sercop/objective/107,CREDIT CALL LTD (NCR),,01/10/2015,52964,"1,182.28",0,Credit Call Commission  2015/16,209999,Financial Services Not Elsewhere Classif
South Lakeland District Council,http://opendatacommunities.org/id/district-council/south-lakeland,31/10/2015,Development Implementation,Planning and Development,,Link Contracting Services Ltd,2461502,19/10/2015,52965,"145,557.62",0,"Refurbishment of 124 Highgate, Kendal.",391111,Construction Buildings Repair & Mtce
South Lakeland District Council,http://opendatacommunities.org/id/district-council/south-lakeland,31/10/2015,Development Implementation,Cultural Environmental Regulatory & Planning Services,http://opendatacommunities.org/def/concept/finance/sercop/objective/104,SKV Communications,3495502,14/10/2015,52966,"1,879.00",0,Continuation of Provision of,191800,Facilities Public Relations & Image
South Lakeland District Council,http://opendatacommunities.org/id/district-council/south-lakeland,31/10/2015,Policy & Partnerships,Cultural Environmental Regulatory & Planning Services,http://opendatacommunities.org/def/concept/finance/sercop/objective/104,GRANTS- MISCELLANEOUS,,14/10/2015,52967,300,0,Cllr member's budget,201700,Financial Services Grants
South Lakeland District Council,http://opendatacommunities.org/id/district-council/south-lakeland,31/10/2015,Development Implementation,Cultural Environmental Regulatory & Planning Services,http://opendatacommunities.org/def/concept/finance/sercop/objective/104,Helen Tate,,14/10/2015,52968,"1,187.50",0,Economic Impact Assessment for Ulverston,111200,Catering Food & Beverages
South Lakeland District Council,http://opendatacommunities.org/id/district-council/south-lakeland,31/10/2015,Development Implementation,Central Services,http://opendatacommunities.org/def/concept/finance/sercop/objective/102,GATES TRAVEL SERVICE,,14/10/2015,52969,418.8,0,MIPIM travel,261600,HR Travel & Subsistence
South Lakeland District Council,http://opendatacommunities.org/id/district-council/south-lakeland,31/10/2015,Kendal Town Hall,Central Services,http://opendatacommunities.org/def/concept/finance/sercop/objective/102,BERENDSEN UK LTD,228604,14/10/2015,52970,64.87,0,Rental and weekly replacement of the 2,161000,Domestic Goods Commercial
South Lakeland District Council,http://opendatacommunities.org/id/district-council/south-lakeland,31/10/2015,Kendal Town Hall,Cultural Environmental Regulatory & Planning Services,http://opendatacommunities.org/def/concept/finance/sercop/objective/104,BERENDSEN UK LTD,228604,14/10/2015,52970,26.08,0,Rental and weekly replacement of the 2,161000,Domestic Goods Commercial
South Lakeland District Council,http://opendatacommunities.org/id/district-council/south-lakeland,31/10/2015,Social Enterprise Admin,Cultural Environmental Regulatory & Planning Services,http://opendatacommunities.org/def/concept/finance/sercop/objective/104,LUSCOMBE PLANT HIRE LTD,4242248,14/10/2015,52971,77.2,0,Micro digger and hydraulic breaker for 1,381205,Vehicle Mgt Heavy Construction Equip
South Lakeland District Council,http://opendatacommunities.org/id/district-council/south-lakeland,31/10/2015,Social Enterprise Admin,Culture and Related Serv,http://opendatacommunities.org/def/concept/finance/sercop/objective/104,Walcon Marine Ltd,1143519,14/10/2015,52972,"3,318.00",0,"to manufacture, supply and install 3 x",907999,Marine Not Elsewhere Classified
South Lakeland District Council,http://opendatacommunities.org/id/district-council/south-lakeland,31/10/2015,Printing Section,Central Services,http://opendatacommunities.org/def/concept/finance/sercop/objective/102,BANNER T/A SUPPLIES TEAM,5510758,14/10/2015,52973,97.96,0,"Plotter Inks: Cyan, Magenta, Yellow,",340000,Stationery
South Lakeland District Council,http://opendatacommunities.org/id/district-council/south-lakeland,31/10/2015,Policy & Partnerships,Cultural Environmental Regulatory & Planning Services,http://opendatacommunities.org/def/concept/finance/sercop/objective/104,SEDBERGH PEOPLE'S HALL,,14/10/2015,52974,18,0,Room Hire for confrence room on 14,201700,Financial Services Grants
South Lakeland District Council,http://opendatacommunities.org/id/district-council/south-lakeland,31/10/2015,Business Support Community Services,Internal Trading Accounts,,K S INTERNATIONAL LTD,2703321,14/10/2015,52975,205,0,Bolts,381500,Vehicle Mgt Parts
South Lakeland District Council,http://opendatacommunities.org/id/district-council/south-lakeland,31/10/2015,Business Support Community Services,Internal Trading Accounts,,K S INTERNATIONAL LTD,2703321,14/10/2015,52976,50,0,Bolts,381500,Vehicle Mgt Parts
South Lakeland District Council,http://opendatacommunities.org/id/district-council/south-lakeland,31/10/2015,Business Support Community Services,Internal Trading Accounts,,HYDRAIR TRUCK & TRAILER PARTS LTD,,14/10/2015,52977,13.04,0,Clamp,381500,Vehicle Mgt Parts
South Lakeland District Council,http://opendatacommunities.org/id/district-council/south-lakeland,31/10/2015,Business Support Community Services,Internal Trading Accounts,,HYDRAIR TRUCK & TRAILER PARTS LTD,,14/10/2015,52978,-337.5,0,Clamp,381500,Vehicle Mgt Parts
South Lakeland District Council,http://opendatacommunities.org/id/district-council/south-lakeland,31/10/2015,Business Support Community Services,Internal Trading Accounts,,HYDRAIR TRUCK & TRAILER PARTS LTD,,14/10/2015,52979,-175,0,Clamp,381500,Vehicle Mgt Parts
South Lakeland District Council,http://opendatacommunities.org/id/district-council/south-lakeland,31/10/2015,Business Support Community Services,Internal Trading Accounts,,HYDRAIR TRUCK & TRAILER PARTS LTD,,14/10/2015,52981,337.5,0,Clamp,381500,Vehicle Mgt Parts
South Lakeland District Council,http://opendatacommunities.org/id/district-council/south-lakeland,31/10/2015,Business Support Community Services,Internal Trading Accounts,,HYDRAIR TRUCK & TRAILER PARTS LTD,,14/10/2015,52982,767.8,0,Clamp,381500,Vehicle Mgt Parts
South Lakeland District Council,http://opendatacommunities.org/id/district-council/south-lakeland,31/10/2015,Business Support Community Services,Internal Trading Accounts,,HYDRAIR TRUCK & TRAILER PARTS LTD,,14/10/2015,52983,46.6,0,Clamp,381500,Vehicle Mgt Parts
South Lakeland District Council,http://opendatacommunities.org/id/district-council/south-lakeland,31/10/2015,Business Support Community Services,Internal Trading Accounts,,HYDRAIR TRUCK & TRAILER PARTS LTD,,14/10/2015,52985,7.21,0,Clamp,381500,Vehicle Mgt Parts
South Lakeland District Council,http://opendatacommunities.org/id/district-council/south-lakeland,31/10/2015,Business Support Community Services,Internal Trading Accounts,,HYDRAIR TRUCK & TRAILER PARTS LTD,,14/10/2015,52987,10.94,0,Clamp,381500,Vehicle Mgt Parts
South Lakeland District Council,http://opendatacommunities.org/id/district-council/south-lakeland,31/10/2015,Business Support Community Services,Internal Trading Accounts,,HYDRAIR TRUCK & TRAILER PARTS LTD,,14/10/2015,52988,21.88,0,Clamp,381500,Vehicle Mgt Parts
South Lakeland District Council,http://opendatacommunities.org/id/district-council/south-lakeland,31/10/2015,Business Support Community Services,Internal Trading Accounts,,HYDRAIR TRUCK & TRAILER PARTS LTD,,14/10/2015,52989,22.14,0,Clamp,381500,Vehicle Mgt Parts
South Lakeland District Council,http://opendatacommunities.org/id/district-council/south-lakeland,31/10/2015,Business Support Community Services,Internal Trading Accounts,,K S INTERNATIONAL LTD,2703321,26/10/2015,52990,155,0,Spring,381500,Vehicle Mgt Parts
South Lakeland District Council,http://opendatacommunities.org/id/district-council/south-lakeland,31/10/2015,Business Support Community Services,Internal Trading Accounts,,K S INTERNATIONAL LTD,2703321,14/10/2015,52992,290,0,Spring,381500,Vehicle Mgt Parts
South Lakeland District Council,http://opendatacommunities.org/id/district-council/south-lakeland,31/10/2015,Business Support Community Services,Internal Trading Accounts,,EK MOTOR FACTORS LTD,838524,14/10/2015,52994,13.73,0,Drive shaft,381400,Vehicle Mgt Maintenance
South Lakeland District Council,http://opendatacommunities.org/id/district-council/south-lakeland,31/10/2015,Business Support Community Services,Internal Trading Accounts,,EK MOTOR FACTORS LTD,838524,14/10/2015,52997,31.64,0,Drive shaft,381400,Vehicle Mgt Maintenance
South Lakeland District Council,http://opendatacommunities.org/id/district-council/south-lakeland,31/10/2015,Business Support Community Services,Internal Trading Accounts,,EK MOTOR FACTORS LTD,838524,14/10/2015,52998,-32.2,0,Drive shaft,381400,Vehicle Mgt Maintenance
South Lakeland District Council,http://opendatacommunities.org/id/district-council/south-lakeland,31/10/2015,Business Support Community Services,Internal Trading Accounts,,EK MOTOR FACTORS LTD,838524,14/10/2015,52999,67.88,0,Drive shaft,381400,Vehicle Mgt Maintenance
South Lakeland District Council,http://opendatacommunities.org/id/district-council/south-lakeland,31/10/2015,Business Support Community Services,Internal Trading Accounts,,EK MOTOR FACTORS LTD,838524,14/10/2015,53000,97.04,0,Drive shaft,381400,Vehicle Mgt Maintenance
South Lakeland District Council,http://opendatacommunities.org/id/district-council/south-lakeland,31/10/2015,Business Support Community Services,Internal Trading Accounts,,EK MOTOR FACTORS LTD,838524,14/10/2015,53001,7.67,0,Drive shaft,381400,Vehicle Mgt Maintenance
South Lakeland District Council,http://opendatacommunities.org/id/district-council/south-lakeland,31/10/2015,Business Support Community Services,Internal Trading Accounts,,Harry Park Tyres Ltd,8131208,14/10/2015,53002,12.5,0,Tyres,381500,Vehicle Mgt Parts
South Lakeland District Council,http://opendatacommunities.org/id/district-council/south-lakeland,31/10/2015,Business Support Community Services,Internal Trading Accounts,,Harry Park Tyres Ltd,8131208,14/10/2015,53003,72.45,0,Tyres,381500,Vehicle Mgt Parts
South Lakeland District Council,http://opendatacommunities.org/id/district-council/south-lakeland,31/10/2015,Business Support Community Services,Internal Trading Accounts,,Harry Park Tyres Ltd,8131208,14/10/2015,53004,12.5,0,Tyres,381500,Vehicle Mgt Parts
South Lakeland District Council,http://opendatacommunities.org/id/district-council/south-lakeland,31/10/2015,Business Support Community Services,Internal Trading Accounts,,Harry Park Tyres Ltd,8131208,14/10/2015,53005,80,0,Tyres,381500,Vehicle Mgt Parts
South Lakeland District Council,http://opendatacommunities.org/id/district-council/south-lakeland,31/10/2015,Business Support Community Services,Internal Trading Accounts,,Harry Park Tyres Ltd,8131208,14/10/2015,53006,"1,160.00",0,Tyres,381500,Vehicle Mgt Parts
South Lakeland District Council,http://opendatacommunities.org/id/district-council/south-lakeland,31/10/2015,Business Support Community Services,Internal Trading Accounts,,Harry Park Tyres Ltd,8131208,14/10/2015,53007,"2,320.00",0,Tyres,381500,Vehicle Mgt Parts
South Lakeland District Council,http://opendatacommunities.org/id/district-council/south-lakeland,31/10/2015,Business Support Community Services,Internal Trading Accounts,,Harry Park Tyres Ltd,8131208,14/10/2015,53008,12.5,0,Tyres,381500,Vehicle Mgt Parts
South Lakeland District Council,http://opendatacommunities.org/id/district-council/south-lakeland,31/10/2015,Business Support Community Services,Internal Trading Accounts,,DENNIS EAGLE LTD,3794455,14/10/2015,53010,16.6,0,Plate,381300,Vehicle Mgt Industrial
South Lakeland District Council,http://opendatacommunities.org/id/district-council/south-lakeland,31/10/2015,Business Support Community Services,Internal Trading Accounts,,RIBBLESDALE AUTO ELECTRICS 1992 LTD,2732686,14/10/2015,53011,-105.6,0,Lens,381500,Vehicle Mgt Parts
South Lakeland District Council,http://opendatacommunities.org/id/district-council/south-lakeland,31/10/2015,Business Support Community Services,Internal Trading Accounts,,RIBBLESDALE AUTO ELECTRICS 1992 LTD,2732686,14/10/2015,53012,71,0,Lamp,381500,Vehicle Mgt Parts
South Lakeland District Council,http://opendatacommunities.org/id/district-council/south-lakeland,31/10/2015,Business Support Community Services,Internal Trading Accounts,,RIBBLESDALE AUTO ELECTRICS 1992 LTD,2732686,14/10/2015,53013,16.14,0,Lamp,381500,Vehicle Mgt Parts
South Lakeland District Council,http://opendatacommunities.org/id/district-council/south-lakeland,31/10/2015,Business Support Community Services,Internal Trading Accounts,,RIBBLESDALE AUTO ELECTRICS 1992 LTD,2732686,14/10/2015,53014,13.49,0,Lamp,381500,Vehicle Mgt Parts
South Lakeland District Council,http://opendatacommunities.org/id/district-council/south-lakeland,31/10/2015,Business Support Community Services,Internal Trading Accounts,,RIBBLESDALE AUTO ELECTRICS 1992 LTD,2732686,14/10/2015,53015,1.48,0,Lamp,381500,Vehicle Mgt Parts
South Lakeland District Council,http://opendatacommunities.org/id/district-council/south-lakeland,31/10/2015,Business Support Community Services,Internal Trading Accounts,,RIBBLESDALE AUTO ELECTRICS 1992 LTD,2732686,14/10/2015,53016,62.92,0,Lamp,381500,Vehicle Mgt Parts
South Lakeland District Council,http://opendatacommunities.org/id/district-council/south-lakeland,31/10/2015,Business Support Community Services,Internal Trading Accounts,,RIBBLESDALE AUTO ELECTRICS 1992 LTD,2732686,14/10/2015,53017,48.75,0,Lamp,381500,Vehicle Mgt Parts
South Lakeland District Council,http://opendatacommunities.org/id/district-council/south-lakeland,31/10/2015,Business Support Community Services,Internal Trading Accounts,,RIBBLESDALE AUTO ELECTRICS 1992 LTD,2732686,14/10/2015,53018,6.96,0,Lamp,381500,Vehicle Mgt Parts
South Lakeland District Council,http://opendatacommunities.org/id/district-council/south-lakeland,31/10/2015,Business Support Community Services,Internal Trading Accounts,,RIBBLESDALE AUTO ELECTRICS 1992 LTD,2732686,14/10/2015,53019,35.5,0,Lamp,381500,Vehicle Mgt Parts
South Lakeland District Council,http://opendatacommunities.org/id/district-council/south-lakeland,31/10/2015,Business Support Community Services,Internal Trading Accounts,,TAYLOR ENGINEERING & FABRICATIONS LTD,4989359,14/10/2015,53020,162.72,0,Bushes,391200,Construction Engineering
South Lakeland District Council,http://opendatacommunities.org/id/district-council/south-lakeland,31/10/2015,Business Support Community Services,Internal Trading Accounts,,TAYLOR ENGINEERING & FABRICATIONS LTD,4989359,14/10/2015,53021,82.95,0,Bushes,391200,Construction Engineering
South Lakeland District Council,http://opendatacommunities.org/id/district-council/south-lakeland,31/10/2015,Business Support Community Services,Internal Trading Accounts,,DENNIS EAGLE LTD,3794455,14/10/2015,53022,369.35,0,Plate,381300,Vehicle Mgt Industrial
South Lakeland District Council,http://opendatacommunities.org/id/district-council/south-lakeland,31/10/2015,Business Support Community Services,Internal Trading Accounts,,DENNIS EAGLE LTD,3794455,14/10/2015,53023,70.44,0,Plate,381300,Vehicle Mgt Industrial
South Lakeland District Council,http://opendatacommunities.org/id/district-council/south-lakeland,31/10/2015,Business Support Community Services,Internal Trading Accounts,,DENNIS EAGLE LTD,3794455,14/10/2015,53024,"1,387.90",0,Plate,381300,Vehicle Mgt Industrial
South Lakeland District Council,http://opendatacommunities.org/id/district-council/south-lakeland,31/10/2015,Business Support Community Services,Internal Trading Accounts,,DENNIS EAGLE LTD,3794455,14/10/2015,53025,118.16,0,Plate,381300,Vehicle Mgt Industrial
South Lakeland District Council,http://opendatacommunities.org/id/district-council/south-lakeland,31/10/2015,Business Support Community Services,Internal Trading Accounts,,DENNIS EAGLE LTD,3794455,14/10/2015,53026,32.86,0,Plate,381300,Vehicle Mgt Industrial
South Lakeland District Council,http://opendatacommunities.org/id/district-council/south-lakeland,31/10/2015,Business Support Community Services,Internal Trading Accounts,,DENNIS EAGLE LTD,3794455,14/10/2015,53027,90.14,0,Plate,381300,Vehicle Mgt Industrial
South Lakeland District Council,http://opendatacommunities.org/id/district-council/south-lakeland,31/10/2015,Business Support Community Services,Internal Trading Accounts,,DENNIS EAGLE LTD,3794455,14/10/2015,53028,71.18,0,Plate,381300,Vehicle Mgt Industrial
South Lakeland District Council,http://opendatacommunities.org/id/district-council/south-lakeland,31/10/2015,Business Support Community Services,Internal Trading Accounts,,SOLWAY DAF,1393710,14/10/2015,53029,60,0,Spring,381000,Vehicle Mgt Commercial
South Lakeland District Council,http://opendatacommunities.org/id/district-council/south-lakeland,31/10/2015,Business Support Community Services,Internal Trading Accounts,,SOLWAY DAF,1393710,14/10/2015,53030,140,0,Spring,381000,Vehicle Mgt Commercial
South Lakeland District Council,http://opendatacommunities.org/id/district-council/south-lakeland,31/10/2015,Business Support Community Services,Internal Trading Accounts,,SOLWAY DAF,1393710,14/10/2015,53031,163.4,0,Spring,381000,Vehicle Mgt Commercial
South Lakeland District Council,http://opendatacommunities.org/id/district-council/south-lakeland,31/10/2015,Business Support Community Services,Internal Trading Accounts,,SOLWAY DAF,1393710,14/10/2015,53032,720.47,0,Spring,381000,Vehicle Mgt Commercial
South Lakeland District Council,http://opendatacommunities.org/id/district-council/south-lakeland,31/10/2015,Business Support Community Services,Internal Trading Accounts,,SOLWAY DAF,1393710,14/10/2015,53033,98.04,0,Spring,381000,Vehicle Mgt Commercial
South Lakeland District Council,http://opendatacommunities.org/id/district-council/south-lakeland,31/10/2015,Business Support Community Services,Internal Trading Accounts,,SOLWAY DAF,1393710,14/10/2015,53034,125.12,0,Bulb holders,381000,Vehicle Mgt Commercial
South Lakeland District Council,http://opendatacommunities.org/id/district-council/south-lakeland,31/10/2015,Business Support Community Services,Internal Trading Accounts,,SOLWAY DAF,1393710,14/10/2015,53035,87.2,0,Spring,381000,Vehicle Mgt Commercial
South Lakeland District Council,http://opendatacommunities.org/id/district-council/south-lakeland,31/10/2015,Business Support Community Services,Internal Trading Accounts,,SOLWAY DAF,1393710,14/10/2015,53036,101.97,0,Spring,381000,Vehicle Mgt Commercial
South Lakeland District Council,http://opendatacommunities.org/id/district-council/south-lakeland,31/10/2015,Business Support Community Services,Internal Trading Accounts,,Preston Trade Parts Specialists,,14/10/2015,53037,227.73,0,Caliper,381400,Vehicle Mgt Maintenance
South Lakeland District Council,http://opendatacommunities.org/id/district-council/south-lakeland,31/10/2015,Business Support Community Services,Internal Trading Accounts,,Romaquip Ltd,,14/10/2015,53038,587.56,0,Lights,381000,Vehicle Mgt Commercial
South Lakeland District Council,http://opendatacommunities.org/id/district-council/south-lakeland,31/10/2015,Business Support Community Services,Internal Trading Accounts,,C M SIGNS,,14/10/2015,53039,286,0,Ovals,102400,Building Signage
South Lakeland District Council,http://opendatacommunities.org/id/district-council/south-lakeland,31/10/2015,Business Support Community Services,Internal Trading Accounts,,RIBBLE FUEL OILS,,14/10/2015,53040,922.78,0,Gas oil for Canal Head,381100,Vehicle Mgt Fuel
South Lakeland District Council,http://opendatacommunities.org/id/district-council/south-lakeland,31/10/2015,Business Support Community Services,Cultural Environmental Regulatory & Planning Services,http://opendatacommunities.org/def/concept/finance/sercop/objective/104,CUMBRIA MAILING SERVICES LTD,3136821,14/10/2015,53041,108.89,0,Mailing services,301200,Mail Services� Postage
South Lakeland District Council,http://opendatacommunities.org/id/district-council/south-lakeland,31/10/2015,Business Support Community Services,Internal Trading Accounts,,K S INTERNATIONAL LTD,2703321,14/10/2015,53042,75,0,Headlights,381500,Vehicle Mgt Parts
South Lakeland District Council,http://opendatacommunities.org/id/district-council/south-lakeland,31/10/2015,Business Support Community Services,Internal Trading Accounts,,EK MOTOR FACTORS LTD,838524,14/10/2015,53043,97.58,0,Plate,381400,Vehicle Mgt Maintenance
South Lakeland District Council,http://opendatacommunities.org/id/district-council/south-lakeland,31/10/2015,Business Support Community Services,Internal Trading Accounts,,EK MOTOR FACTORS LTD,838524,14/10/2015,53044,5.94,0,Plate,381400,Vehicle Mgt Maintenance
South Lakeland District Council,http://opendatacommunities.org/id/district-council/south-lakeland,31/10/2015,Business Support Community Services,Internal Trading Accounts,,ALLSTAR BUSINESS SOLUTIONS LTD (NCR),2631112,01/10/2015,53045,"3,429.03",0,Fuel to 30/09/15,381600,Vehicle Mgt Leasing
South Lakeland District Council,http://opendatacommunities.org/id/district-council/south-lakeland,31/10/2015,Business Support Community Services,Internal Trading Accounts,,ALLSTAR BUSINESS SOLUTIONS LTD (NCR),2631112,01/10/2015,53045,164.46,0,Fuel to 30/09/15,381600,Vehicle Mgt Leasing
South Lakeland District Council,http://opendatacommunities.org/id/district-council/south-lakeland,31/10/2015,Business Support Community Services,Internal Trading Accounts,,ALLSTAR BUSINESS SOLUTIONS LTD (NCR),2631112,01/10/2015,53045,"11,695.56",0,Fuel to 30/09/15,381600,Vehicle Mgt Leasing
South Lakeland District Council,http://opendatacommunities.org/id/district-council/south-lakeland,31/10/2015,Business Support Community Services,Internal Trading Accounts,,CUMBRIA TRUCK CENTRE LTD,4298488,14/10/2015,53046,100.92,0,Dampers,381300,Vehicle Mgt Industrial
South Lakeland District Council,http://opendatacommunities.org/id/district-council/south-lakeland,31/10/2015,Business Support Community Services,Internal Trading Accounts,,VOLVO GROUP UK LTD,2190944,14/10/2015,53047,350.61,0,Oil filter,381000,Vehicle Mgt Commercial
South Lakeland District Council,http://opendatacommunities.org/id/district-council/south-lakeland,31/10/2015,Business Support Community Services,Internal Trading Accounts,,VOLVO GROUP UK LTD,2190944,14/10/2015,53048,288.64,0,Oil filter,381000,Vehicle Mgt Commercial
South Lakeland District Council,http://opendatacommunities.org/id/district-council/south-lakeland,31/10/2015,Business Support Community Services,Internal Trading Accounts,,Preston Trade Parts Specialists,,14/10/2015,53050,31.36,0,Lamps,381400,Vehicle Mgt Maintenance
South Lakeland District Council,http://opendatacommunities.org/id/district-council/south-lakeland,31/10/2015,Business Support Community Services,Internal Trading Accounts,,Masterstaff Limited,2777593,14/10/2015,53051,"4,031.79",0,Agency staff - October 2015,261300,HR Recruitment & Assessment
South Lakeland District Council,http://opendatacommunities.org/id/district-council/south-lakeland,31/10/2015,Business Support Community Services,Cultural Environmental Regulatory & Planning Services,http://opendatacommunities.org/def/concept/finance/sercop/objective/104,WESTMORLAND COUNTY AGRICULTURAL SOCIETY,3146325,14/10/2015,53052,25.5,0,Basic Stand Space - County Show,261500,HR Training & Conferences
South Lakeland District Council,http://opendatacommunities.org/id/district-council/south-lakeland,31/10/2015,Business Support Community Services,Internal Trading Accounts,,Masterstaff Limited,2777593,14/10/2015,53053,"4,544.74",0,Agency staff - September 2015,261300,HR Recruitment & Assessment
South Lakeland District Council,http://opendatacommunities.org/id/district-council/south-lakeland,31/10/2015,Business Support Community Services,Transport Planning Policy,http://opendatacommunities.org/def/concept/finance/sercop/objective/107,ARCO LIMITED,133804,14/10/2015,53054,20.19,0,PPE 2015/16,141100,Clothing Protective
South Lakeland District Council,http://opendatacommunities.org/id/district-council/south-lakeland,31/10/2015,Business Support Community Services,Transport Planning Policy,http://opendatacommunities.org/def/concept/finance/sercop/objective/107,ARCO LIMITED,133804,14/10/2015,53055,2.84,0,PPE 2015/16,141100,Clothing Protective
South Lakeland District Council,http://opendatacommunities.org/id/district-council/south-lakeland,31/10/2015,Business Support Community Services,Internal Trading Accounts,,ARCO LIMITED,133804,14/10/2015,53055,9.01,0,PPE 2015/16,141100,Clothing Protective
South Lakeland District Council,http://opendatacommunities.org/id/district-council/south-lakeland,31/10/2015,Business Support Community Services,Internal Trading Accounts,,ARCO LIMITED,133804,14/10/2015,53055,858.96,0,PPE 2015/16,141100,Clothing Protective
South Lakeland District Council,http://opendatacommunities.org/id/district-council/south-lakeland,31/10/2015,Business Support Community Services,Central Services,http://opendatacommunities.org/def/concept/finance/sercop/objective/102,CUMBRIA WASTE MANAGEMENT LIMITED,2665973,14/10/2015,53056,276.25,0,COTC cover at Ecclerigg - 2015/16,182015,Environment Waste Mgt Waste Disposal
South Lakeland District Council,http://opendatacommunities.org/id/district-council/south-lakeland,31/10/2015,Business Support Community Services,Central Services,http://opendatacommunities.org/def/concept/finance/sercop/objective/102,CUMBRIA WASTE MANAGEMENT LIMITED,2665973,14/10/2015,53057,130,0,COTC cover at Ecclerigg - 2015/16,182015,Environment Waste Mgt Waste Disposal
South Lakeland District Council,http://opendatacommunities.org/id/district-council/south-lakeland,31/10/2015,Business Support Community Services,Cultural Environmental Regulatory & Planning Services,http://opendatacommunities.org/def/concept/finance/sercop/objective/104,OCS GROUP LTD T/A CANNON HYGIENE LTD,1298292,14/10/2015,53058,"1,897.90",0,Clinical waste collections - September,131011,Cleaning & Janitorial Cleaning Materials
South Lakeland District Council,http://opendatacommunities.org/id/district-council/south-lakeland,31/10/2015,Business Support Community Services,Cultural Environmental Regulatory & Planning Services,http://opendatacommunities.org/def/concept/finance/sercop/objective/104,OCS GROUP LTD T/A CANNON HYGIENE LTD,1298292,14/10/2015,53059,433.19,0,Clinical waste collections - October,131011,Cleaning & Janitorial Cleaning Materials
South Lakeland District Council,http://opendatacommunities.org/id/district-council/south-lakeland,31/10/2015,Business Support Community Services,Cultural Environmental Regulatory & Planning Services,http://opendatacommunities.org/def/concept/finance/sercop/objective/104,OCS GROUP LTD T/A CANNON HYGIENE LTD,1298292,14/10/2015,53060,11.53,0,Clinical waste collections - September,131011,Cleaning & Janitorial Cleaning Materials
South Lakeland District Council,http://opendatacommunities.org/id/district-council/south-lakeland,31/10/2015,Business Support Community Services,Internal Trading Accounts,,J R RICHARDSON LTD,2225792,14/10/2015,53061,231.86,0,Vehicle washing consumables,381500,Vehicle Mgt Parts
South Lakeland District Council,http://opendatacommunities.org/id/district-council/south-lakeland,31/10/2015,Business Support Community Services,Cultural Environmental Regulatory & Planning Services,http://opendatacommunities.org/def/concept/finance/sercop/objective/104,OCS GROUP LTD T/A CANNON HYGIENE LTD,1298292,14/10/2015,53062,"2,096.21",0,Clinical waste collections - August 2015,131011,Cleaning & Janitorial Cleaning Materials
South Lakeland District Council,http://opendatacommunities.org/id/district-council/south-lakeland,31/10/2015,Kendal Town Hall,Cultural Environmental Regulatory & Planning Services,http://opendatacommunities.org/def/concept/finance/sercop/objective/104,THE LAUNDRY SHOP LTD,5421366,21/10/2015,53064,32,0,Laundry service charges for cleaning the,131311,Cleaning & Janitorial Laundry Service
South Lakeland District Council,http://opendatacommunities.org/id/district-council/south-lakeland,31/10/2015,Social Enterprise Admin,Central Services,http://opendatacommunities.org/def/concept/finance/sercop/objective/102,ADECCO UK LIMITED,593232,21/10/2015,53065,446.21,0,TO SUPPLY LC 3 MONTH,261400,HR Temporary & Agency Staff
South Lakeland District Council,http://opendatacommunities.org/id/district-council/south-lakeland,31/10/2015,Development Implementation,Central Services,http://opendatacommunities.org/def/concept/finance/sercop/objective/102,ADECCO UK LIMITED,593232,19/10/2015,53066,123,0,Economic Development Officer - Ruth,261400,HR Temporary & Agency Staff
South Lakeland District Council,http://opendatacommunities.org/id/district-council/south-lakeland,31/10/2015,Development Implementation,Central Services,http://opendatacommunities.org/def/concept/finance/sercop/objective/102,ADECCO UK LIMITED,593232,19/10/2015,53067,541.2,0,Economic Development Project Officer -,261400,HR Temporary & Agency Staff
South Lakeland District Council,http://opendatacommunities.org/id/district-council/south-lakeland,31/10/2015,Social Enterprise Admin,Highways & Transport Services,http://opendatacommunities.org/def/concept/finance/sercop/objective/107,We Love Logos,,21/10/2015,53068,152.39,0,"black softshell jacket size large,",141100,Clothing Protective
South Lakeland District Council,http://opendatacommunities.org/id/district-council/south-lakeland,31/10/2015,Policy & Partnerships,Cultural Environmental Regulatory & Planning Services,http://opendatacommunities.org/def/concept/finance/sercop/objective/104,GRANTS- MISCELLANEOUS,,14/10/2015,53069,"1,000.00",0,The funding will significantly,201700,Financial Services Grants
South Lakeland District Council,http://opendatacommunities.org/id/district-council/south-lakeland,31/10/2015,Kendal Town Hall,External Trading Accounts,,HYGIENE CLEANING SUPPLIES LTD,4753934,19/10/2015,53070,47.76,0,5 boxes of JP07 mini jumbo toilet roll,131011,Cleaning & Janitorial Cleaning Materials
South Lakeland District Council,http://opendatacommunities.org/id/district-council/south-lakeland,31/10/2015,Social Enterprise Admin,Central Services,http://opendatacommunities.org/def/concept/finance/sercop/objective/102,HYGIENE CLEANING SUPPLIES LTD,4753934,21/10/2015,53071,144,0,12 boxes Jangro 2 ply bulk pack AB101,131011,Cleaning & Janitorial Cleaning Materials
South Lakeland District Council,http://opendatacommunities.org/id/district-council/south-lakeland,31/10/2015,Business Support Community Services,Central Services,http://opendatacommunities.org/def/concept/finance/sercop/objective/102,Aquila Training Services,5567402,14/10/2015,53072,148.5,0,Additional Place on PACE/Interview,261500,HR Training & Conferences
South Lakeland District Council,http://opendatacommunities.org/id/district-council/south-lakeland,31/10/2015,Social Enterprise Admin,Highways & Transport Services,http://opendatacommunities.org/def/concept/finance/sercop/objective/107,BEMROSE BOOTH PARAGON LTD,4891375,21/10/2015,53073,"2,866.12",0,"300,000 Hi-co Reflex Tickets.  Tickets",191600,Facilities Printing
South Lakeland District Council,http://opendatacommunities.org/id/district-council/south-lakeland,31/10/2015,Business Support Community Services,Housing Services,http://opendatacommunities.org/def/concept/finance/sercop/objective/108,Ian Smith,,14/10/2015,53074,120,0,"Gardening work at Bleaswood Road,",250000,Housing
South Lakeland District Council,http://opendatacommunities.org/id/district-council/south-lakeland,31/10/2015,Business Support Community Services,Housing Services,http://opendatacommunities.org/def/concept/finance/sercop/objective/108,Landlord,,14/10/2015,53075,"1,780.00",0,Monthly rent ,250000,Housing
South Lakeland District Council,http://opendatacommunities.org/id/district-council/south-lakeland,31/10/2015,Business Support Community Services,Housing Services,http://opendatacommunities.org/def/concept/finance/sercop/objective/108,Landlord,,14/10/2015,53076,"1,190.00",0,Monthly rent ,202000,Financial Services Rents
South Lakeland District Council,http://opendatacommunities.org/id/district-council/south-lakeland,31/10/2015,Business Support Community Services,Housing Services,http://opendatacommunities.org/def/concept/finance/sercop/objective/108,Landlord,,14/10/2015,53077,520,0,Monthly rent ,202000,Financial Services Rents
South Lakeland District Council,http://opendatacommunities.org/id/district-council/south-lakeland,31/10/2015,Business Support Community Services,Housing Services,http://opendatacommunities.org/def/concept/finance/sercop/objective/108,Landlord,,14/10/2015,53078,520,0,Monthly rent ,202000,Financial Services Rents
South Lakeland District Council,http://opendatacommunities.org/id/district-council/south-lakeland,31/10/2015,Business Support Community Services,Housing Services,http://opendatacommunities.org/def/concept/finance/sercop/objective/108,Landlord,8672920,14/10/2015,53079,400,0,Monthly rent ,202000,Financial Services Rents
South Lakeland District Council,http://opendatacommunities.org/id/district-council/south-lakeland,31/10/2015,Business Support Community Services,Housing Services,http://opendatacommunities.org/def/concept/finance/sercop/objective/108,Landlord,7121028,14/10/2015,53080,400,0,Monthly rent ,202000,Financial Services Rents
South Lakeland District Council,http://opendatacommunities.org/id/district-council/south-lakeland,31/10/2015,Business Support Community Services,Housing Services,http://opendatacommunities.org/def/concept/finance/sercop/objective/108,Landlord,,14/10/2015,53081,520,0,Monthly rent ,250010,Housing Letting Agents
South Lakeland District Council,http://opendatacommunities.org/id/district-council/south-lakeland,31/10/2015,Business Support Community Services,Housing Services,http://opendatacommunities.org/def/concept/finance/sercop/objective/108,Landlord,,14/10/2015,53082,520,0,Monthly rent ,202000,Financial Services Rents
South Lakeland District Council,http://opendatacommunities.org/id/district-council/south-lakeland,31/10/2015,Business Support Community Services,Housing Services,http://opendatacommunities.org/def/concept/finance/sercop/objective/108,Landlord,,14/10/2015,53083,600,0,Monthly rent ,250000,Housing
South Lakeland District Council,http://opendatacommunities.org/id/district-council/south-lakeland,31/10/2015,Human Resources,Central Services,http://opendatacommunities.org/def/concept/finance/sercop/objective/102,MARGARET BARROW INTERIORS LTD T/A MBI,,14/10/2015,53084,134,0,The MS200 mesh chair is available with,211200,Furniture & Soft Furn Office Furniture
South Lakeland District Council,http://opendatacommunities.org/id/district-council/south-lakeland,31/10/2015,Coronation Hall,Cultural Environmental Regulatory & Planning Services,http://opendatacommunities.org/def/concept/finance/sercop/objective/104,ST JOHN AMBULANCE CUMBRIA,,14/10/2015,53085,52.8,0,For the attention of ,311600,Healthcare Services
South Lakeland District Council,http://opendatacommunities.org/id/district-council/south-lakeland,31/10/2015,Printing Section,Central Services,http://opendatacommunities.org/def/concept/finance/sercop/objective/102,ROSEFOX PAPER LIMITED,1655083,14/10/2015,53086,383.6,0,170gam recycled paper for calendars,341000,Stationery Paper
South Lakeland District Council,http://opendatacommunities.org/id/district-council/south-lakeland,31/10/2015,Coronation Hall,Cultural Environmental Regulatory & Planning Services,http://opendatacommunities.org/def/concept/finance/sercop/objective/104,ST JOHN AMBULANCE CUMBRIA,,19/10/2015,53088,211.2,0,For the attention of ,311600,Healthcare Services
South Lakeland District Council,http://opendatacommunities.org/id/district-council/south-lakeland,31/10/2015,Coronation Hall,Cultural Environmental Regulatory & Planning Services,http://opendatacommunities.org/def/concept/finance/sercop/objective/104,ST JOHN AMBULANCE CUMBRIA,,19/10/2015,53089,52.8,0,For the attention of ,311600,Healthcare Services
South Lakeland District Council,http://opendatacommunities.org/id/district-council/south-lakeland,31/10/2015,Business Support Community Services,Housing Services,http://opendatacommunities.org/def/concept/finance/sercop/objective/108,Cumbria Cleaning Services,9016061,19/10/2015,53090,70,0,Cleaner at TVF Hostel,101300,Building Floor Coverings
South Lakeland District Council,http://opendatacommunities.org/id/district-council/south-lakeland,31/10/2015,Business Support Community Services,Housing Services,http://opendatacommunities.org/def/concept/finance/sercop/objective/108,KENDAL SECURITY CENTRE LTD,3179893,19/10/2015,53091,10,0,"Lock replacement for Fellside Court,",192212,Facilities Security Equipment
South Lakeland District Council,http://opendatacommunities.org/id/district-council/south-lakeland,31/10/2015,Business Support Community Services,Housing Services,http://opendatacommunities.org/def/concept/finance/sercop/objective/108,Robinson Property Servs & Joinery Cntrs,,19/10/2015,53092,85.64,0,Supply and install new glass to damaged,192210,Facilities Security Access Control
South Lakeland District Council,http://opendatacommunities.org/id/district-council/south-lakeland,31/10/2015,Social Enterprise Admin,Highways & Transport Services,http://opendatacommunities.org/def/concept/finance/sercop/objective/107,CONTINENTAL LANDSCAPES LTD,2108452,14/10/2015,53093,12,0,Ground maitemance contract 2015 - 2016,391310,Construction Open Spaces Construction
South Lakeland District Council,http://opendatacommunities.org/id/district-council/south-lakeland,31/10/2015,Social Enterprise Admin,Highways & Transport Services,http://opendatacommunities.org/def/concept/finance/sercop/objective/107,CONTINENTAL LANDSCAPES LTD,2108452,14/10/2015,53093,12,0,Ground maitemance contract 2015 - 2016,391310,Construction Open Spaces Construction
South Lakeland District Council,http://opendatacommunities.org/id/district-council/south-lakeland,31/10/2015,Social Enterprise Admin,Highways & Transport Services,http://opendatacommunities.org/def/concept/finance/sercop/objective/107,CONTINENTAL LANDSCAPES LTD,2108452,14/10/2015,53093,1.2,0,Ground maitemance contract 2015 - 2016,391310,Construction Open Spaces Construction
South Lakeland District Council,http://opendatacommunities.org/id/district-council/south-lakeland,31/10/2015,Social Enterprise Admin,Highways & Transport Services,http://opendatacommunities.org/def/concept/finance/sercop/objective/107,CONTINENTAL LANDSCAPES LTD,2108452,14/10/2015,53093,12,0,Ground maitemance contract 2015 - 2016,391310,Construction Open Spaces Construction
South Lakeland District Council,http://opendatacommunities.org/id/district-council/south-lakeland,31/10/2015,Social Enterprise Admin,Highways & Transport Services,http://opendatacommunities.org/def/concept/finance/sercop/objective/107,CONTINENTAL LANDSCAPES LTD,2108452,14/10/2015,53093,12,0,Ground maitemance contract 2015 - 2016,391310,Construction Open Spaces Construction
South Lakeland District Council,http://opendatacommunities.org/id/district-council/south-lakeland,31/10/2015,Social Enterprise Admin,Highways & Transport Services,http://opendatacommunities.org/def/concept/finance/sercop/objective/107,CONTINENTAL LANDSCAPES LTD,2108452,14/10/2015,53093,12,0,Ground maitemance contract 2015 - 2016,391310,Construction Open Spaces Construction
South Lakeland District Council,http://opendatacommunities.org/id/district-council/south-lakeland,31/10/2015,Social Enterprise Admin,Highways & Transport Services,http://opendatacommunities.org/def/concept/finance/sercop/objective/107,CONTINENTAL LANDSCAPES LTD,2108452,14/10/2015,53093,35.99,0,Ground maitemance contract 2015 - 2016,391310,Construction Open Spaces Construction
South Lakeland District Council,http://opendatacommunities.org/id/district-council/south-lakeland,31/10/2015,Social Enterprise Admin,Highways & Transport Services,http://opendatacommunities.org/def/concept/finance/sercop/objective/107,CONTINENTAL LANDSCAPES LTD,2108452,14/10/2015,53093,239.94,0,Ground maitemance contract 2015 - 2016,391310,Construction Open Spaces Construction
South Lakeland District Council,http://opendatacommunities.org/id/district-council/south-lakeland,31/10/2015,Social Enterprise Admin,Highways & Transport Services,http://opendatacommunities.org/def/concept/finance/sercop/objective/107,CONTINENTAL LANDSCAPES LTD,2108452,14/10/2015,53093,149.96,0,Ground maitemance contract 2015 - 2016,391310,Construction Open Spaces Construction
South Lakeland District Council,http://opendatacommunities.org/id/district-council/south-lakeland,31/10/2015,Social Enterprise Admin,Highways & Transport Services,http://opendatacommunities.org/def/concept/finance/sercop/objective/107,CONTINENTAL LANDSCAPES LTD,2108452,14/10/2015,53093,6,0,Ground maitemance contract 2015 - 2016,391310,Construction Open Spaces Construction
South Lakeland District Council,http://opendatacommunities.org/id/district-council/south-lakeland,31/10/2015,Social Enterprise Admin,Highways & Transport Services,http://opendatacommunities.org/def/concept/finance/sercop/objective/107,CONTINENTAL LANDSCAPES LTD,2108452,14/10/2015,53093,59.98,0,Ground maitemance contract 2015 - 2016,391310,Construction Open Spaces Construction
South Lakeland District Council,http://opendatacommunities.org/id/district-council/south-lakeland,31/10/2015,Social Enterprise Admin,Highways & Transport Services,http://opendatacommunities.org/def/concept/finance/sercop/objective/107,CONTINENTAL LANDSCAPES LTD,2108452,14/10/2015,53093,59.98,0,Ground maitemance contract 2015 - 2016,391310,Construction Open Spaces Construction
South Lakeland District Council,http://opendatacommunities.org/id/district-council/south-lakeland,31/10/2015,Social Enterprise Admin,Highways & Transport Services,http://opendatacommunities.org/def/concept/finance/sercop/objective/107,CONTINENTAL LANDSCAPES LTD,2108452,14/10/2015,53093,119.97,0,Ground maitemance contract 2015 - 2016,391310,Construction Open Spaces Construction
South Lakeland District Council,http://opendatacommunities.org/id/district-council/south-lakeland,31/10/2015,Social Enterprise Admin,Highways & Transport Services,http://opendatacommunities.org/def/concept/finance/sercop/objective/107,CONTINENTAL LANDSCAPES LTD,2108452,14/10/2015,53093,47.99,0,Ground maitemance contract 2015 - 2016,391310,Construction Open Spaces Construction
South Lakeland District Council,http://opendatacommunities.org/id/district-council/south-lakeland,31/10/2015,Social Enterprise Admin,Highways & Transport Services,http://opendatacommunities.org/def/concept/finance/sercop/objective/107,CONTINENTAL LANDSCAPES LTD,2108452,14/10/2015,53093,6,0,Ground maitemance contract 2015 - 2016,391310,Construction Open Spaces Construction
South Lakeland District Council,http://opendatacommunities.org/id/district-council/south-lakeland,31/10/2015,Social Enterprise Admin,Highways & Transport Services,http://opendatacommunities.org/def/concept/finance/sercop/objective/107,CONTINENTAL LANDSCAPES LTD,2108452,14/10/2015,53093,6,0,Ground maitemance contract 2015 - 2016,391310,Construction Open Spaces Construction
South Lakeland District Council,http://opendatacommunities.org/id/district-council/south-lakeland,31/10/2015,Social Enterprise Admin,Highways & Transport Services,http://opendatacommunities.org/def/concept/finance/sercop/objective/107,CONTINENTAL LANDSCAPES LTD,2108452,14/10/2015,53093,3,0,Ground maitemance contract 2015 - 2016,391310,Construction Open Spaces Construction
South Lakeland District Council,http://opendatacommunities.org/id/district-council/south-lakeland,31/10/2015,Social Enterprise Admin,Highways & Transport Services,http://opendatacommunities.org/def/concept/finance/sercop/objective/107,CONTINENTAL LANDSCAPES LTD,2108452,14/10/2015,53093,59.98,0,Ground maitemance contract 2015 - 2016,391310,Construction Open Spaces Construction
South Lakeland District Council,http://opendatacommunities.org/id/district-council/south-lakeland,31/10/2015,Social Enterprise Admin,Highways & Transport Services,http://opendatacommunities.org/def/concept/finance/sercop/objective/107,CONTINENTAL LANDSCAPES LTD,2108452,14/10/2015,53093,53.99,0,Ground maitemance contract 2015 - 2016,391310,Construction Open Spaces Construction
South Lakeland District Council,http://opendatacommunities.org/id/district-council/south-lakeland,31/10/2015,Social Enterprise Admin,Highways & Transport Services,http://opendatacommunities.org/def/concept/finance/sercop/objective/107,CONTINENTAL LANDSCAPES LTD,2108452,14/10/2015,53093,65.98,0,Ground maitemance contract 2015 - 2016,391310,Construction Open Spaces Construction
South Lakeland District Council,http://opendatacommunities.org/id/district-council/south-lakeland,31/10/2015,Social Enterprise Admin,Highways & Transport Services,http://opendatacommunities.org/def/concept/finance/sercop/objective/107,CONTINENTAL LANDSCAPES LTD,2108452,14/10/2015,53093,125.97,0,Ground maitemance contract 2015 - 2016,391310,Construction Open Spaces Construction
South Lakeland District Council,http://opendatacommunities.org/id/district-council/south-lakeland,31/10/2015,Social Enterprise Admin,Highways & Transport Services,http://opendatacommunities.org/def/concept/finance/sercop/objective/107,CONTINENTAL LANDSCAPES LTD,2108452,14/10/2015,53093,119.97,0,Ground maitemance contract 2015 - 2016,391310,Construction Open Spaces Construction
South Lakeland District Council,http://opendatacommunities.org/id/district-council/south-lakeland,31/10/2015,Social Enterprise Admin,Highways & Transport Services,http://opendatacommunities.org/def/concept/finance/sercop/objective/107,CONTINENTAL LANDSCAPES LTD,2108452,14/10/2015,53093,12,0,Ground maitemance contract 2015 - 2016,391310,Construction Open Spaces Construction
South Lakeland District Council,http://opendatacommunities.org/id/district-council/south-lakeland,31/10/2015,Social Enterprise Admin,Highways & Transport Services,http://opendatacommunities.org/def/concept/finance/sercop/objective/107,CONTINENTAL LANDSCAPES LTD,2108452,14/10/2015,53093,12,0,Ground maitemance contract 2015 - 2016,391310,Construction Open Spaces Construction
South Lakeland District Council,http://opendatacommunities.org/id/district-council/south-lakeland,31/10/2015,Social Enterprise Admin,Highways & Transport Services,http://opendatacommunities.org/def/concept/finance/sercop/objective/107,CONTINENTAL LANDSCAPES LTD,2108452,14/10/2015,53093,36.05,0,Ground maitemance contract 2015 - 2016,391310,Construction Open Spaces Construction
South Lakeland District Council,http://opendatacommunities.org/id/district-council/south-lakeland,31/10/2015,Social Enterprise Admin,Highways & Transport Services,http://opendatacommunities.org/def/concept/finance/sercop/objective/107,CONTINENTAL LANDSCAPES LTD,2108452,14/10/2015,53093,59.98,0,Ground maitemance contract 2015 - 2016,391310,Construction Open Spaces Construction
South Lakeland District Council,http://opendatacommunities.org/id/district-council/south-lakeland,31/10/2015,Social Enterprise Admin,Highways & Transport Services,http://opendatacommunities.org/def/concept/finance/sercop/objective/107,CONTINENTAL LANDSCAPES LTD,2108452,14/10/2015,53093,106.71,0,Ground maitemance contract 2015 - 2016,391310,Construction Open Spaces Construction
South Lakeland District Council,http://opendatacommunities.org/id/district-council/south-lakeland,31/10/2015,Social Enterprise Admin,Highways & Transport Services,http://opendatacommunities.org/def/concept/finance/sercop/objective/107,CONTINENTAL LANDSCAPES LTD,2108452,14/10/2015,53093,119.97,0,Ground maitemance contract 2015 - 2016,391310,Construction Open Spaces Construction
South Lakeland District Council,http://opendatacommunities.org/id/district-council/south-lakeland,31/10/2015,Social Enterprise Admin,Highways & Transport Services,http://opendatacommunities.org/def/concept/finance/sercop/objective/107,CONTINENTAL LANDSCAPES LTD,2108452,14/10/2015,53093,221.94,0,Ground maitemance contract 2015 - 2016,391310,Construction Open Spaces Construction
South Lakeland District Council,http://opendatacommunities.org/id/district-council/south-lakeland,31/10/2015,Social Enterprise Admin,Highways & Transport Services,http://opendatacommunities.org/def/concept/finance/sercop/objective/107,CONTINENTAL LANDSCAPES LTD,2108452,14/10/2015,53093,119.97,0,Ground maitemance contract 2015 - 2016,391310,Construction Open Spaces Construction
South Lakeland District Council,http://opendatacommunities.org/id/district-council/south-lakeland,31/10/2015,Social Enterprise Admin,Highways & Transport Services,http://opendatacommunities.org/def/concept/finance/sercop/objective/107,CONTINENTAL LANDSCAPES LTD,2108452,14/10/2015,53093,179.95,0,Ground maitemance contract 2015 - 2016,391310,Construction Open Spaces Construction
South Lakeland District Council,http://opendatacommunities.org/id/district-council/south-lakeland,31/10/2015,Social Enterprise Admin,Cultural Environmental Regulatory & Planning Services,http://opendatacommunities.org/def/concept/finance/sercop/objective/104,CONTINENTAL LANDSCAPES LTD,2108452,14/10/2015,53093,"9,597.41",0,Ground maitemance contract 2015 - 2016,391310,Construction Open Spaces Construction
South Lakeland District Council,http://opendatacommunities.org/id/district-council/south-lakeland,31/10/2015,Social Enterprise Admin,Cultural Environmental Regulatory & Planning Services,http://opendatacommunities.org/def/concept/finance/sercop/objective/104,CONTINENTAL LANDSCAPES LTD,2108452,14/10/2015,53093,"1,388.96",0,Ground maitemance contract 2015 - 2016,391310,Construction Open Spaces Construction
South Lakeland District Council,http://opendatacommunities.org/id/district-council/south-lakeland,31/10/2015,Social Enterprise Admin,Cultural Environmental Regulatory & Planning Services,http://opendatacommunities.org/def/concept/finance/sercop/objective/104,CONTINENTAL LANDSCAPES LTD,2108452,14/10/2015,53093,23.99,0,Ground maitemance contract 2015 - 2016,391310,Construction Open Spaces Construction
South Lakeland District Council,http://opendatacommunities.org/id/district-council/south-lakeland,31/10/2015,Social Enterprise Admin,Cultural Environmental Regulatory & Planning Services,http://opendatacommunities.org/def/concept/finance/sercop/objective/104,CONTINENTAL LANDSCAPES LTD,2108452,14/10/2015,53093,"44,527.71",0,Ground maitemance contract 2015 - 2016,391310,Construction Open Spaces Construction
South Lakeland District Council,http://opendatacommunities.org/id/district-council/south-lakeland,31/10/2015,Social Enterprise Admin,Cultural Environmental Regulatory & Planning Services,http://opendatacommunities.org/def/concept/finance/sercop/objective/104,CONTINENTAL LANDSCAPES LTD,2108452,14/10/2015,53093,359.9,0,Ground maitemance contract 2015 - 2016,391310,Construction Open Spaces Construction
South Lakeland District Council,http://opendatacommunities.org/id/district-council/south-lakeland,31/10/2015,Social Enterprise Admin,Cultural Environmental Regulatory & Planning Services,http://opendatacommunities.org/def/concept/finance/sercop/objective/104,CONTINENTAL LANDSCAPES LTD,2108452,14/10/2015,53093,"2,279.38",0,Ground maitemance contract 2015 - 2016,391310,Construction Open Spaces Construction
South Lakeland District Council,http://opendatacommunities.org/id/district-council/south-lakeland,31/10/2015,Social Enterprise Admin,External Trading Accounts,,CONTINENTAL LANDSCAPES LTD,2108452,14/10/2015,53093,104.97,0,Ground maitemance contract 2015 - 2016,391310,Construction Open Spaces Construction
South Lakeland District Council,http://opendatacommunities.org/id/district-council/south-lakeland,31/10/2015,Democratic Services,Central Services,http://opendatacommunities.org/def/concept/finance/sercop/objective/102,MARCHESI CENTRE,,19/10/2015,53094,37,0,For hire of the main hall on 2 October,321000,Social Care Adult
South Lakeland District Council,http://opendatacommunities.org/id/district-council/south-lakeland,31/10/2015,Development Implementation,Cultural Environmental Regulatory & Planning Services,http://opendatacommunities.org/def/concept/finance/sercop/objective/104,Reed Midem Ltd,2225211,19/10/2015,53095,705,0,MIPIM passes,291000,Arts & Leisure Services Events
South Lakeland District Council,http://opendatacommunities.org/id/district-council/south-lakeland,31/10/2015,Social Enterprise Admin,Highways & Transport Services,http://opendatacommunities.org/def/concept/finance/sercop/objective/107,BEMROSE BOOTH PARAGON LTD,4891375,28/10/2015,53096,378.75,0,"25,000 Auro self-adhesive pay and",191600,Facilities Printing
South Lakeland District Council,http://opendatacommunities.org/id/district-council/south-lakeland,31/10/2015,Revenues and Benefits,SLDC as Agent,,ROYAL MAIL GROUP PLC,,19/10/2015,53102,"4,678.26",0,2015-2016 Postal Charges a/c 0198123013,301200,Mail Services� Postage
South Lakeland District Council,http://opendatacommunities.org/id/district-council/south-lakeland,31/10/2015,Revenues and Benefits,Central Services,http://opendatacommunities.org/def/concept/finance/sercop/objective/102,HER MAJESTY'S COURTS & TRIBUNAL SERVICE,,19/10/2015,53103,222,0,2015-2016 Council Tax Service,908001,Public Bodies Other Public Bodies
South Lakeland District Council,http://opendatacommunities.org/id/district-council/south-lakeland,31/10/2015,Revenues and Benefits,Central Services,http://opendatacommunities.org/def/concept/finance/sercop/objective/102,HER MAJESTY'S COURTS & TRIBUNAL SERVICE,,19/10/2015,53103,"2,037.00",0,2015-2016 Council Tax Service,908001,Public Bodies Other Public Bodies
South Lakeland District Council,http://opendatacommunities.org/id/district-council/south-lakeland,31/10/2015,Human Resources,Central Services,http://opendatacommunities.org/def/concept/finance/sercop/objective/102,Forge Training,,19/10/2015,53104,"1,290.00",0,SharePoint Training - 19th & 20th,261500,HR Training & Conferences
South Lakeland District Council,http://opendatacommunities.org/id/district-council/south-lakeland,31/10/2015,Business Support Community Services,Internal Trading Accounts,,Gas Safe Consultants Ltd,3724165,19/10/2015,53105,54.5,0,Gas safety refresher training: D,371100,Utilities Gas
South Lakeland District Council,http://opendatacommunities.org/id/district-council/south-lakeland,31/10/2015,Environmental Protection,Cultural Environmental Regulatory & Planning Services,http://opendatacommunities.org/def/concept/finance/sercop/objective/104,CUMBRIA WASTE RECYCLING LTD,3162439,21/10/2015,53106,99.55,0,SLDC Cemetery waster bin emptying April,182012,Environment Waste Management Recycling
South Lakeland District Council,http://opendatacommunities.org/id/district-council/south-lakeland,31/10/2015,Social Enterprise Admin,Cultural Environmental Regulatory & Planning Services,http://opendatacommunities.org/def/concept/finance/sercop/objective/104,CUMBRIA WASTE RECYCLING LTD,3162439,28/10/2015,53108,202.4,0,Emptying of Summer Refuse bins held at,182012,Environment Waste Management Recycling
South Lakeland District Council,http://opendatacommunities.org/id/district-council/south-lakeland,31/10/2015,Environmental Protection,Cultural Environmental Regulatory & Planning Services,http://opendatacommunities.org/def/concept/finance/sercop/objective/104,CUMBRIA WASTE RECYCLING LTD,3162439,21/10/2015,53109,59.44,0,SLDC Cemetery waster bin emptying April,182012,Environment Waste Management Recycling
South Lakeland District Council,http://opendatacommunities.org/id/district-council/south-lakeland,31/10/2015,Environmental Protection,Cultural Environmental Regulatory & Planning Services,http://opendatacommunities.org/def/concept/finance/sercop/objective/104,CUMBRIA WASTE RECYCLING LTD,3162439,21/10/2015,53110,29.72,0,SLDC Cemetery waster bin emptying April,182012,Environment Waste Management Recycling
South Lakeland District Council,http://opendatacommunities.org/id/district-council/south-lakeland,31/10/2015,Environmental Protection,Cultural Environmental Regulatory & Planning Services,http://opendatacommunities.org/def/concept/finance/sercop/objective/104,CUMBRIA WASTE RECYCLING LTD,3162439,21/10/2015,53111,25.92,0,SLDC Cemetery waster bin emptying April,182012,Environment Waste Management Recycling
South Lakeland District Council,http://opendatacommunities.org/id/district-council/south-lakeland,31/10/2015,Social Enterprise Admin,Highways & Transport Services,http://opendatacommunities.org/def/concept/finance/sercop/objective/107,CUMBRIA WASTE RECYCLING LTD,3162439,21/10/2015,53112,49.61,0,Westmorland Multi-Storey 660ltr wheelie,182012,Environment Waste Management Recycling
South Lakeland District Council,http://opendatacommunities.org/id/district-council/south-lakeland,31/10/2015,Environmental Protection,Cultural Environmental Regulatory & Planning Services,http://opendatacommunities.org/def/concept/finance/sercop/objective/104,CUMBRIA WASTE RECYCLING LTD,3162439,21/10/2015,53114,68.72,0,SLDC Cemetery waster bin emptying April,182012,Environment Waste Management Recycling
South Lakeland District Council,http://opendatacommunities.org/id/district-council/south-lakeland,31/10/2015,Kendal Town Hall,Cultural Environmental Regulatory & Planning Services,http://opendatacommunities.org/def/concept/finance/sercop/objective/104,CUMBRIA WASTE RECYCLING LTD,3162439,21/10/2015,53115,125.4,0,Weekly collection of the bins at Kendal,182012,Environment Waste Management Recycling
South Lakeland District Council,http://opendatacommunities.org/id/district-council/south-lakeland,31/10/2015,Coronation Hall,External Trading Accounts,,CUMBRIA WASTE RECYCLING LTD,3162439,21/10/2015,53117,482.43,0,"Emptying of skips from Market Hall,",182012,Environment Waste Management Recycling
South Lakeland District Council,http://opendatacommunities.org/id/district-council/south-lakeland,31/10/2015,Lake Wardens,Cultural Environmental Regulatory & Planning Services,http://opendatacommunities.org/def/concept/finance/sercop/objective/104,CUMBRIA WASTE RECYCLING LTD,3162439,21/10/2015,53118,218.56,0,Emptying of Refuse Wheelie Bins held at,182012,Environment Waste Management Recycling
South Lakeland District Council,http://opendatacommunities.org/id/district-council/south-lakeland,31/10/2015,Environmental Protection,Cultural Environmental Regulatory & Planning Services,http://opendatacommunities.org/def/concept/finance/sercop/objective/104,CUMBRIA WASTE RECYCLING LTD,3162439,21/10/2015,53120,91.92,0,SLDC Cemetery waster bin emptying April,182012,Environment Waste Management Recycling
South Lakeland District Council,http://opendatacommunities.org/id/district-council/south-lakeland,31/10/2015,Environmental Protection,Cultural Environmental Regulatory & Planning Services,http://opendatacommunities.org/def/concept/finance/sercop/objective/104,CUMBRIA WASTE RECYCLING LTD,3162439,21/10/2015,53121,55.62,0,SLDC Cemetery waster bin emptying April,182012,Environment Waste Management Recycling
South Lakeland District Council,http://opendatacommunities.org/id/district-council/south-lakeland,31/10/2015,Kendal Town Hall,Culture and Related Serv,http://opendatacommunities.org/def/concept/finance/sercop/objective/104,SOUNDSMITH LIMITED,5366630,16/10/2015,53122,"35,232.03",0,Supply and installation of integrated,171111,Education Audio Visual
South Lakeland District Council,http://opendatacommunities.org/id/district-council/south-lakeland,31/10/2015,Social Enterprise Admin,Cultural Environmental Regulatory & Planning Services,http://opendatacommunities.org/def/concept/finance/sercop/objective/104,NEWSQUEST MEDIA GROUP LTD,3102566,21/10/2015,53123,95,0,PUBLIC NOTICES FOR PLANNING 1 APRIL - 31,191000,Facilities Advertising
South Lakeland District Council,http://opendatacommunities.org/id/district-council/south-lakeland,31/10/2015,Financial Services,Central Services,http://opendatacommunities.org/def/concept/finance/sercop/objective/102,NEWSQUEST MEDIA GROUP LTD,3102566,21/10/2015,53124,113,0,Completion of Audit Notice 2014/15,191000,Facilities Advertising
South Lakeland District Council,http://opendatacommunities.org/id/district-council/south-lakeland,31/10/2015,Business Support Community Services,Internal Trading Accounts,,BRIAN ARMISTEAD LTD T/A SINKFALL RECYCLI,4133280,21/10/2015,53125,"1,889.20",0,Green waste tipping - 2015/16,391110,Construction Buildings Construction
South Lakeland District Council,http://opendatacommunities.org/id/district-council/south-lakeland,31/10/2015,Revenues and Benefits,Central Services,http://opendatacommunities.org/def/concept/finance/sercop/objective/102,ROYAL MAIL GROUP PLC,,19/10/2015,53126,360.34,0,2015-2016 Postal Charges a/c 0055114000,301200,Mail Services� Postage
South Lakeland District Council,http://opendatacommunities.org/id/district-council/south-lakeland,31/10/2015,Revenues and Benefits,SLDC as Agent,,ROYAL MAIL GROUP PLC,,19/10/2015,53127,"1,462.47",0,2015-2016 Postal Charges a/c 0198123013,301200,Mail Services� Postage
South Lakeland District Council,http://opendatacommunities.org/id/district-council/south-lakeland,31/10/2015,Social Enterprise Admin,Highways & Transport Services,http://opendatacommunities.org/def/concept/finance/sercop/objective/107,METRIC GROUP LIMITED,2560839,26/10/2015,53128,179,0,Aura Elite Security Kit including,359999,Street & Traffic Not Elsewhere Classifie
South Lakeland District Council,http://opendatacommunities.org/id/district-council/south-lakeland,31/10/2015,Coronation Hall,External Trading Accounts,,YPO,,19/10/2015,53129,18.84,0,Taski Sprint - hard surface cleaner 5,152000,Consultancy Procurement
South Lakeland District Council,http://opendatacommunities.org/id/district-council/south-lakeland,31/10/2015,Coronation Hall,Cultural Environmental Regulatory & Planning Services,http://opendatacommunities.org/def/concept/finance/sercop/objective/104,YPO,,19/10/2015,53129,6.28,0,Taski Sprint - hard surface cleaner 5,152000,Consultancy Procurement
South Lakeland District Council,http://opendatacommunities.org/id/district-council/south-lakeland,31/10/2015,Social Enterprise Admin,Cultural Environmental Regulatory & Planning Services,http://opendatacommunities.org/def/concept/finance/sercop/objective/104,ARCO LIMITED,133804,26/10/2015,53130,35.47,0,9F0304 Flexothane Classic Jacket Yellow,141100,Clothing Protective
South Lakeland District Council,http://opendatacommunities.org/id/district-council/south-lakeland,31/10/2015,Business Support Community Services,Internal Trading Accounts,,JOHNSTON SWEEPERS LTD,199841,21/10/2015,53131,123.8,0,Switch,181600,Environment Street Cleansing
South Lakeland District Council,http://opendatacommunities.org/id/district-council/south-lakeland,31/10/2015,Business Support Community Services,Cultural Environmental Regulatory & Planning Services,http://opendatacommunities.org/def/concept/finance/sercop/objective/104,CUMBRIA MAILING SERVICES LTD,3136821,19/10/2015,53132,759.59,0,Mailing services,301200,Mail Services� Postage
South Lakeland District Council,http://opendatacommunities.org/id/district-council/south-lakeland,31/10/2015,Financial Services,Central Services,http://opendatacommunities.org/def/concept/finance/sercop/objective/102,STRAMONGATE PRESS LTD (PRINTING A/C),,19/10/2015,53133,93,0,General receipt books,191600,Facilities Printing
South Lakeland District Council,http://opendatacommunities.org/id/district-council/south-lakeland,31/10/2015,Financial Services,External Trading Accounts,,STRAMONGATE PRESS LTD (PRINTING A/C),,19/10/2015,53134,102.5,0,Market Receipt Books,191600,Facilities Printing
South Lakeland District Council,http://opendatacommunities.org/id/district-council/south-lakeland,31/10/2015,Financial Services,External Trading Accounts,,STRAMONGATE PRESS LTD (PRINTING A/C),,19/10/2015,53134,102.5,0,Market Receipt Books,191600,Facilities Printing
South Lakeland District Council,http://opendatacommunities.org/id/district-council/south-lakeland,31/10/2015,Business Support Community Services,Cultural Environmental Regulatory & Planning Services,http://opendatacommunities.org/def/concept/finance/sercop/objective/104,Klipspringer Ltd,7676073,21/10/2015,53136,90,0,Recalibration of reference thermometer,119999,Catering Not Elsewhere Classified
South Lakeland District Council,http://opendatacommunities.org/id/district-council/south-lakeland,31/10/2015,Kendal Town Hall,Cultural Environmental Regulatory & Planning Services,http://opendatacommunities.org/def/concept/finance/sercop/objective/104,NPS NORTH WEST LTD,6614601,19/10/2015,53146,128.65,0,Design work associated with Windermere,391110,Construction Buildings Construction
South Lakeland District Council,http://opendatacommunities.org/id/district-council/south-lakeland,31/10/2015,Business Support Community Services,Internal Trading Accounts,,ARCO LIMITED,133804,19/10/2015,53147,14.35,0,PPE 2015/16,141100,Clothing Protective
South Lakeland District Council,http://opendatacommunities.org/id/district-council/south-lakeland,31/10/2015,Business Support Community Services,Internal Trading Accounts,,GREENCHEM SOLUTIONS LTD,5175801,19/10/2015,53148,0,0,AdBlue,189999,Environmental Services Not Elsewhere Cla
South Lakeland District Council,http://opendatacommunities.org/id/district-council/south-lakeland,31/10/2015,Business Support Community Services,Internal Trading Accounts,,GREENCHEM SOLUTIONS LTD,5175801,19/10/2015,53148,79.75,0,AdBlue,189999,Environmental Services Not Elsewhere Cla
South Lakeland District Council,http://opendatacommunities.org/id/district-council/south-lakeland,31/10/2015,Business Support Community Services,Internal Trading Accounts,,GREENCHEM SOLUTIONS LTD,5175801,19/10/2015,53148,321,0,AdBlue,189999,Environmental Services Not Elsewhere Cla
South Lakeland District Council,http://opendatacommunities.org/id/district-council/south-lakeland,31/10/2015,Development Implementation,Central Services,http://opendatacommunities.org/def/concept/finance/sercop/objective/102,Pugh & Company Ltd,3960050,21/10/2015,53149,650,0,"Auction Fees for land at Little Moss,",391100,Construction Buildings
South Lakeland District Council,http://opendatacommunities.org/id/district-council/south-lakeland,31/10/2015,Environment and Housing,Housing,http://opendatacommunities.org/def/concept/finance/sercop/objective/108,Raymond Bryning,,19/10/2015,53150,"15,000.00",0,"Ground, 1st, 2nd Floors at rear of",250000,Housing
South Lakeland District Council,http://opendatacommunities.org/id/district-council/south-lakeland,31/10/2015,ICT Group,Central Services,http://opendatacommunities.org/def/concept/finance/sercop/objective/102,ITPS Professional Services Ltd (DD),,01/10/2015,53151,53.6,0,WLR3 Business Line Rental and Zen Lite,271700,ICT Telecommunications Fixed
South Lakeland District Council,http://opendatacommunities.org/id/district-council/south-lakeland,31/10/2015,ICT Group,Central Services,http://opendatacommunities.org/def/concept/finance/sercop/objective/102,ITPS Professional Services Ltd (DD),,01/10/2015,53152,913.24,0,WLR3 Business Line Rental and Zen Lite,271700,ICT Telecommunications Fixed
South Lakeland District Council,http://opendatacommunities.org/id/district-council/south-lakeland,31/10/2015,ICT Group,Central Services,http://opendatacommunities.org/def/concept/finance/sercop/objective/102,ITPS Professional Services Ltd (DD),,01/10/2015,53152,618.69,0,WLR3 Business Line Rental and Zen Lite,271700,ICT Telecommunications Fixed
South Lakeland District Council,http://opendatacommunities.org/id/district-council/south-lakeland,31/10/2015,Social Enterprise Admin,Central Services,http://opendatacommunities.org/def/concept/finance/sercop/objective/102,LAKE DISTRICT NATIONAL PARK AUTHORITY,,28/10/2015,53153,"3,700.00",0,LAND CHARGE SEARCH ENQUIRIES LDNPA,201700,Financial Services Grants
South Lakeland District Council,http://opendatacommunities.org/id/district-council/south-lakeland,31/10/2015,Business Support Community Services,Internal Trading Accounts,,COMPASS COMPONENTS,,21/10/2015,53154,192.38,0,Consumables 01/04/15 - 31/03/16,101400,Building General Materials
South Lakeland District Council,http://opendatacommunities.org/id/district-council/south-lakeland,31/10/2015,Social Enterprise Admin,Highways & Transport Services,http://opendatacommunities.org/def/concept/finance/sercop/objective/107,METRIC GROUP LIMITED,2560839,21/10/2015,53155,205.63,0,Call-out to inspect vandalism at Rydal,359999,Street & Traffic Not Elsewhere Classifie
South Lakeland District Council,http://opendatacommunities.org/id/district-council/south-lakeland,31/10/2015,Social Enterprise Admin,Highways & Transport Services,http://opendatacommunities.org/def/concept/finance/sercop/objective/107,METRIC GROUP LIMITED,2560839,21/10/2015,53156,126.26,0,Call out and inspection of machines,359999,Street & Traffic Not Elsewhere Classifie
South Lakeland District Council,http://opendatacommunities.org/id/district-council/south-lakeland,31/10/2015,Coronation Hall,External Trading Accounts,,Morson International,,19/10/2015,53157,80.22,0,Ulverston Market Hall cleaner to y/e 31,261300,HR Recruitment & Assessment
South Lakeland District Council,http://opendatacommunities.org/id/district-council/south-lakeland,31/10/2015,Social Enterprise Admin,Highways & Transport Services,http://opendatacommunities.org/def/concept/finance/sercop/objective/107,Masterstaff Limited,2777593,19/10/2015,53158,366.3,0,Staff for Westmorland SC car park,261300,HR Recruitment & Assessment
South Lakeland District Council,http://opendatacommunities.org/id/district-council/south-lakeland,31/10/2015,Development Management,Cultural Environmental Regulatory & Planning Services,http://opendatacommunities.org/def/concept/finance/sercop/objective/104,Ronnie Haddow Chimney Services,,19/10/2015,53159,200,0,Checking of Stoves in connection with,131310,Cleaning & Janitorial Cleaning Service
South Lakeland District Council,http://opendatacommunities.org/id/district-council/south-lakeland,31/10/2015,Legal Services,Cultural Environmental Regulatory & Planning Services,http://opendatacommunities.org/def/concept/finance/sercop/objective/104,Cornerstone Barristers,,19/10/2015,53161,"1,920.00",0,Fees in relation to a potential judocial,281300,Legal Services Legal Opinion
South Lakeland District Council,http://opendatacommunities.org/id/district-council/south-lakeland,31/10/2015,Business Support Community Services,Housing Services,http://opendatacommunities.org/def/concept/finance/sercop/objective/108,Cumbria Cleaning Services,9016061,19/10/2015,53164,660,0,Cleaner at TVF Hostel,101300,Building Floor Coverings
South Lakeland District Council,http://opendatacommunities.org/id/district-council/south-lakeland,31/10/2015,Human Resources,Central Services,http://opendatacommunities.org/def/concept/finance/sercop/objective/102,OH Acquisitions Ltd,7365943,21/10/2015,53165,703.75,0,Full day clinic 5 August 2015,191800,Facilities Public Relations & Image
South Lakeland District Council,http://opendatacommunities.org/id/district-council/south-lakeland,31/10/2015,Business Support Community Services,Internal Trading Accounts,,TAYLOR ENGINEERING & FABRICATIONS LTD,4989359,28/10/2015,53166,175.85,0,Filters,391200,Construction Engineering
South Lakeland District Council,http://opendatacommunities.org/id/district-council/south-lakeland,31/10/2015,Business Support Community Services,Internal Trading Accounts,,TAYLOR ENGINEERING & FABRICATIONS LTD,4989359,28/10/2015,53166,115.88,0,Filters,391200,Construction Engineering
South Lakeland District Council,http://opendatacommunities.org/id/district-council/south-lakeland,31/10/2015,Business Support Community Services,Internal Trading Accounts,,TAYLOR ENGINEERING & FABRICATIONS LTD,4989359,28/10/2015,53167,400.94,0,Filters,391200,Construction Engineering
South Lakeland District Council,http://opendatacommunities.org/id/district-council/south-lakeland,31/10/2015,Business Support Community Services,Internal Trading Accounts,,FLEET PARTS LTD,1252714,19/10/2015,53168,"1,995.00",0,Texa,381500,Vehicle Mgt Parts
South Lakeland District Council,http://opendatacommunities.org/id/district-council/south-lakeland,31/10/2015,Business Support Community Services,Central Services,http://opendatacommunities.org/def/concept/finance/sercop/objective/102,CUMBRIA WASTE MANAGEMENT LIMITED,2665973,19/10/2015,53169,97.5,0,COTC cover at Ecclerigg - 2015/16,182015,Environment Waste Mgt Waste Disposal
South Lakeland District Council,http://opendatacommunities.org/id/district-council/south-lakeland,31/10/2015,Business Support Community Services,Internal Trading Accounts,,LANCASTER TRAINING SERVICES LTD,1447612,19/10/2015,53170,777.5,0,Training 2015/16,261500,HR Training & Conferences
South Lakeland District Council,http://opendatacommunities.org/id/district-council/south-lakeland,31/10/2015,Business Support Community Services,Internal Trading Accounts,,RIBBLE FUEL OILS,,19/10/2015,53171,"1,030.00",0,Gas oil - Ulverston,381100,Vehicle Mgt Fuel
South Lakeland District Council,http://opendatacommunities.org/id/district-council/south-lakeland,31/10/2015,Research and Intelligence,Central Services,http://opendatacommunities.org/def/concept/finance/sercop/objective/102,INFORMATION COMMISSIONERS OFFICE,,19/10/2015,53172,500,0,Data Protection License Z4644478,202100,Financial Services Subscriptions
South Lakeland District Council,http://opendatacommunities.org/id/district-council/south-lakeland,31/10/2015,Business Support Community Services,Internal Trading Accounts,,FAUN ZOELLER (UK) LTD,751804,19/10/2015,53173,95.48,0,Bump pads,381400,Vehicle Mgt Maintenance
South Lakeland District Council,http://opendatacommunities.org/id/district-council/south-lakeland,31/10/2015,Development Implementation,Cultural Environmental Regulatory & Planning Services,http://opendatacommunities.org/def/concept/finance/sercop/objective/104,WiFi Spark Ltd,,19/10/2015,53174,402.18,0,Kendal Town Centre Wifi - 12 months,271800,ICT Telecommunications Mobile
South Lakeland District Council,http://opendatacommunities.org/id/district-council/south-lakeland,31/10/2015,Development Implementation,Cultural Environmental Regulatory & Planning Services,http://opendatacommunities.org/def/concept/finance/sercop/objective/104,THE QUAKER TAPESTRY KENDAL LTD,,19/10/2015,53175,550,0,Participation in the Kendal Courtesy,291400,Arts & Leisure Services Sport & Fitness
South Lakeland District Council,http://opendatacommunities.org/id/district-council/south-lakeland,31/10/2015,Human Resources,Non-Service Payments,,COMPUTERSHARE VOUCHER SERVICES LTD,4968447,19/10/2015,53177,"1,173.00",0,child care vouchers,202100,Financial Services Subscriptions
South Lakeland District Council,http://opendatacommunities.org/id/district-council/south-lakeland,31/10/2015,Human Resources,Central Services,http://opendatacommunities.org/def/concept/finance/sercop/objective/102,COMPUTERSHARE VOUCHER SERVICES LTD,4968447,19/10/2015,53178,43.99,0,child care vouchers,202100,Financial Services Subscriptions
South Lakeland District Council,http://opendatacommunities.org/id/district-council/south-lakeland,31/10/2015,Human Resources,Non-Service Payments,,BUSY BEES BENEFITS LTD,6758298,19/10/2015,53179,696,0,child care vouchers,202100,Financial Services Subscriptions
South Lakeland District Council,http://opendatacommunities.org/id/district-council/south-lakeland,31/10/2015,Human Resources,Central Services,http://opendatacommunities.org/def/concept/finance/sercop/objective/102,BUSY BEES BENEFITS LTD,6758298,19/10/2015,53180,24.36,0,child care vouchers,202100,Financial Services Subscriptions
South Lakeland District Council,http://opendatacommunities.org/id/district-council/south-lakeland,31/10/2015,ICT Group,Central Services,http://opendatacommunities.org/def/concept/finance/sercop/objective/102,SOCITM LIMITED,4396808,19/10/2015,53181,890,0,Insight renewal  January 2016 to,152200,Consultancy Technical & Feasibility
South Lakeland District Council,http://opendatacommunities.org/id/district-council/south-lakeland,31/10/2015,Social Enterprise Admin,Cultural Environmental Regulatory & Planning Services,http://opendatacommunities.org/def/concept/finance/sercop/objective/104,VICTORIA PINK,,21/10/2015,53182,46.52,0,"TRANSCRIPT - 8, CASTLE PARK, KENDAL  (G",271400,ICT Office & Reprographics Equipment
South Lakeland District Council,http://opendatacommunities.org/id/district-council/south-lakeland,31/10/2015,Business Support Community Services,Internal Trading Accounts,,TTS (GARSTANG) LTD,4990573,26/10/2015,53186,209.79,0,Repair weigher,381500,Vehicle Mgt Parts
South Lakeland District Council,http://opendatacommunities.org/id/district-council/south-lakeland,31/10/2015,Business Support Community Services,Internal Trading Accounts,,H WICKS (LINDAL) LTD,754590,26/10/2015,53187,"1,827.52",0,"Gate fees, handling & baling of",182012,Environment Waste Management Recycling
South Lakeland District Council,http://opendatacommunities.org/id/district-council/south-lakeland,31/10/2015,Human Resources,Central Services,http://opendatacommunities.org/def/concept/finance/sercop/objective/102,SOUTH LAKES HOUSING,IP031419,21/10/2015,53190,90,0,working safely for 12 people,191700,Facilities Property Management
South Lakeland District Council,http://opendatacommunities.org/id/district-council/south-lakeland,31/10/2015,Environmental Protection,Cultural Environmental Regulatory & Planning Services,http://opendatacommunities.org/def/concept/finance/sercop/objective/104,COOPER ENGRAVING,,21/10/2015,53191,70,0,1 off of each plaque ofr Ronal LOCKWOOD,102400,Building Signage
South Lakeland District Council,http://opendatacommunities.org/id/district-council/south-lakeland,31/10/2015,Revenues and Benefits,Central Services,http://opendatacommunities.org/def/concept/finance/sercop/objective/102,LOOMIS UK LTD,3200432,21/10/2015,53192,105.5,0,2015-16  Langstone House Surcharge,192200,Facilities Security
South Lakeland District Council,http://opendatacommunities.org/id/district-council/south-lakeland,31/10/2015,Revenues and Benefits,Highways & Transport Services,http://opendatacommunities.org/def/concept/finance/sercop/objective/107,LOOMIS UK LTD,3200432,21/10/2015,53192,951.28,0,2015-16  Langstone House Surcharge,192200,Facilities Security
South Lakeland District Council,http://opendatacommunities.org/id/district-council/south-lakeland,31/10/2015,ICT Group,Central Services,http://opendatacommunities.org/def/concept/finance/sercop/objective/102,Insight Direct (Uk) Ltd,2579852,21/10/2015,53194,110.16,0,0001472010  Microsoft Wired Keyboard 600,271200,ICT Hardware
South Lakeland District Council,http://opendatacommunities.org/id/district-council/south-lakeland,31/10/2015,Human Resources,Central Services,http://opendatacommunities.org/def/concept/finance/sercop/objective/102,GBS Corporate Training,6452080,21/10/2015,53195,995,0,Project Management - 11th June 2015,261500,HR Training & Conferences
South Lakeland District Council,http://opendatacommunities.org/id/district-council/south-lakeland,31/10/2015,Printing Section,Central Services,http://opendatacommunities.org/def/concept/finance/sercop/objective/102,ADECCO UK LIMITED,593232,26/10/2015,53214,478.71,0,10 Weeks @ 37 hours per week ,261400,HR Temporary & Agency Staff
South Lakeland District Council,http://opendatacommunities.org/id/district-council/south-lakeland,31/10/2015,Printing Section,Central Services,http://opendatacommunities.org/def/concept/finance/sercop/objective/102,ADECCO UK LIMITED,593232,26/10/2015,53215,484.62,0,10 Weeks @ 37 hours per week ,261400,HR Temporary & Agency Staff
South Lakeland District Council,http://opendatacommunities.org/id/district-council/south-lakeland,31/10/2015,Development Implementation,Central Services,http://opendatacommunities.org/def/concept/finance/sercop/objective/102,ADECCO UK LIMITED,593232,26/10/2015,53216,639.6,0,Economic Development Officer -,261400,HR Temporary & Agency Staff
South Lakeland District Council,http://opendatacommunities.org/id/district-council/south-lakeland,31/10/2015,Development Implementation,Central Services,http://opendatacommunities.org/def/concept/finance/sercop/objective/102,ADECCO UK LIMITED,593232,26/10/2015,53217,233.7,0,Economic Development Project Officer -,261400,HR Temporary & Agency Staff
South Lakeland District Council,http://opendatacommunities.org/id/district-council/south-lakeland,31/10/2015,Development Implementation,Central Services,http://opendatacommunities.org/def/concept/finance/sercop/objective/102,ADECCO UK LIMITED,593232,26/10/2015,53218,246,0,Economic Development Project Officer -,261400,HR Temporary & Agency Staff
South Lakeland District Council,http://opendatacommunities.org/id/district-council/south-lakeland,31/10/2015,Business Support Community Services,Internal Trading Accounts,,Masterstaff Limited,2777593,21/10/2015,53224,"4,820.86",0,Agency staff - October 2015,261300,HR Recruitment & Assessment
South Lakeland District Council,http://opendatacommunities.org/id/district-council/south-lakeland,31/10/2015,Business Support Community Services,Internal Trading Accounts,,M G D LTD,,21/10/2015,53225,35,0,MOTs 01/04/15 - 31/03/16,381400,Vehicle Mgt Maintenance
South Lakeland District Council,http://opendatacommunities.org/id/district-council/south-lakeland,31/10/2015,Business Support Community Services,Internal Trading Accounts,,CUMBRIA WASTE RECYCLING LTD,3162439,21/10/2015,53226,"1,230.78",0,Skip emptying at Ecclerigg & Ulverston,182012,Environment Waste Management Recycling
South Lakeland District Council,http://opendatacommunities.org/id/district-council/south-lakeland,31/10/2015,Business Support Community Services,Internal Trading Accounts,,CUMBRIA WASTE RECYCLING LTD,3162439,21/10/2015,53227,108,0,Skip emptying at Ecclerigg & Ulverston,182012,Environment Waste Management Recycling
South Lakeland District Council,http://opendatacommunities.org/id/district-council/south-lakeland,31/10/2015,Business Support Community Services,Cultural Environmental Regulatory & Planning Services,http://opendatacommunities.org/def/concept/finance/sercop/objective/104,CUMBRIA WASTE RECYCLING LTD,3162439,21/10/2015,53228,"12,017.30",0,Empty recycling banks in 2015/16,182012,Environment Waste Management Recycling
South Lakeland District Council,http://opendatacommunities.org/id/district-council/south-lakeland,31/10/2015,Kendal Town Hall,Cultural Environmental Regulatory & Planning Services,http://opendatacommunities.org/def/concept/finance/sercop/objective/104,SOUNDSMITH LIMITED,5366630,21/10/2015,53230,430.8,0,Portable PA system hire for Pennington,171111,Education Audio Visual
South Lakeland District Council,http://opendatacommunities.org/id/district-council/south-lakeland,31/10/2015,Business Support Community Services,Housing Services,http://opendatacommunities.org/def/concept/finance/sercop/objective/108,Landlord,7803122,21/10/2015,53231,"1,000.00",0,Monthly rent ,250000,Housing
South Lakeland District Council,http://opendatacommunities.org/id/district-council/south-lakeland,31/10/2015,Business Support Community Services,Housing Services,http://opendatacommunities.org/def/concept/finance/sercop/objective/108,Landlord,,21/10/2015,53232,520,0,Monthly rent ,202000,Financial Services Rents
South Lakeland District Council,http://opendatacommunities.org/id/district-council/south-lakeland,31/10/2015,Business Support Community Services,SLDC as Agent,,JOANNA SMAILES,,21/10/2015,53233,97,0,NSNO Project Manager Expenses,150000,Consultancy
South Lakeland District Council,http://opendatacommunities.org/id/district-council/south-lakeland,31/10/2015,Business Support Community Services,SLDC as Agent,,JOANNA SMAILES,,21/10/2015,53234,"2,400.00",0,"Project Management, Cumbria NSNO &",150000,Consultancy
South Lakeland District Council,http://opendatacommunities.org/id/district-council/south-lakeland,31/10/2015,Social Enterprise Admin,Central Services,http://opendatacommunities.org/def/concept/finance/sercop/objective/102,EE UK LTD (NCR),,01/10/2015,53235,41.67,0,Data for 19 Sim cards for pay and,351000,Street & Traffic Parking Car Parks
South Lakeland District Council,http://opendatacommunities.org/id/district-council/south-lakeland,31/10/2015,Social Enterprise Admin,Highways & Transport Services,http://opendatacommunities.org/def/concept/finance/sercop/objective/107,EE UK LTD (NCR),,01/10/2015,53235,117,0,Data for 19 Sim cards for pay and,351000,Street & Traffic Parking Car Parks
South Lakeland District Council,http://opendatacommunities.org/id/district-council/south-lakeland,31/10/2015,Development Implementation,Cultural Environmental Regulatory & Planning Services,http://opendatacommunities.org/def/concept/finance/sercop/objective/104,KBS Business Consultancy,,26/10/2015,53236,"2,450.00",0,Continuation of Invest in South Lakeland,150000,Consultancy
South Lakeland District Council,http://opendatacommunities.org/id/district-council/south-lakeland,31/10/2015,Human Resources,Central Services,http://opendatacommunities.org/def/concept/finance/sercop/objective/102,Dilraj Sidhu,,21/10/2015,53237,"1,560.80",0,Managers Conference 23rd October,151000,Consultancy Business
South Lakeland District Council,http://opendatacommunities.org/id/district-council/south-lakeland,31/10/2015,Revenues and Benefits,Central Services,http://opendatacommunities.org/def/concept/finance/sercop/objective/102,BADENOCH & CLARK,1356186,21/10/2015,53238,520.07,0,Revs and Bens May 2015,261300,HR Recruitment & Assessment
South Lakeland District Council,http://opendatacommunities.org/id/district-council/south-lakeland,31/10/2015,Revenues and Benefits,Central Services,http://opendatacommunities.org/def/concept/finance/sercop/objective/102,BADENOCH & CLARK,1356186,21/10/2015,53240,533.4,0,Revs and Bens May 2015,261300,HR Recruitment & Assessment
South Lakeland District Council,http://opendatacommunities.org/id/district-council/south-lakeland,31/10/2015,Revenues and Benefits,Central Services,http://opendatacommunities.org/def/concept/finance/sercop/objective/102,BADENOCH & CLARK,1356186,21/10/2015,53241,506.73,0,Revs and Bens May 2015,261300,HR Recruitment & Assessment
South Lakeland District Council,http://opendatacommunities.org/id/district-council/south-lakeland,31/10/2015,Development Implementation,Cultural Environmental Regulatory & Planning Services,http://opendatacommunities.org/def/concept/finance/sercop/objective/104,GEORGE ROMNEY LTD,321426,26/10/2015,53244,30.65,0,2 boxes of small mint cakes for MIPIM in,111200,Catering Food & Beverages
South Lakeland District Council,http://opendatacommunities.org/id/district-council/south-lakeland,31/10/2015,Environment and Housing,Housing,http://opendatacommunities.org/def/concept/finance/sercop/objective/108,Skelwith & Langdale Community Land Trust,,26/10/2015,53245,"39,000.00",0,Affordable Housing Grant for Housing,201710,Financial Services-Grants-Charitable
South Lakeland District Council,http://opendatacommunities.org/id/district-council/south-lakeland,31/10/2015,Social Enterprise Admin,Highways & Transport Services,http://opendatacommunities.org/def/concept/finance/sercop/objective/107,MOUCHEL LTD,1686040,26/10/2015,53246,35.7,0,DVLA checks from 1 April 2015 to 31,351400,Street & Traffic Traffic Control
South Lakeland District Council,http://opendatacommunities.org/id/district-council/south-lakeland,31/10/2015,Financial Services,Central Services,http://opendatacommunities.org/def/concept/finance/sercop/objective/102,ALLPAY.NET LTD (NCR),6871069,01/10/2015,53250,61.5,0,Inv. 407284 SLBC 30.09.15,209999,Financial Services Not Elsewhere Classif
South Lakeland District Council,http://opendatacommunities.org/id/district-council/south-lakeland,31/10/2015,Financial Services,Central Services,http://opendatacommunities.org/def/concept/finance/sercop/objective/102,ALLPAY.NET LTD (NCR),6871069,01/10/2015,53251,25.65,0,Inv. 407284 SLBC 30.09.15,209999,Financial Services Not Elsewhere Classif
South Lakeland District Council,http://opendatacommunities.org/id/district-council/south-lakeland,31/10/2015,Financial Services,Central Services,http://opendatacommunities.org/def/concept/finance/sercop/objective/102,ALLPAY.NET LTD (NCR),6871069,01/10/2015,53252,"1,100.62",0,Inv. 407284 SLBC 30.09.15,209999,Financial Services Not Elsewhere Classif
South Lakeland District Council,http://opendatacommunities.org/id/district-council/south-lakeland,31/10/2015,Financial Services,Central Services,http://opendatacommunities.org/def/concept/finance/sercop/objective/102,ALLPAY.NET LTD (NCR),6871069,01/10/2015,53253,529.85,0,Inv. 407284 SLBC 30.09.15,209999,Financial Services Not Elsewhere Classif
South Lakeland District Council,http://opendatacommunities.org/id/district-council/south-lakeland,31/10/2015,Financial Services,Central Services,http://opendatacommunities.org/def/concept/finance/sercop/objective/102,ALLPAY.NET LTD (NCR),6871069,01/10/2015,53254,20.08,0,Inv. 407284 SLBC 30.09.15,209999,Financial Services Not Elsewhere Classif
South Lakeland District Council,http://opendatacommunities.org/id/district-council/south-lakeland,31/10/2015,Human Resources,Central Services,http://opendatacommunities.org/def/concept/finance/sercop/objective/102,MIDLAND SOFTWARE LTD,1852206,26/10/2015,53255,"1,989.98",0,The 4 day OA for technical consultancy,271600,ICT Software Customised & Bespoke
South Lakeland District Council,http://opendatacommunities.org/id/district-council/south-lakeland,31/10/2015,Social Enterprise Admin,Highways & Transport Services,http://opendatacommunities.org/def/concept/finance/sercop/objective/107,BEMROSE BOOTH PARAGON LTD,4891375,26/10/2015,53256,"1,128.75",0,"187,500 Aura self-adhesive pay and",191600,Facilities Printing
South Lakeland District Council,http://opendatacommunities.org/id/district-council/south-lakeland,31/10/2015,Human Resources,Central Services,http://opendatacommunities.org/def/concept/finance/sercop/objective/102,SPECSAVERS,2604077,26/10/2015,53257,119,0,"Corporate Eye Testing Service, VDU eye",311400,Healthcare Fees
South Lakeland District Council,http://opendatacommunities.org/id/district-council/south-lakeland,31/10/2015,Business Support Community Services,Internal Trading Accounts,,K & S Commerical Ltd,9068885,26/10/2015,53258,264.5,0,Repair speedo,381400,Vehicle Mgt Maintenance
South Lakeland District Council,http://opendatacommunities.org/id/district-council/south-lakeland,31/10/2015,Business Support Community Services,Internal Trading Accounts,,Driver Hire Lancaster,7762440,26/10/2015,53259,591.38,0,Agency driver - October 2015,380000,Vehicle Management
South Lakeland District Council,http://opendatacommunities.org/id/district-council/south-lakeland,31/10/2015,ICT Group,Central Services,http://opendatacommunities.org/def/concept/finance/sercop/objective/102,NORTHGATE PUBLIC SERVICES (UK) LTD,968498,26/10/2015,53263,735.05,0,Bulk Importer 15/11/15 - 14/11/16,271600,ICT Software Customised & Bespoke
South Lakeland District Council,http://opendatacommunities.org/id/district-council/south-lakeland,31/10/2015,Social Enterprise Admin,Central Services,http://opendatacommunities.org/def/concept/finance/sercop/objective/102,MARGARET BARROW INTERIORS LTD T/A MBI,,26/10/2015,53264,"1,270.00",0,4 x Chair T106 Black Havana,211200,Furniture & Soft Furn Office Furniture
South Lakeland District Council,http://opendatacommunities.org/id/district-council/south-lakeland,31/10/2015,Social Enterprise Admin,Highways & Transport Services,http://opendatacommunities.org/def/concept/finance/sercop/objective/107,PATROL,,26/10/2015,53265,756.5,0,Charges for Traffic Penalty Tribunal,192214,Facilities Security Street Wardens
South Lakeland District Council,http://opendatacommunities.org/id/district-council/south-lakeland,31/10/2015,Printing Section,Central Services,http://opendatacommunities.org/def/concept/finance/sercop/objective/102,ROSEFOX PAPER LIMITED,1655083,26/10/2015,53266,853.62,0,170gsm Recycled paper for Bin round,341000,Stationery Paper
South Lakeland District Council,http://opendatacommunities.org/id/district-council/south-lakeland,31/10/2015,Financial Services,Central Services,http://opendatacommunities.org/def/concept/finance/sercop/objective/102,Capita Secure Information Solutions Ltd,1593831,26/10/2015,53267,"2,017.73",0,Software contract Budget Module 1st Dec,271600,ICT Software Customised & Bespoke
South Lakeland District Council,http://opendatacommunities.org/id/district-council/south-lakeland,31/10/2015,Business Support Community Services,Housing Services,http://opendatacommunities.org/def/concept/finance/sercop/objective/108,James Andrews Recruitment Solutions,6834852,26/10/2015,53268,925,0,Payment for - Housing,261400,HR Temporary & Agency Staff
South Lakeland District Council,http://opendatacommunities.org/id/district-council/south-lakeland,31/10/2015,Social Enterprise Admin,Central Services,http://opendatacommunities.org/def/concept/finance/sercop/objective/102,ADECCO UK LIMITED,593232,28/10/2015,53269,446.21,0,TO SUPPLY  3 MONTH,261400,HR Temporary & Agency Staff
South Lakeland District Council,http://opendatacommunities.org/id/district-council/south-lakeland,31/10/2015,Development Implementation,Central Services,http://opendatacommunities.org/def/concept/finance/sercop/objective/102,ADECCO UK LIMITED,593232,26/10/2015,53270,483.8,0,Economic Development Officer - ,261400,HR Temporary & Agency Staff
South Lakeland District Council,http://opendatacommunities.org/id/district-council/south-lakeland,31/10/2015,Development Implementation,Central Services,http://opendatacommunities.org/def/concept/finance/sercop/objective/102,ADECCO UK LIMITED,593232,26/10/2015,53271,475.6,0,Economic Development Project Officer -,261400,HR Temporary & Agency Staff
South Lakeland District Council,http://opendatacommunities.org/id/district-council/south-lakeland,31/10/2015,Printing Section,Central Services,http://opendatacommunities.org/def/concept/finance/sercop/objective/102,PRESCO UK LTD,5923806,26/10/2015,53273,89.4,0,Renz Silver 34 loop wires size 3/16,191600,Facilities Printing
South Lakeland District Council,http://opendatacommunities.org/id/district-council/south-lakeland,31/10/2015,Kendal Town Hall,Cultural Environmental Regulatory & Planning Services,http://opendatacommunities.org/def/concept/finance/sercop/objective/104,HYGIENE CLEANING SUPPLIES LTD,4753934,26/10/2015,53275,170.44,0,3x6 Tork Advanced Centre-feed rolls,131011,Cleaning & Janitorial Cleaning Materials
South Lakeland District Council,http://opendatacommunities.org/id/district-council/south-lakeland,31/10/2015,Printing Section,Central Services,http://opendatacommunities.org/def/concept/finance/sercop/objective/102,PRESCO UK LTD,5923806,26/10/2015,53277,92.9,0,A4 200mic lamination pouches,191600,Facilities Printing
South Lakeland District Council,http://opendatacommunities.org/id/district-council/south-lakeland,31/10/2015,Business Support Community Services,Internal Trading Accounts,,M G D LTD,,26/10/2015,53279,35,0,MOTs 01/04/15 - 31/03/16,381400,Vehicle Mgt Maintenance
South Lakeland District Council,http://opendatacommunities.org/id/district-council/south-lakeland,31/10/2015,Business Support Community Services,Internal Trading Accounts,,SITA UK LTD,2291198,26/10/2015,53280,"41,185.75",0,"Tipping & disposal charges, recyclables",182015,Environment Waste Mgt Waste Disposal
South Lakeland District Council,http://opendatacommunities.org/id/district-council/south-lakeland,31/10/2015,Business Support Community Services,Internal Trading Accounts,,SITA UK LTD,2291198,26/10/2015,53281,"-15,649.56",0,"Tipping & disposal charges, recyclables",182015,Environment Waste Mgt Waste Disposal
South Lakeland District Council,http://opendatacommunities.org/id/district-council/south-lakeland,31/10/2015,Business Support Community Services,Internal Trading Accounts,,SITA UK LTD,2291198,26/10/2015,53282,"-3,369.87",0,"Tipping & disposal charges, recyclables",182015,Environment Waste Mgt Waste Disposal
South Lakeland District Council,http://opendatacommunities.org/id/district-council/south-lakeland,31/10/2015,Business Support Community Services,Internal Trading Accounts,,Preston Trade Parts Specialists,,26/10/2015,53283,31.36,0,Lens,381400,Vehicle Mgt Maintenance
South Lakeland District Council,http://opendatacommunities.org/id/district-council/south-lakeland,31/10/2015,Business Support Community Services,Internal Trading Accounts,,DENNIS EAGLE LTD,3794455,26/10/2015,53284,229.44,0,Door latch,381300,Vehicle Mgt Industrial
South Lakeland District Council,http://opendatacommunities.org/id/district-council/south-lakeland,31/10/2015,Business Support Community Services,Internal Trading Accounts,,EK MOTOR FACTORS LTD,838524,26/10/2015,53285,20.04,0,Pads,381400,Vehicle Mgt Maintenance
South Lakeland District Council,http://opendatacommunities.org/id/district-council/south-lakeland,31/10/2015,Business Support Community Services,Internal Trading Accounts,,EK MOTOR FACTORS LTD,838524,26/10/2015,53286,20.01,0,Pads,381400,Vehicle Mgt Maintenance
South Lakeland District Council,http://opendatacommunities.org/id/district-council/south-lakeland,31/10/2015,Business Support Community Services,Internal Trading Accounts,,EK MOTOR FACTORS LTD,838524,26/10/2015,53287,40.02,0,Pads,381400,Vehicle Mgt Maintenance
South Lakeland District Council,http://opendatacommunities.org/id/district-council/south-lakeland,31/10/2015,Business Support Community Services,Internal Trading Accounts,,EK MOTOR FACTORS LTD,838524,26/10/2015,53288,5.95,0,Pads,381400,Vehicle Mgt Maintenance
South Lakeland District Council,http://opendatacommunities.org/id/district-council/south-lakeland,31/10/2015,Business Support Community Services,Internal Trading Accounts,,DENNIS EAGLE LTD,3794455,26/10/2015,53289,12.26,0,Door latch,381300,Vehicle Mgt Industrial
South Lakeland District Council,http://opendatacommunities.org/id/district-council/south-lakeland,31/10/2015,Business Support Community Services,Internal Trading Accounts,,DENNIS EAGLE LTD,3794455,26/10/2015,53290,124.42,0,Door latch,381300,Vehicle Mgt Industrial
South Lakeland District Council,http://opendatacommunities.org/id/district-council/south-lakeland,31/10/2015,Business Support Community Services,Internal Trading Accounts,,DENNIS EAGLE LTD,3794455,26/10/2015,53291,65.26,0,Door latch,381300,Vehicle Mgt Industrial
South Lakeland District Council,http://opendatacommunities.org/id/district-council/south-lakeland,31/10/2015,Business Support Community Services,Internal Trading Accounts,,DENNIS EAGLE LTD,3794455,26/10/2015,53292,275.88,0,Door latch,381300,Vehicle Mgt Industrial
South Lakeland District Council,http://opendatacommunities.org/id/district-council/south-lakeland,31/10/2015,Business Support Community Services,Internal Trading Accounts,,DENNIS EAGLE LTD,3794455,26/10/2015,53293,85.44,0,Door latch,381300,Vehicle Mgt Industrial
South Lakeland District Council,http://opendatacommunities.org/id/district-council/south-lakeland,31/10/2015,Business Support Community Services,Internal Trading Accounts,,EK MOTOR FACTORS LTD,838524,26/10/2015,53294,-22.82,0,Pads,381400,Vehicle Mgt Maintenance
South Lakeland District Council,http://opendatacommunities.org/id/district-council/south-lakeland,31/10/2015,Business Support Community Services,Internal Trading Accounts,,EK MOTOR FACTORS LTD,838524,26/10/2015,53295,46.42,0,Pads,381400,Vehicle Mgt Maintenance
South Lakeland District Council,http://opendatacommunities.org/id/district-council/south-lakeland,31/10/2015,Business Support Community Services,Internal Trading Accounts,,EK MOTOR FACTORS LTD,838524,26/10/2015,53296,43.4,0,Pads,381400,Vehicle Mgt Maintenance
South Lakeland District Council,http://opendatacommunities.org/id/district-council/south-lakeland,31/10/2015,Business Support Community Services,Internal Trading Accounts,,DENNIS EAGLE LTD,3794455,26/10/2015,53297,207.64,0,Door latch,381300,Vehicle Mgt Industrial
South Lakeland District Council,http://opendatacommunities.org/id/district-council/south-lakeland,31/10/2015,Business Support Community Services,Internal Trading Accounts,,EK MOTOR FACTORS LTD,838524,26/10/2015,53298,28.37,0,Pads,381400,Vehicle Mgt Maintenance
South Lakeland District Council,http://opendatacommunities.org/id/district-council/south-lakeland,31/10/2015,Business Support Community Services,Internal Trading Accounts,,DENNIS EAGLE LTD,3794455,26/10/2015,53299,36.34,0,Door latch,381300,Vehicle Mgt Industrial
South Lakeland District Council,http://opendatacommunities.org/id/district-council/south-lakeland,31/10/2015,Business Support Community Services,Internal Trading Accounts,,EK MOTOR FACTORS LTD,838524,26/10/2015,53300,19.45,0,Pads,381400,Vehicle Mgt Maintenance
South Lakeland District Council,http://opendatacommunities.org/id/district-council/south-lakeland,31/10/2015,Business Support Community Services,Internal Trading Accounts,,DENNIS EAGLE LTD,3794455,26/10/2015,53301,94.68,0,Door latch,381300,Vehicle Mgt Industrial
South Lakeland District Council,http://opendatacommunities.org/id/district-council/south-lakeland,31/10/2015,Business Support Community Services,Internal Trading Accounts,,DENNIS EAGLE LTD,3794455,28/10/2015,53302,10.3,0,Door latch,381300,Vehicle Mgt Industrial
South Lakeland District Council,http://opendatacommunities.org/id/district-council/south-lakeland,31/10/2015,Business Support Community Services,Internal Trading Accounts,,VOLVO GROUP UK LTD,2190944,28/10/2015,53303,27,0,Wiper blades,381000,Vehicle Mgt Commercial
South Lakeland District Council,http://opendatacommunities.org/id/district-council/south-lakeland,31/10/2015,Business Support Community Services,Internal Trading Accounts,,M G D LTD,,28/10/2015,53304,35,0,MOTs 01/04/15 - 31/03/16,381400,Vehicle Mgt Maintenance
South Lakeland District Council,http://opendatacommunities.org/id/district-council/south-lakeland,31/10/2015,Business Support Community Services,Internal Trading Accounts,,M G D LTD,,28/10/2015,53305,7.5,0,MOTs 01/04/15 - 31/03/16,381400,Vehicle Mgt Maintenance
South Lakeland District Council,http://opendatacommunities.org/id/district-council/south-lakeland,31/10/2015,Social Enterprise Admin,Cultural Environmental Regulatory & Planning Services,http://opendatacommunities.org/def/concept/finance/sercop/objective/104,CONTINENTAL LANDSCAPES LTD,2108452,28/10/2015,53306,"3,614.62",0,Gravedigging  for April 2015 -March 2106,391310,Construction Open Spaces Construction
South Lakeland District Council,http://opendatacommunities.org/id/district-council/south-lakeland,31/10/2015,Revenues and Benefits,SLDC as Agent,,ROYAL MAIL GROUP PLC,,28/10/2015,53307,"1,090.23",0,2015-2016 Postal Charges a/c 0198123013,301200,Mail Services� Postage
South Lakeland District Council,http://opendatacommunities.org/id/district-council/south-lakeland,31/10/2015,Revenues and Benefits,SLDC as Agent,,ROYAL MAIL GROUP PLC,,28/10/2015,53308,-294.12,0,2015-2016 Postal Charges a/c 0198123013,301200,Mail Services� Postage
South Lakeland District Council,http://opendatacommunities.org/id/district-council/south-lakeland,31/10/2015,Revenues and Benefits,Central Services,http://opendatacommunities.org/def/concept/finance/sercop/objective/102,MERITEC LTD,3224622,28/10/2015,53309,279,0,2015 -2016 RAB Processing Contract and,391200,Construction Engineering
South Lakeland District Council,http://opendatacommunities.org/id/district-council/south-lakeland,31/10/2015,Kendal Town Hall,Cultural Environmental Regulatory & Planning Services,http://opendatacommunities.org/def/concept/finance/sercop/objective/104,THE FAIRGROUND,,28/10/2015,53310,262.93,0,2 X 1000 cafe direct classic instant,111000,Catering Banquet & Catering
South Lakeland District Council,http://opendatacommunities.org/id/district-council/south-lakeland,31/10/2015,Business Support Community Services,Internal Trading Accounts,,ARCO LIMITED,133804,28/10/2015,53311,39.27,0,PPE 2015/16,141100,Clothing Protective
South Lakeland District Council,http://opendatacommunities.org/id/district-council/south-lakeland,31/10/2015,Business Support Community Services,Transport Planning Policy,http://opendatacommunities.org/def/concept/finance/sercop/objective/107,ARCO LIMITED,133804,28/10/2015,53312,57.15,0,PPE 2015/16,141100,Clothing Protective
South Lakeland District Council,http://opendatacommunities.org/id/district-council/south-lakeland,31/10/2015,Business Support Community Services,Internal Trading Accounts,,ARCO LIMITED,133804,28/10/2015,53312,7.39,0,PPE 2015/16,141100,Clothing Protective
South Lakeland District Council,http://opendatacommunities.org/id/district-council/south-lakeland,31/10/2015,Business Support Community Services,Internal Trading Accounts,,ARCO LIMITED,133804,28/10/2015,53312,"1,413.98",0,PPE 2015/16,141100,Clothing Protective
South Lakeland District Council,http://opendatacommunities.org/id/district-council/south-lakeland,31/10/2015,Printing Section,Central Services,http://opendatacommunities.org/def/concept/finance/sercop/objective/102,Konica Minolta Bus Solutions (UK) Ltd,,28/10/2015,53313,"5,225.22",0,Konica click charges for office,192000,Facilities Reprographics
South Lakeland District Council,http://opendatacommunities.org/id/district-council/south-lakeland,31/10/2015,Printing Section,Central Services,http://opendatacommunities.org/def/concept/finance/sercop/objective/102,Konica Minolta Bus Solutions (UK) Ltd,,28/10/2015,53314,"4,351.56",0,Open Embedded License 6 April - 5 July,192000,Facilities Reprographics
South Lakeland District Council,http://opendatacommunities.org/id/district-council/south-lakeland,31/10/2015,Social Enterprise Admin,Central Services,http://opendatacommunities.org/def/concept/finance/sercop/objective/102,WOOF'S OF SEDBERGH,,28/10/2015,53315,190,0,MINI BUS SITE VISITS FOR MEMBERS RE,361300,Public Transport Passenger Transport
South Lakeland District Council,http://opendatacommunities.org/id/district-council/south-lakeland,31/10/2015,Development Implementation,Cultural Environmental Regulatory & Planning Services,http://opendatacommunities.org/def/concept/finance/sercop/objective/104,The Globe,,29/10/2015,53316,550,0,Participation in the Kendal Courtesy,201700,Financial Services Grants
South Lakeland District Council,http://opendatacommunities.org/id/district-council/south-lakeland,31/10/2015,Social Enterprise Admin,Cultural Environmental Regulatory & Planning Services,http://opendatacommunities.org/def/concept/finance/sercop/objective/104,STEELWAY FENSECURE LTD,3872973,28/10/2015,53336,"1,157.36",0,To supply 2 no 2.7m long 1.73m high,101200,Building Construction Materials- Fencing
South Lakeland District Council,http://opendatacommunities.org/id/district-council/south-lakeland,31/10/2015,Printing Section,Central Services,http://opendatacommunities.org/def/concept/finance/sercop/objective/102,Konica Minolta Bus Solutions (UK) Ltd,,28/10/2015,53340,-547.42,0,Click charges for Print Rooms Printers,192000,Facilities Reprographics
South Lakeland District Council,http://opendatacommunities.org/id/district-council/south-lakeland,31/10/2015,Printing Section,Central Services,http://opendatacommunities.org/def/concept/finance/sercop/objective/102,Konica Minolta Bus Solutions (UK) Ltd,,28/10/2015,53342,"5,374.40",0,Click charges for Print Rooms Printers,192000,Facilities Reprographics
South Lakeland District Council,http://opendatacommunities.org/id/district-council/south-lakeland,31/10/2015,Business Support Community Services,Housing Services,http://opendatacommunities.org/def/concept/finance/sercop/objective/108,Landlord,IP21411R,26/10/2015,53344,107.05,0,Rent in advance ,250000,Housing
South Lakeland District Council,http://opendatacommunities.org/id/district-council/south-lakeland,31/10/2015,Business Support Community Services,Housing Services,http://opendatacommunities.org/def/concept/finance/sercop/objective/108,Landlord,,26/10/2015,53345,500,0,Monthly rent ,202000,Financial Services Rents
South Lakeland District Council,http://opendatacommunities.org/id/district-council/south-lakeland,31/10/2015,Business Support Community Services,Housing Services,http://opendatacommunities.org/def/concept/finance/sercop/objective/108,Landlord,,26/10/2015,53346,"1,250.00",0,Monthly rent ,250000,Housing
South Lakeland District Council,http://opendatacommunities.org/id/district-council/south-lakeland,31/10/2015,Social Enterprise Admin,Cultural Environmental Regulatory & Planning Services,http://opendatacommunities.org/def/concept/finance/sercop/objective/104,LANGUAGE LINE SERVICES,5573028,26/10/2015,53347,840,0,SERVICES OF A TURKISH INTERPRETOR,261100,HR Interpretation & Translation
South Lakeland District Council,http://opendatacommunities.org/id/district-council/south-lakeland,31/10/2015,ICT Group,Central Services,http://opendatacommunities.org/def/concept/finance/sercop/objective/102,Forge Training,,26/10/2015,53348,"1,290.00",0,2 days AD training for 29th and 30th,261500,HR Training & Conferences
South Lakeland District Council,http://opendatacommunities.org/id/district-council/south-lakeland,31/10/2015,Environment and Housing,Housing,http://opendatacommunities.org/def/concept/finance/sercop/objective/108,ENVIRONMENT & HOUSING GRANTS,,26/10/2015,53349,"3,248.64",0,Lyth,201700,Financial Services Grants
South Lakeland District Council,http://opendatacommunities.org/id/district-council/south-lakeland,31/10/2015,Social Enterprise Admin,Central Services,http://opendatacommunities.org/def/concept/finance/sercop/objective/102,WINDERMERE LAKE CRUISES LTD,929280,28/10/2015,53352,272,0,22/04/2015 Private Boat Hire - Trip to,291000,Arts & Leisure Services Events
South Lakeland District Council,http://opendatacommunities.org/id/district-council/south-lakeland,31/10/2015,Development Implementation,Cultural Environmental Regulatory & Planning Services,http://opendatacommunities.org/def/concept/finance/sercop/objective/104,Carus Green Ltd,7262136,28/10/2015,53353,181.25,0,Business Lunch Refreshments,192110,Facilities Room Hire
South Lakeland District Council,http://opendatacommunities.org/id/district-council/south-lakeland,31/10/2015,Human Resources,Central Services,http://opendatacommunities.org/def/concept/finance/sercop/objective/102,KENDAL COLLEGE,,28/10/2015,53354,350,0,29.04.15 13:3015:00 E-Forms,908999,Public Bodies Not Elsewhere Classified
South Lakeland District Council,http://opendatacommunities.org/id/district-council/south-lakeland,31/10/2015,Human Resources,Central Services,http://opendatacommunities.org/def/concept/finance/sercop/objective/102,KENDAL COLLEGE,,28/10/2015,53355,700,0,5 students on Microsoft Word & Outlook,908999,Public Bodies Not Elsewhere Classified
South Lakeland District Council,http://opendatacommunities.org/id/district-council/south-lakeland,31/10/2015,ICT Group,Highways & Transport Services,http://opendatacommunities.org/def/concept/finance/sercop/objective/107,PROBRAND LTD,2653446,28/10/2015,53356,398.12,0,AZ461/65258978AF01- A00  Adobe - TLPG,271600,ICT Software Customised & Bespoke
South Lakeland District Council,http://opendatacommunities.org/id/district-council/south-lakeland,31/10/2015,Business Support Community Services,Housing Services,http://opendatacommunities.org/def/concept/finance/sercop/objective/108,SOUTH LAKES HOUSING,IP031419,28/10/2015,53358,159,0,"House Clearance at Bleaswood Road,",191700,Facilities Property Management
South Lakeland District Council,http://opendatacommunities.org/id/district-council/south-lakeland,31/10/2015,Business Support Community Services,Housing Services,http://opendatacommunities.org/def/concept/finance/sercop/objective/108,SOUTH LAKES HOUSING,IP031419,28/10/2015,53363,35,0,Fixing the Toilet at Fleece Inn Yard,191700,Facilities Property Management
South Lakeland District Council,http://opendatacommunities.org/id/district-council/south-lakeland,31/10/2015,Democratic Services,Central Services,http://opendatacommunities.org/def/concept/finance/sercop/objective/102,CARDS 4 CHARITY,,28/10/2015,53366,158.1,0,Christmas cards for Chairman,191600,Facilities Printing
South Lakeland District Council,http://opendatacommunities.org/id/district-council/south-lakeland,31/10/2015,Coronation Hall,Cultural Environmental Regulatory & Planning Services,http://opendatacommunities.org/def/concept/finance/sercop/objective/104,Monster Monster,,28/10/2015,53375,400,0,"Work on Facebook and Twitter for April,",999999,Unclassifiable
South Lakeland District Council,http://opendatacommunities.org/id/district-council/south-lakeland,31/10/2015,Coronation Hall,Cultural Environmental Regulatory & Planning Services,http://opendatacommunities.org/def/concept/finance/sercop/objective/104,Ulverston Amateur Operatic Society,,28/10/2015,53376,55,0,Stewards for A Night at the Movies on 18,291300,Arts & Leisure Services Performing Arts
South Lakeland District Council,http://opendatacommunities.org/id/district-council/south-lakeland,31/10/2015,Coronation Hall,Cultural Environmental Regulatory & Planning Services,http://opendatacommunities.org/def/concept/finance/sercop/objective/104,FURNESS NEWSPAPERS LTD,1155841,28/10/2015,53377,75,0,To place a 10 x 3 advert in the Heart of,191000,Facilities Advertising
South Lakeland District Council,http://opendatacommunities.org/id/district-council/south-lakeland,31/10/2015,Coronation Hall,Cultural Environmental Regulatory & Planning Services,http://opendatacommunities.org/def/concept/finance/sercop/objective/104,FLASHLIGHT,8588039,28/10/2015,53378,168,0,T19 1000W 240v lamp GE88457,291300,Arts & Leisure Services Performing Arts
South Lakeland District Council,http://opendatacommunities.org/id/district-council/south-lakeland,31/10/2015,Coronation Hall,Cultural Environmental Regulatory & Planning Services,http://opendatacommunities.org/def/concept/finance/sercop/objective/104,Ulverston Amateur Operatic Society,,28/10/2015,53379,55,0,Stewards for A Night at the Movies on 18,291300,Arts & Leisure Services Performing Arts
South Lakeland District Council,http://opendatacommunities.org/id/district-council/south-lakeland,31/10/2015,Financial Services,Central Services,http://opendatacommunities.org/def/concept/finance/sercop/objective/102,CIPP,4227998,28/10/2015,53380,"2,592.00",0,Learning day  1 PAYE + NIC 01/12/15,261500,HR Training & Conferences
South Lakeland District Council,http://opendatacommunities.org/id/district-council/south-lakeland,31/10/2015,Environment and Housing,Housing Services,http://opendatacommunities.org/def/concept/finance/sercop/objective/108,GROWING CONCERNS LANDSCAPING,,28/10/2015,53383,"1,355.80",0,Payments for Handy Person Scheme,391200,Construction Engineering
South Lakeland District Council,http://opendatacommunities.org/id/district-council/south-lakeland,31/10/2015,Policy & Partnerships,Central Services,http://opendatacommunities.org/def/concept/finance/sercop/objective/102,CASTLERIGG CONSULTING,6747285,28/10/2015,53384,"5,600.00",0,Procuring a digital platform for SLDC.,159999,Consultancy Not Elsewhere Classified
South Lakeland District Council,http://opendatacommunities.org/id/district-council/south-lakeland,31/10/2015,Democratic Services,SLDC as Agent,,CASTLERIGG CONSULTING,6747285,28/10/2015,53385,"3,900.00",0,Support to the Transformation Challenge,159999,Consultancy Not Elsewhere Classified
South Lakeland District Council,http://opendatacommunities.org/id/district-council/south-lakeland,31/10/2015,ICT Group,Central Services,http://opendatacommunities.org/def/concept/finance/sercop/objective/102,DAISY COMMUNICATIONS LTD,4145329,28/10/2015,53387,496.68,0,"Daisy Line Rental Charges (Service),",271700,ICT Telecommunications Fixed
South Lakeland District Council,http://opendatacommunities.org/id/district-council/south-lakeland,31/10/2015,ICT Group,Central Services,http://opendatacommunities.org/def/concept/finance/sercop/objective/102,DAISY COMMUNICATIONS LTD,4145329,28/10/2015,53387,80.11,0,"Daisy Line Rental Charges (Service),",271700,ICT Telecommunications Fixed
South Lakeland District Council,http://opendatacommunities.org/id/district-council/south-lakeland,31/10/2015,Development Implementation,Central Services,http://opendatacommunities.org/def/concept/finance/sercop/objective/102,ADECCO UK LIMITED,593232,28/10/2015,53389,492,0,Economic Development Officer -,261400,HR Temporary & Agency Staff
South Lakeland District Council,http://opendatacommunities.org/id/district-council/south-lakeland,31/10/2015,Development Implementation,Central Services,http://opendatacommunities.org/def/concept/finance/sercop/objective/102,ADECCO UK LIMITED,593232,28/10/2015,53391,483.8,0,Economic Development Project Officer -,261400,HR Temporary & Agency Staff
South Lakeland District Council,http://opendatacommunities.org/id/district-council/south-lakeland,31/10/2015,Kendal Town Hall,Cultural Environmental Regulatory & Planning Services,http://opendatacommunities.org/def/concept/finance/sercop/objective/104,CUMBRIA - C P CATERING EQUIPMENT LTD,,28/10/2015,53395,38.24,0,1case of clear plastic cups (7oz) for,111100,Catering Equipment & Utensils
South Lakeland District Council,http://opendatacommunities.org/id/district-council/south-lakeland,31/10/2015,Revenues and Benefits,Central Services,http://opendatacommunities.org/def/concept/finance/sercop/objective/102,BADENOCH & CLARK,1356186,28/10/2015,53396,506.73,0,Revs and Bens May 2015,261300,HR Recruitment & Assessment
South Lakeland District Council,http://opendatacommunities.org/id/district-council/south-lakeland,31/10/2015,Coronation Hall,SLDC as Agent,,ONE OFF TICKET SALES (CORO HALL),,28/10/2015,53397,"3,000.00",0,Midge Ure at the Coronation Hall on 15,291000,Arts & Leisure Services Events
South Lakeland District Council,http://opendatacommunities.org/id/district-council/south-lakeland,31/10/2015,Business Support Community Services,Cultural Environmental Regulatory & Planning Services,http://opendatacommunities.org/def/concept/finance/sercop/objective/104,Tobin Consulting Engineers (UK) Ltd,7588787,28/10/2015,53399,"15,661.26",0,Risk Assessments for,159999,Consultancy Not Elsewhere Classified
South Lakeland District Council,http://opendatacommunities.org/id/district-council/south-lakeland,31/10/2015,Social Enterprise Admin,Highways & Transport Services,http://opendatacommunities.org/def/concept/finance/sercop/objective/107,Masterstaff Limited,2777593,28/10/2015,53400,366.3,0,Staff for Westmorland SC car park,261300,HR Recruitment & Assessment
South Lakeland District Council,http://opendatacommunities.org/id/district-council/south-lakeland,31/10/2015,Coronation Hall,Cultural Environmental Regulatory & Planning Services,http://opendatacommunities.org/def/concept/finance/sercop/objective/104,ST JOHN AMBULANCE CUMBRIA,,28/10/2015,53403,52.8,0,FAO ,311600,Healthcare Services
South Lakeland District Council,http://opendatacommunities.org/id/district-council/south-lakeland,31/10/2015,Coronation Hall,Cultural Environmental Regulatory & Planning Services,http://opendatacommunities.org/def/concept/finance/sercop/objective/104,ST JOHN AMBULANCE CUMBRIA,,28/10/2015,53404,105.6,0,FAO ,311600,Healthcare Services
South Lakeland District Council,http://opendatacommunities.org/id/district-council/south-lakeland,31/10/2015,Revenues and Benefits,Central Services,http://opendatacommunities.org/def/concept/finance/sercop/objective/102,ROYAL MAIL GROUP PLC,,28/10/2015,53405,92.38,0,2015-2016 Postal Charges a/c 0055114000,301200,Mail Services� Postage
South Lakeland District Council,http://opendatacommunities.org/id/district-council/south-lakeland,31/10/2015,Social Enterprise Admin,Cultural Environmental Regulatory & Planning Services,http://opendatacommunities.org/def/concept/finance/sercop/objective/104,CONTINENTAL LANDSCAPES LTD,2108452,28/10/2015,53407,"6,752.50",0,Extra works Parks April 2015 - March,391310,Construction Open Spaces Construction
South Lakeland District Council,http://opendatacommunities.org/id/district-council/south-lakeland,31/10/2015,Social Enterprise Admin,Cultural Environmental Regulatory & Planning Services,http://opendatacommunities.org/def/concept/finance/sercop/objective/104,CONTINENTAL LANDSCAPES LTD,2108452,28/10/2015,53407,"1,460.00",0,Extra works Parks April 2015 - March,391310,Construction Open Spaces Construction
South Lakeland District Council,http://opendatacommunities.org/id/district-council/south-lakeland,31/10/2015,Social Enterprise Admin,Cultural Environmental Regulatory & Planning Services,http://opendatacommunities.org/def/concept/finance/sercop/objective/104,CONTINENTAL LANDSCAPES LTD,2108452,28/10/2015,53407,147,0,Extra works Parks April 2015 - March,391310,Construction Open Spaces Construction
South Lakeland District Council,http://opendatacommunities.org/id/district-council/south-lakeland,31/10/2015,Social Enterprise Admin,Highways & Transport Services,http://opendatacommunities.org/def/concept/finance/sercop/objective/107,BRITISH TELECOMMUNICATIONS PLC,1800000,28/10/2015,53408,195,0,Private circuit bill for Westmorland SC,279999,ICT Not Elsewhere Classified
South Lakeland District Council,http://opendatacommunities.org/id/district-council/south-lakeland,31/10/2015,Social Enterprise Admin,Cultural Environmental Regulatory & Planning Services,http://opendatacommunities.org/def/concept/finance/sercop/objective/104,JETTIES & MOORINGS,,28/10/2015,53409,530,0,"To renew, repair and fit  damaged towing",291400,Arts & Leisure Services Sport & Fitness
South Lakeland District Council,http://opendatacommunities.org/id/district-council/south-lakeland,31/10/2015,ICT Group,Cultural Environmental Regulatory & Planning Services,http://opendatacommunities.org/def/concept/finance/sercop/objective/104,PROBRAND LTD,2653446,28/10/2015,53410,94.28,0,ZH047/800077-742EM   Zebra - Zebra Card,271600,ICT Software Customised & Bespoke
South Lakeland District Council,http://opendatacommunities.org/id/district-council/south-lakeland,31/10/2015,Business Support Community Services,Internal Trading Accounts,,HYDRAIR TRUCK & TRAILER PARTS LTD,,28/10/2015,53415,38,0,Spring,381500,Vehicle Mgt Parts
South Lakeland District Council,http://opendatacommunities.org/id/district-council/south-lakeland,31/10/2015,Business Support Community Services,Internal Trading Accounts,,HYDRAIR TRUCK & TRAILER PARTS LTD,,28/10/2015,53416,52.2,0,Spring,381500,Vehicle Mgt Parts
South Lakeland District Council,http://opendatacommunities.org/id/district-council/south-lakeland,31/10/2015,Business Support Community Services,Internal Trading Accounts,,HYDRAIR TRUCK & TRAILER PARTS LTD,,28/10/2015,53417,52.2,0,Spring,381500,Vehicle Mgt Parts
South Lakeland District Council,http://opendatacommunities.org/id/district-council/south-lakeland,31/10/2015,Business Support Community Services,Internal Trading Accounts,,HYDRAIR TRUCK & TRAILER PARTS LTD,,28/10/2015,53418,225,0,Spring,381500,Vehicle Mgt Parts
South Lakeland District Council,http://opendatacommunities.org/id/district-council/south-lakeland,31/10/2015,Business Support Community Services,Internal Trading Accounts,,HYDRAIR TRUCK & TRAILER PARTS LTD,,28/10/2015,53419,15.28,0,Spring,381500,Vehicle Mgt Parts
South Lakeland District Council,http://opendatacommunities.org/id/district-council/south-lakeland,31/10/2015,Business Support Community Services,Internal Trading Accounts,,TAYLOR ENGINEERING & FABRICATIONS LTD,4989359,28/10/2015,53423,229.21,0,Cable,391200,Construction Engineering
South Lakeland District Council,http://opendatacommunities.org/id/district-council/south-lakeland,31/10/2015,Business Support Community Services,Internal Trading Accounts,,HYDRAIR TRUCK & TRAILER PARTS LTD,,28/10/2015,53424,512,0,Spring,381500,Vehicle Mgt Parts
South Lakeland District Council,http://opendatacommunities.org/id/district-council/south-lakeland,31/10/2015,Business Support Community Services,Internal Trading Accounts,,HYDRAIR TRUCK & TRAILER PARTS LTD,,28/10/2015,53425,256,0,Spring,381500,Vehicle Mgt Parts
South Lakeland District Council,http://opendatacommunities.org/id/district-council/south-lakeland,31/10/2015,Business Support Community Services,Central Services,http://opendatacommunities.org/def/concept/finance/sercop/objective/102,CUMBRIA WASTE MANAGEMENT LIMITED,2665973,28/10/2015,53426,65,0,COTC cover at Ecclerigg - 2015/16,182015,Environment Waste Mgt Waste Disposal
South Lakeland District Council,http://opendatacommunities.org/id/district-council/south-lakeland,31/10/2015,Business Support Community Services,Internal Trading Accounts,,FLEET PARTS LTD,1252714,28/10/2015,53427,90,0,Cable,381500,Vehicle Mgt Parts
South Lakeland District Council,http://opendatacommunities.org/id/district-council/south-lakeland,31/10/2015,Business Support Community Services,Internal Trading Accounts,,CENTRAL DIESEL,,28/10/2015,53428,682.32,0,TCM module,381100,Vehicle Mgt Fuel
South Lakeland District Council,http://opendatacommunities.org/id/district-council/south-lakeland,31/10/2015,Environment and Housing,Housing,http://opendatacommunities.org/def/concept/finance/sercop/objective/108,DOLPHIN MOBILITY YORKS & CUMBRIA,,28/10/2015,53429,"4,150.00",0,"Greenside, Kendal,",321311,Social Care Supplies Equipment
South Lakeland District Council,http://opendatacommunities.org/id/district-council/south-lakeland,31/10/2015,Business Support Community Services,Housing Services,http://opendatacommunities.org/def/concept/finance/sercop/objective/108,Landlord,7009105,28/10/2015,53430,960,0,Monthly rent ,250000,Housing
South Lakeland District Council,http://opendatacommunities.org/id/district-council/south-lakeland,31/10/2015,Business Support Community Services,Housing Services,http://opendatacommunities.org/def/concept/finance/sercop/objective/108,Landlord,,28/10/2015,53431,800,0,Monthly rent ,250000,Housing
South Lakeland District Council,http://opendatacommunities.org/id/district-council/south-lakeland,31/10/2015,Business Support Community Services,Housing Services,http://opendatacommunities.org/def/concept/finance/sercop/objective/108,Landlord,,28/10/2015,53432,960,0,Monthly rent ,250000,Housing
South Lakeland District Council,http://opendatacommunities.org/id/district-council/south-lakeland,31/10/2015,Business Support Community Services,Housing Services,http://opendatacommunities.org/def/concept/finance/sercop/objective/108,Landlord,,28/10/2015,53433,950,0,Monthly rent ,250000,Housing
South Lakeland District Council,http://opendatacommunities.org/id/district-council/south-lakeland,31/10/2015,Business Support Community Services,Housing Services,http://opendatacommunities.org/def/concept/finance/sercop/objective/108,Landlord,,28/10/2015,53434,"1,000.00",0,Monthly rent ,250000,Housing
South Lakeland District Council,http://opendatacommunities.org/id/district-council/south-lakeland,31/10/2015,Business Support Community Services,Housing Services,http://opendatacommunities.org/def/concept/finance/sercop/objective/108,Landlord,,28/10/2015,53435,625,0,Monthly rent ,202000,Financial Services Rents
South Lakeland District Council,http://opendatacommunities.org/id/district-council/south-lakeland,31/10/2015,Environment and Housing,Housing,http://opendatacommunities.org/def/concept/finance/sercop/objective/108,ENVIRONMENT & HOUSING GRANTS,,28/10/2015,53436,"29,412.00",0,"Lyth, Kendal,",201700,Financial Services Grants
South Lakeland District Council,http://opendatacommunities.org/id/district-council/south-lakeland,31/10/2015,Business Support Community Services,Housing Services,http://opendatacommunities.org/def/concept/finance/sercop/objective/108,Landlord,,28/10/2015,53437,500,0,Monthly rent ,250010,Housing Letting Agents
South Lakeland District Council,http://opendatacommunities.org/id/district-council/south-lakeland,31/10/2015,Business Support Community Services,Housing Services,http://opendatacommunities.org/def/concept/finance/sercop/objective/108,Landlord,,28/10/2015,53438,500,0,Monthly rent ,250010,Housing Letting Agents
